Dept/Family,Entity,Expense Type,Expense Area,Supplier,Payment Date, Amount ,SME,UNSPCC Code,UNSPCC Description
"Ministry of Housing, Communities and Local Government",Homes England,SERVICE CHARGE,Development,ASDA STORES LTD,30/06/2021,1786.68,L,80131500,Lease and rental of property or building
"Ministry of Housing, Communities and Local Government",Homes England,SERVICE CHARGE,Development,ASDA STORES LTD,23/06/2021,809.25,L,80131500,Lease and rental of property or building
"Ministry of Housing, Communities and Local Government",Homes England,CAPITAL GRANTS TO RPs,Investment,FIRST CHOICE HOMES OLDHAM LIMITED,01/06/2021,351000,L,None,Grants
"Ministry of Housing, Communities and Local Government",Homes England,CAPITAL GRANTS TO RPs,Investment,FIRST CHOICE HOMES OLDHAM LIMITED,24/06/2021,209000,L,None,Grants
"Ministry of Housing, Communities and Local Government",Homes England,CAPITAL GRANTS TO RPs,Investment,FIRST CHOICE HOMES OLDHAM LIMITED,04/06/2021,9000,L,None,Grants
"Ministry of Housing, Communities and Local Government",Homes England,CAPITAL GRANTS TO RPs,Investment,FIRST CHOICE HOMES OLDHAM LIMITED,22/06/2021,9000,L,None,Grants
"Ministry of Housing, Communities and Local Government",Homes England,CAPITAL GRANTS TO RPs,Investment,FIRST CHOICE HOMES OLDHAM LIMITED,22/06/2021,9000,L,None,Grants
"Ministry of Housing, Communities and Local Government",Homes England,CAPITAL GRANTS TO RPs,Investment,FIRST CHOICE HOMES OLDHAM LIMITED,01/06/2021,993,L,None,Grants
"Ministry of Housing, Communities and Local Government",Homes England,CAPITAL GRANTS TO RPs,Investment,ROCHDALE BOROUGHWIDE HOUSING LIMITED,08/06/2021,18750,L,None,Grants
"Ministry of Housing, Communities and Local Government",Homes England,CAPITAL GRANTS TO RPs,Investment,ROCHDALE BOROUGHWIDE HOUSING LIMITED,07/06/2021,16875,L,None,Grants
"Ministry of Housing, Communities and Local Government",Homes England,CAPITAL GRANTS TO RPs,Investment,SALIX HOMES LTD,09/06/2021,945000,L,None,Grants
"Ministry of Housing, Communities and Local Government",Homes England,CAPITAL GRANTS TO RPs,Investment,SALIX HOMES LTD,22/06/2021,51300,L,None,Grants
"Ministry of Housing, Communities and Local Government",Homes England,CAPITAL GRANTS TO RPs,Investment,SAGE HOUSING LIMITED,02/06/2021,58500,M,None,Grants
"Ministry of Housing, Communities and Local Government",Homes England,CAPITAL GRANTS TO RPs,Investment,SAGE HOUSING LIMITED,02/06/2021,49000,M,None,Grants
"Ministry of Housing, Communities and Local Government",Homes England,CAPITAL GRANTS TO RPs,Investment,YMCA DOWNSLINK GROUP,18/06/2021,165132,L,None,Grants
"Ministry of Housing, Communities and Local Government",Homes England,CAPITAL GRANTS TO RPs,Investment,YMCA DOWNSLINK GROUP,15/06/2021,60000,L,None,Grants
"Ministry of Housing, Communities and Local Government",Homes England,CAPITAL GRANTS TO RPs,Investment,YMCA DOWNSLINK GROUP,25/06/2021,22935,L,None,Grants
"Ministry of Housing, Communities and Local Government",Homes England,CAPITAL GRANTS TO RPs,Investment,YMCA DOWNSLINK GROUP,16/06/2021,18348,L,None,Grants
"Ministry of Housing, Communities and Local Government",Homes England,CAPITAL GRANTS TO RPs,Investment,KEELMAN HOMES,08/06/2021,25500,L,None,Grants
"Ministry of Housing, Communities and Local Government",Homes England,CAPITAL GRANTS TO RPs,Investment,TAMWORTH CORNERSTONE HOUSING ASSOCIATION LTD,23/06/2021,134850,S,None,Grants
"Ministry of Housing, Communities and Local Government",Homes England,REVENUE GRANTS TO RPs,Investment,ACTION HOUSING AND SUPPORT,28/06/2021,20309,M,None,Grants
"Ministry of Housing, Communities and Local Government",Homes England,CAPITAL GRANTS TO RPs,Investment,THE GUINNESS PARTNERSHIP LIMITED,02/06/2021,14089334,L,None,Grants
"Ministry of Housing, Communities and Local Government",Homes England,CAPITAL GRANTS TO RPs,Investment,THE GUINNESS PARTNERSHIP LIMITED,14/06/2021,26250,L,None,Grants
"Ministry of Housing, Communities and Local Government",Homes England,CAPITAL GRANTS TO RPs,Investment,BRIDGE-IT HOUSING UK TEAM LTD,18/06/2021,15790,S,None,Grants
"Ministry of Housing, Communities and Local Government",Homes England,CAPITAL GRANTS TO RPs,Investment,BRIDGE-IT HOUSING UK TEAM LTD,02/06/2021,11674,S,None,Grants
"Ministry of Housing, Communities and Local Government",Homes England,CAPITAL GRANTS TO RPs,Investment,ST RICHARD OF CHICHESTER CHRSTIAN CARE,14/06/2021,12040,M,None,Grants
"Ministry of Housing, Communities and Local Government",Homes England,CAPITAL GRANTS TO RPs,Investment,EMH HOUSING & REGENERATION LTD,02/06/2021,11000000,M,None,Grants
"Ministry of Housing, Communities and Local Government",Homes England,CAPITAL GRANTS TO RPs,Investment,PLATFORM HOUSING GROUP LIMITED,02/06/2021,8984449,L,None,Grants
"Ministry of Housing, Communities and Local Government",Homes England,CAPITAL GRANTS TO RPs,Investment,PLATFORM HOUSING GROUP LIMITED,07/06/2021,98312,L,None,Grants
"Ministry of Housing, Communities and Local Government",Homes England,CAPITAL GRANTS TO RPs,Investment,PLATFORM HOUSING GROUP LIMITED,07/06/2021,83187,L,None,Grants
"Ministry of Housing, Communities and Local Government",Homes England,CAPITAL GRANTS TO RPs,Investment,PLATFORM HOUSING GROUP LIMITED,07/06/2021,65000,L,None,Grants
"Ministry of Housing, Communities and Local Government",Homes England,CAPITAL GRANTS TO RPs,Investment,BELIEVE HOUSING LIMITED,07/06/2021,120053,L,None,Grants
"Ministry of Housing, Communities and Local Government",Homes England,CAPITAL GRANTS TO RPs,Investment,BELIEVE HOUSING LIMITED,07/06/2021,45204,L,None,Grants
"Ministry of Housing, Communities and Local Government",Homes England,CAPITAL GRANTS TO RPs,Investment,BELIEVE HOUSING LIMITED,04/06/2021,21500,L,None,Grants
"Ministry of Housing, Communities and Local Government",Homes England,CAPITAL GRANTS TO RPs,Investment,NOTTINGHAM COMMUNITY HOUSING ASSOCIATION,02/06/2021,4357969,L,None,Grants
"Ministry of Housing, Communities and Local Government",Homes England,CAPITAL GRANTS TO RPs,Investment,DEVON AND CORNWALL HOUSING LIMITED,11/06/2021,210000,L,None,Grants
"Ministry of Housing, Communities and Local Government",Homes England,CAPITAL GRANTS TO RPs,Investment,LODDON HOMES LIMITED,04/06/2021,60750,S,None,Grants
"Ministry of Housing, Communities and Local Government",Homes England,HELP TO BUY ADDITIONS,Investment,KARBON HOMES,30/06/2021,39999,L,None,Grants
"Ministry of Housing, Communities and Local Government",Homes England,HELP TO BUY ADDITIONS,Investment,KARBON HOMES,30/06/2021,37999,L,None,Grants
"Ministry of Housing, Communities and Local Government",Homes England,CAPITAL GRANTS TO RPs,Investment,KARBON HOMES,25/06/2021,9000,L,None,Grants
"Ministry of Housing, Communities and Local Government",Homes England,CAPITAL GRANTS TO RPs,Investment,KARBON HOMES,25/06/2021,9000,L,None,Grants
"Ministry of Housing, Communities and Local Government",Homes England,CAPITAL GRANTS TO RPs,Investment,KARBON HOMES,25/06/2021,9000,L,None,Grants
"Ministry of Housing, Communities and Local Government",Homes England,CAPITAL GRANTS TO RPs,Investment,VIVID HOUSING LTD,02/06/2021,20000000,L,None,Grants
"Ministry of Housing, Communities and Local Government",Homes England,CAPITAL GRANTS TO RPs,Investment,VIVID HOUSING LTD,02/06/2021,8732889,L,None,Grants
"Ministry of Housing, Communities and Local Government",Homes England,CAPITAL GRANTS TO RPs,Investment,OPTIVO,02/06/2021,3000000,L,None,Grants
"Ministry of Housing, Communities and Local Government",Homes England,CAPITAL GRANTS TO RPs,Investment,LIVEWEST HOMES LIMITED,02/06/2021,4000000,L,None,Grants
"Ministry of Housing, Communities and Local Government",Homes England,CAPITAL GRANTS TO RPs,Investment,P3 HOUSING LTD,09/06/2021,15142,L,None,Grants
"Ministry of Housing, Communities and Local Government",Homes England,CAPITAL GRANTS TO RPs,Investment,P3 HOUSING LTD,08/06/2021,13627,L,None,Grants
"Ministry of Housing, Communities and Local Government",Homes England,CAPITAL GRANTS TO RPs,Investment,P3 HOUSING LTD,21/06/2021,1514,L,None,Grants
"Ministry of Housing, Communities and Local Government",Homes England,CAPITAL GRANTS TO RPs,Investment,TORUS62 LIMITED,02/06/2021,6058432,L,None,Grants
"Ministry of Housing, Communities and Local Government",Homes England,CAPITAL GRANTS TO RPs,Investment,TORUS62 LIMITED,03/06/2021,9000,L,None,Grants
"Ministry of Housing, Communities and Local Government",Homes England,CAPITAL GRANTS TO RPs,Investment,TORUS62 LIMITED,03/06/2021,9000,L,None,Grants
"Ministry of Housing, Communities and Local Government",Homes England,CAPITAL GRANTS TO RPs,Investment,TORUS62 LIMITED,25/06/2021,9000,L,None,Grants
"Ministry of Housing, Communities and Local Government",Homes England,CAPITAL GRANTS TO RPs,Investment,TORUS62 LIMITED,25/06/2021,9000,L,None,Grants
"Ministry of Housing, Communities and Local Government",Homes England,CAPITAL GRANTS TO RPs,Investment,TORUS62 LIMITED,25/06/2021,9000,L,None,Grants
"Ministry of Housing, Communities and Local Government",Homes England,CAP GRNTS TO LOCAL AUTHORITIES,Investment,BCP COUNCIL,29/06/2021,278513.22,G,None,Grants
"Ministry of Housing, Communities and Local Government",Homes England,CAP GRNTS TO LOCAL AUTHORITIES,Investment,BCP COUNCIL,30/06/2021,43134,G,None,Grants
"Ministry of Housing, Communities and Local Government",Homes England,CAP GRNTS TO LOCAL AUTHORITIES,Investment,BCP COUNCIL,29/06/2021,38820,G,None,Grants
"Ministry of Housing, Communities and Local Government",Homes England,CAP GRNTS TO LOCAL AUTHORITIES,Investment,BCP COUNCIL,22/06/2021,4153,G,None,Grants
"Ministry of Housing, Communities and Local Government",Homes England,CAP GRNTS TO LOCAL AUTHORITIES,Investment,BCP COUNCIL,24/06/2021,1409,G,None,Grants
"Ministry of Housing, Communities and Local Government",Homes England,CAP GRNTS TO LOCAL AUTHORITIES,Investment,BCP COUNCIL,24/06/2021,1409,G,None,Grants
"Ministry of Housing, Communities and Local Government",Homes England,CAP GRNTS TO LOCAL AUTHORITIES,Investment,BCP COUNCIL,28/06/2021,1088,G,None,Grants
"Ministry of Housing, Communities and Local Government",Homes England,CAP GRNTS TO LOCAL AUTHORITIES,Investment,BCP COUNCIL,28/06/2021,1088,G,None,Grants
"Ministry of Housing, Communities and Local Government",Homes England,CAP GRNTS TO LOCAL AUTHORITIES,Investment,BCP COUNCIL,28/06/2021,1088,G,None,Grants
"Ministry of Housing, Communities and Local Government",Homes England,CAP GRNTS TO LOCAL AUTHORITIES,Investment,BCP COUNCIL,28/06/2021,1088,G,None,Grants
"Ministry of Housing, Communities and Local Government",Homes England,CAP GRNTS TO LOCAL AUTHORITIES,Investment,BCP COUNCIL,28/06/2021,1088,G,None,Grants
"Ministry of Housing, Communities and Local Government",Homes England,CAP GRNTS TO LOCAL AUTHORITIES,Investment,BCP COUNCIL,28/06/2021,1088,G,None,Grants
"Ministry of Housing, Communities and Local Government",Homes England,CAPITAL GRANTS TO RPs,Investment,CITIZEN HOUSING GROUP LTD,15/06/2021,35000,L,None,Grants
"Ministry of Housing, Communities and Local Government",Homes England,CAPITAL GRANTS TO RPs,Investment,CITIZEN HOUSING GROUP LTD,25/06/2021,35000,L,None,Grants
"Ministry of Housing, Communities and Local Government",Homes England,CAPITAL GRANTS TO RPs,Investment,CITIZEN HOUSING GROUP LTD,14/06/2021,31500,L,None,Grants
"Ministry of Housing, Communities and Local Government",Homes England,CAPITAL GRANTS TO RPs,Investment,CITIZEN HOUSING GROUP LTD,24/06/2021,31500,L,None,Grants
"Ministry of Housing, Communities and Local Government",Homes England,CAPITAL GRANTS TO RPs,Investment,CITIZEN HOUSING GROUP LTD,16/06/2021,3500,L,None,Grants
"Ministry of Housing, Communities and Local Government",Homes England,CAPITAL GRANTS TO RPs,Investment,CITIZEN HOUSING GROUP LTD,28/06/2021,3500,L,None,Grants
"Ministry of Housing, Communities and Local Government",Homes England,CAP GRNTS TO LOCAL AUTHORITIES,Investment,SUNDERLAND CITY COUNCIL,18/06/2021,12000,G,None,Grants
"Ministry of Housing, Communities and Local Government",Homes England,CAP GRNTS TO LOCAL AUTHORITIES,Investment,SUNDERLAND CITY COUNCIL,07/06/2021,11250,G,None,Grants
"Ministry of Housing, Communities and Local Government",Homes England,CAP GRNTS TO LOCAL AUTHORITIES,Investment,SUNDERLAND CITY COUNCIL,22/06/2021,10500,G,None,Grants
"Ministry of Housing, Communities and Local Government",Homes England,CAP GRNTS TO LOCAL AUTHORITIES,Investment,SUNDERLAND CITY COUNCIL,28/06/2021,7500,G,None,Grants
"Ministry of Housing, Communities and Local Government",Homes England,CAP GRNTS TO LOCAL AUTHORITIES,Investment,SUNDERLAND CITY COUNCIL,17/06/2021,2080,G,None,Grants
"Ministry of Housing, Communities and Local Government",Homes England,CAP GRNTS TO LOCAL AUTHORITIES,Investment,NORTH NORFOLK DISTRICT COUNCIL,03/06/2021,1750,G,None,Grants
"Ministry of Housing, Communities and Local Government",Homes England,CAP GRNTS TO LOCAL AUTHORITIES,Investment,NORTH NORFOLK DISTRICT COUNCIL,03/06/2021,1750,G,None,Grants
"Ministry of Housing, Communities and Local Government",Homes England,CAP GRNTS TO LOCAL AUTHORITIES,Investment,NORTH NORFOLK DISTRICT COUNCIL,03/06/2021,1750,G,None,Grants
"Ministry of Housing, Communities and Local Government",Homes England,CAP GRNTS TO LOCAL AUTHORITIES,Investment,DORSET COUNCIL,28/06/2021,1590,G,None,Grants
"Ministry of Housing, Communities and Local Government",Homes England,CAP GRNTS TO LOCAL AUTHORITIES,Investment,DORSET COUNCIL,28/06/2021,1590,G,None,Grants
"Ministry of Housing, Communities and Local Government",Homes England,CAP GRNTS TO LOCAL AUTHORITIES,Investment,DORSET COUNCIL,28/06/2021,1590,G,None,Grants
"Ministry of Housing, Communities and Local Government",Homes England,CAP GRNTS TO LOCAL AUTHORITIES,Investment,DORSET COUNCIL,28/06/2021,1590,G,None,Grants
"Ministry of Housing, Communities and Local Government",Homes England,CAP GRNTS TO LOCAL AUTHORITIES,Investment,DORSET COUNCIL,28/06/2021,1590,G,None,Grants
"Ministry of Housing, Communities and Local Government",Homes England,CAP GRNTS TO LOCAL AUTHORITIES,Investment,DORSET COUNCIL,28/06/2021,1590,G,None,Grants
"Ministry of Housing, Communities and Local Government",Homes England,CAP GRNTS TO LOCAL AUTHORITIES,Investment,DORSET COUNCIL,28/06/2021,1590,G,None,Grants
"Ministry of Housing, Communities and Local Government",Homes England,CAP GRNTS TO LOCAL AUTHORITIES,Investment,DORSET COUNCIL,28/06/2021,1590,G,None,Grants
"Ministry of Housing, Communities and Local Government",Homes England,CAPITAL GRANTS TO RPs,Investment,RCVDA COMMUNITY HOUSING CIC,23/06/2021,200000,S,None,Grants
"Ministry of Housing, Communities and Local Government",Homes England,CAP GRNTS TO LOCAL AUTHORITIES,Investment,STRATFORD ON AVON DISTRICT COUNCIL,14/06/2021,50200,G,None,Grants
"Ministry of Housing, Communities and Local Government",Homes England,CAP GRNTS TO LOCAL AUTHORITIES,Investment,STRATFORD ON AVON DISTRICT COUNCIL,30/06/2021,47430,G,None,Grants
"Ministry of Housing, Communities and Local Government",Homes England,CAP GRNTS TO LOCAL AUTHORITIES,Investment,STRATFORD ON AVON DISTRICT COUNCIL,14/06/2021,47200,G,None,Grants
"Ministry of Housing, Communities and Local Government",Homes England,CAP GRNTS TO LOCAL AUTHORITIES,Investment,STRATFORD ON AVON DISTRICT COUNCIL,07/06/2021,45180,G,None,Grants
"Ministry of Housing, Communities and Local Government",Homes England,CAP GRNTS TO LOCAL AUTHORITIES,Investment,STRATFORD ON AVON DISTRICT COUNCIL,07/06/2021,42480,G,None,Grants
"Ministry of Housing, Communities and Local Government",Homes England,CAP GRNTS TO LOCAL AUTHORITIES,Investment,STRATFORD ON AVON DISTRICT COUNCIL,30/06/2021,15480,G,None,Grants
"Ministry of Housing, Communities and Local Government",Homes England,CAP GRNTS TO LOCAL AUTHORITIES,Investment,STRATFORD ON AVON DISTRICT COUNCIL,30/06/2021,5020,G,None,Grants
"Ministry of Housing, Communities and Local Government",Homes England,CAP GRNTS TO LOCAL AUTHORITIES,Investment,STRATFORD ON AVON DISTRICT COUNCIL,30/06/2021,4720,G,None,Grants
"Ministry of Housing, Communities and Local Government",Homes England,CAP GRNTS TO LOCAL AUTHORITIES,Investment,PETERBOROUGH CITY COUNCIL,28/06/2021,37017,G,None,Grants
"Ministry of Housing, Communities and Local Government",Homes England,CAP GRNTS TO LOCAL AUTHORITIES,Investment,ROTHER DISTRICT COUNCIL,29/06/2021,21330,G,None,Grants
"Ministry of Housing, Communities and Local Government",Homes England,CAPITAL GRANTS TO RPs,Investment,TORVISTA HOMES LIMITED,02/06/2021,123750,L,None,Grants
"Ministry of Housing, Communities and Local Government",Homes England,CAPITAL GRANTS TO RPs,Investment,TORVISTA HOMES LIMITED,11/06/2021,35000,L,None,Grants
"Ministry of Housing, Communities and Local Government",Homes England,CAPITAL GRANTS TO RPs,Investment,TORVISTA HOMES LIMITED,01/06/2021,31500,L,None,Grants
"Ministry of Housing, Communities and Local Government",Homes England,CAPITAL GRANTS TO RPs,Investment,TORVISTA HOMES LIMITED,01/06/2021,3500,L,None,Grants
"Ministry of Housing, Communities and Local Government",Homes England,CAPITAL GRANTS TO RPs,Investment,TORVISTA HOMES LIMITED,01/06/2021,3500,L,None,Grants
"Ministry of Housing, Communities and Local Government",Homes England,CAPITAL GRANTS TO RPs,Investment,TORVISTA HOMES LIMITED,02/06/2021,3500,L,None,Grants
"Ministry of Housing, Communities and Local Government",Homes England,CAPITAL GRANTS TO RPs,Investment,TORVISTA HOMES LIMITED,02/06/2021,3500,L,None,Grants
"Ministry of Housing, Communities and Local Government",Homes England,CAPITAL GRANTS TO RPs,Investment,TORVISTA HOMES LIMITED,02/06/2021,3500,L,None,Grants
"Ministry of Housing, Communities and Local Government",Homes England,CAPITAL GRANTS TO RPs,Investment,TORVISTA HOMES LIMITED,02/06/2021,3500,L,None,Grants
"Ministry of Housing, Communities and Local Government",Homes England,CAPITAL GRANTS TO RPs,Investment,TORVISTA HOMES LIMITED,02/06/2021,3500,L,None,Grants
"Ministry of Housing, Communities and Local Government",Homes England,CAPITAL GRANTS TO RPs,Investment,TORVISTA HOMES LIMITED,11/06/2021,3500,L,None,Grants
"Ministry of Housing, Communities and Local Government",Homes England,CAPITAL GRANTS TO RPs,Investment,TORVISTA HOMES LIMITED,11/06/2021,3500,L,None,Grants
"Ministry of Housing, Communities and Local Government",Homes England,ESTATE GENERAL MAINTENANCE,Development,R D LANDSCAPES LTD,16/06/2021,3274.56,S,72101500,Building maintenance and repair services
"Ministry of Housing, Communities and Local Government",Homes England,ESTATE GENERAL MAINTENANCE,Development,R D LANDSCAPES LTD,16/06/2021,2183.04,S,72101500,Building maintenance and repair services
"Ministry of Housing, Communities and Local Government",Homes England,ESTATE GENERAL MAINTENANCE,Development,R D LANDSCAPES LTD,10/06/2021,853.2,S,72101500,Building maintenance and repair services
"Ministry of Housing, Communities and Local Government",Homes England,ESTATE GENERAL MAINTENANCE,Development,R D LANDSCAPES LTD,10/06/2021,568.8,S,72101500,Building maintenance and repair services
"Ministry of Housing, Communities and Local Government",Homes England,PROMOTIONAL EVENTS,Executive Office,OFFICE TEAM GROUP - IN ADMINISTRATION,03/06/2021,830,L,80141600,Sales and business promotion activities
"Ministry of Housing, Communities and Local Government",Homes England,ESTATE GENERAL MAINTENANCE,Development,IDVERDE LIMITED,16/06/2021,1047.36,L,72101500,Building maintenance and repair services
"Ministry of Housing, Communities and Local Government",Homes England,ESTATE GENERAL MAINTENANCE,Development,IDVERDE LIMITED,28/06/2021,1047.36,L,72101500,Building maintenance and repair services
"Ministry of Housing, Communities and Local Government",Homes England,SIGNS & NOTICEBOARDS,Development,LOWTHER FORESTRY GROUP,08/06/2021,1185.6,S,55121700,Signage
"Ministry of Housing, Communities and Local Government",Homes England,ESTATE GENERAL MAINTENANCE,MPP,LOWTHER FORESTRY GROUP,25/06/2021,768,S,72101500,Building maintenance and repair services
"Ministry of Housing, Communities and Local Government",Homes England,ESTATE GENERAL MAINTENANCE,MPP,LOWTHER FORESTRY GROUP,17/06/2021,482.77,S,72101500,Building maintenance and repair services
"Ministry of Housing, Communities and Local Government",Homes England,IRON MOUNTAIN-STORAGE,Corporate Resources,IRON MOUNTAIN (UK) LTD,21/06/2021,6421.85,L,78131800,Specialized warehousing and storage
"Ministry of Housing, Communities and Local Government",Homes England,POSTAGE/COURIERS,Development,MK LONDON LINK,07/06/2021,2930.54,S,78102200,Postal and small parcel and courier services
"Ministry of Housing, Communities and Local Government",Homes England,OTHER PROFESSIONAL FEES,Development,NETWORK RAIL INFRASTRUCTURE LTD,09/06/2021,12688.88,L,80131800,Real estate management services
"Ministry of Housing, Communities and Local Government",Homes England,TAXATION ADVICE  & PENALTIES,Corporate Resources,RSM UK AUDIT LLP,03/06/2021,4740,L,84111800,Taxation issues and preparation
"Ministry of Housing, Communities and Local Government",Homes England,TAXATION ADVICE  & PENALTIES,Corporate Resources,RSM UK AUDIT LLP,18/06/2021,3960,L,84111800,Taxation issues and preparation
"Ministry of Housing, Communities and Local Government",Homes England,TAXATION ADVICE  & PENALTIES,Corporate Resources,RSM UK AUDIT LLP,03/06/2021,1200,L,84111800,Taxation issues and preparation
"Ministry of Housing, Communities and Local Government",Homes England,LANDSCAPE MAINT-BUILT ESTATE,MPP,GROUND CONTROL LIMITED,10/06/2021,491.75,L,72102900,Facility maintenance and repair services
"Ministry of Housing, Communities and Local Government",Homes England,CONTRACT WORKS,Development,MGL DEMOLITION LTD,17/06/2021,7591.2,M,72101500,Building maintenance and repair services
"Ministry of Housing, Communities and Local Government",Homes England,RENT,Development,COVENTRY CITY COUNCIL,18/06/2021,81764.7,G,80131500,Lease and rental of property or building
"Ministry of Housing, Communities and Local Government",Homes England,INSURANCES,Development,COVENTRY CITY COUNCIL,18/06/2021,16482,G,80131500,Lease and rental of property or building
"Ministry of Housing, Communities and Local Government",Homes England,CAP GRNTS TO LOCAL AUTHORITIES,Investment,NORTH EAST LINCOLNSHIRE COUNCIL,29/06/2021,227684.42,G,None,Grants
"Ministry of Housing, Communities and Local Government",Homes England,CAP GRNTS TO LOCAL AUTHORITIES,Investment,SUNDERLAND CITY COUNCIL,29/06/2021,623237.33,G,None,Grants
"Ministry of Housing, Communities and Local Government",Homes England,CAP GRNTS TO LOCAL AUTHORITIES,Investment,CORNWALL COUNCIL,25/06/2021,380032.61,G,None,Grants
"Ministry of Housing, Communities and Local Government",Homes England,CAP GRNTS TO LOCAL AUTHORITIES,Investment,CORNWALL COUNCIL,28/06/2021,353762.16,G,None,Grants
"Ministry of Housing, Communities and Local Government",Homes England,CAP GRNTS TO LOCAL AUTHORITIES,Investment,CORNWALL COUNCIL,28/06/2021,126931.53,G,None,Grants
"Ministry of Housing, Communities and Local Government",Homes England,CAP GRNTS TO LOCAL AUTHORITIES,Investment,CUMBRIA COUNTY COUNCIL,25/06/2021,268135.93,G,None,Grants
"Ministry of Housing, Communities and Local Government",Homes England,PLANNING APPLICATIONS,Development,CAMBRIDGESHIRE COUNTY COUNCIL,22/06/2021,6510,G,80131800,Real estate management services
"Ministry of Housing, Communities and Local Government",Homes England,CAP GRNTS TO LOCAL AUTHORITIES,Investment,DEVON COUNTY COUNCIL,21/06/2021,513667.89,G,None,Grants
"Ministry of Housing, Communities and Local Government",Homes England,CAP GRNTS TO LOCAL AUTHORITIES,Investment,ESSEX COUNTY COUNCIL,25/06/2021,334251.03,G,None,Grants
"Ministry of Housing, Communities and Local Government",Homes England,CAP GRNTS TO LOCAL AUTHORITIES,Investment,CAMBRIDGE CITY COUNCIL,29/06/2021,974135.24,G,None,Grants
"Ministry of Housing, Communities and Local Government",Homes England,LEGAL FEES (PROGRAMME - CDEL),MPP,THE LAND TRUST,30/06/2021,3000,M,80121600,Business law services
"Ministry of Housing, Communities and Local Government",Homes England,CAP GRNTS TO LOCAL AUTHORITIES,Investment,MANCHESTER CITY COUNCIL,01/06/2021,34250,G,None,Grants
"Ministry of Housing, Communities and Local Government",Homes England,CAP GRNTS TO LOCAL AUTHORITIES,Investment,MANCHESTER CITY COUNCIL,07/06/2021,34250,G,None,Grants
"Ministry of Housing, Communities and Local Government",Homes England,CAP GRNTS TO LOCAL AUTHORITIES,Investment,MANCHESTER CITY COUNCIL,07/06/2021,34250,G,None,Grants
"Ministry of Housing, Communities and Local Government",Homes England,CAP GRNTS TO LOCAL AUTHORITIES,Investment,MANCHESTER CITY COUNCIL,07/06/2021,34250,G,None,Grants
"Ministry of Housing, Communities and Local Government",Homes England,CAP GRNTS TO LOCAL AUTHORITIES,Investment,MANCHESTER CITY COUNCIL,01/06/2021,3425,G,None,Grants
"Ministry of Housing, Communities and Local Government",Homes England,CAP GRNTS TO LOCAL AUTHORITIES,Investment,MANCHESTER CITY COUNCIL,07/06/2021,3425,G,None,Grants
"Ministry of Housing, Communities and Local Government",Homes England,CAP GRNTS TO LOCAL AUTHORITIES,Investment,MANCHESTER CITY COUNCIL,07/06/2021,3425,G,None,Grants
"Ministry of Housing, Communities and Local Government",Homes England,CAP GRNTS TO LOCAL AUTHORITIES,Investment,MANCHESTER CITY COUNCIL,10/06/2021,3425,G,None,Grants
"Ministry of Housing, Communities and Local Government",Homes England,CAP GRNTS TO LOCAL AUTHORITIES,Investment,MANCHESTER CITY COUNCIL,10/06/2021,3425,G,None,Grants
"Ministry of Housing, Communities and Local Government",Homes England,REV GRNTS TO LOCAL AUTHORITIES,Investment,OLDHAM COUNCIL,30/06/2021,2183.5,G,None,Grants
"Ministry of Housing, Communities and Local Government",Homes England,REV GRNTS TO LOCAL AUTHORITIES,Investment,OLDHAM COUNCIL,30/06/2021,1045.5,G,None,Grants
"Ministry of Housing, Communities and Local Government",Homes England,CAP GRNTS TO LOCAL AUTHORITIES,Investment,WIGAN COUNCIL,09/06/2021,20875,G,None,Grants
"Ministry of Housing, Communities and Local Government",Homes England,CAP GRNTS TO LOCAL AUTHORITIES,Investment,WIGAN COUNCIL,23/06/2021,2125,G,None,Grants
"Ministry of Housing, Communities and Local Government",Homes England,CAP GRNTS TO LOCAL AUTHORITIES,Investment,WIGAN COUNCIL,30/06/2021,1475,G,None,Grants
"Ministry of Housing, Communities and Local Government",Homes England,CAP GRNTS TO LOCAL AUTHORITIES,Investment,SOUTH TYNESIDE COUNCIL,21/06/2021,16250,G,None,Grants
"Ministry of Housing, Communities and Local Government",Homes England,CAP GRNTS TO LOCAL AUTHORITIES,Investment,SOUTH TYNESIDE COUNCIL,03/06/2021,14625,G,None,Grants
"Ministry of Housing, Communities and Local Government",Homes England,CAP GRNTS TO LOCAL AUTHORITIES,Investment,SOLIHULL METROPOLITAN BOROUGH COUNCIL,21/06/2021,25234,G,None,Grants
"Ministry of Housing, Communities and Local Government",Homes England,CAP GRNTS TO LOCAL AUTHORITIES,Investment,SOLIHULL METROPOLITAN BOROUGH COUNCIL,18/06/2021,22711,G,None,Grants
"Ministry of Housing, Communities and Local Government",Homes England,CAP GRNTS TO LOCAL AUTHORITIES,Investment,WOLVERHAMPTON CITY COUNCIL,07/06/2021,60000,G,None,Grants
"Ministry of Housing, Communities and Local Government",Homes England,CAP GRNTS TO LOCAL AUTHORITIES,Investment,LEEDS CITY COUNCIL,25/06/2021,22500,G,None,Grants
"Ministry of Housing, Communities and Local Government",Homes England,CAP GRNTS TO LOCAL AUTHORITIES,Investment,LEEDS CITY COUNCIL,25/06/2021,2500,G,None,Grants
"Ministry of Housing, Communities and Local Government",Homes England,CAP GRNTS TO LOCAL AUTHORITIES,Investment,LEEDS CITY COUNCIL,25/06/2021,2500,G,None,Grants
"Ministry of Housing, Communities and Local Government",Homes England,CAP GRNTS TO LOCAL AUTHORITIES,Investment,LEEDS CITY COUNCIL,25/06/2021,2500,G,None,Grants
"Ministry of Housing, Communities and Local Government",Homes England,CAP GRNTS TO LOCAL AUTHORITIES,Investment,LEEDS CITY COUNCIL,25/06/2021,2500,G,None,Grants
"Ministry of Housing, Communities and Local Government",Homes England,CAP GRNTS TO LOCAL AUTHORITIES,Investment,HARTLEPOOL BOROUGH COUNCIL,22/06/2021,9250,G,None,Grants
"Ministry of Housing, Communities and Local Government",Homes England,CAP GRNTS TO LOCAL AUTHORITIES,Investment,HARTLEPOOL BOROUGH COUNCIL,22/06/2021,9250,G,None,Grants
"Ministry of Housing, Communities and Local Government",Homes England,CAP GRNTS TO LOCAL AUTHORITIES,Investment,THE COUNTY COUNCIL OF DURHAM,01/06/2021,10500,G,None,Grants
"Ministry of Housing, Communities and Local Government",Homes England,CAP GRNTS TO LOCAL AUTHORITIES,Investment,NORTHUMBERLAND COUNTY COUNCIL,01/06/2021,7500,G,None,Grants
"Ministry of Housing, Communities and Local Government",Homes England,CAP GRNTS TO LOCAL AUTHORITIES,Investment,EAST RIDING OF YORKSHIRE COUNCIL,28/06/2021,14000,G,None,Grants
"Ministry of Housing, Communities and Local Government",Homes England,CAP GRNTS TO LOCAL AUTHORITIES,Investment,EAST RIDING OF YORKSHIRE COUNCIL,07/06/2021,12000,G,None,Grants
"Ministry of Housing, Communities and Local Government",Homes England,CAP GRNTS TO LOCAL AUTHORITIES,Investment,EAST RIDING OF YORKSHIRE COUNCIL,14/06/2021,10500,G,None,Grants
"Ministry of Housing, Communities and Local Government",Homes England,CAP GRNTS TO LOCAL AUTHORITIES,Investment,CITY OF YORK COUNCIL,01/06/2021,17000,G,None,Grants
"Ministry of Housing, Communities and Local Government",Homes England,CAP GRNTS TO LOCAL AUTHORITIES,Investment,DERBY CITY COUNCIL,30/06/2021,1289,G,None,Grants
"Ministry of Housing, Communities and Local Government",Homes England,CAP GRNTS TO LOCAL AUTHORITIES,Investment,DERBY CITY COUNCIL,30/06/2021,1289,G,None,Grants
"Ministry of Housing, Communities and Local Government",Homes England,CAP GRNTS TO LOCAL AUTHORITIES,Investment,DERBY CITY COUNCIL,30/06/2021,1289,G,None,Grants
"Ministry of Housing, Communities and Local Government",Homes England,CAP GRNTS TO LOCAL AUTHORITIES,Investment,DERBY CITY COUNCIL,30/06/2021,1289,G,None,Grants
"Ministry of Housing, Communities and Local Government",Homes England,CAP GRNTS TO LOCAL AUTHORITIES,Investment,DERBY CITY COUNCIL,30/06/2021,1289,G,None,Grants
"Ministry of Housing, Communities and Local Government",Homes England,CAP GRNTS TO LOCAL AUTHORITIES,Investment,DERBY CITY COUNCIL,30/06/2021,1289,G,None,Grants
"Ministry of Housing, Communities and Local Government",Homes England,CAP GRNTS TO LOCAL AUTHORITIES,Investment,DERBY CITY COUNCIL,30/06/2021,1289,G,None,Grants
"Ministry of Housing, Communities and Local Government",Homes England,CAP GRNTS TO LOCAL AUTHORITIES,Investment,DERBY CITY COUNCIL,30/06/2021,1289,G,None,Grants
"Ministry of Housing, Communities and Local Government",Homes England,CAP GRNTS TO LOCAL AUTHORITIES,Investment,DERBY CITY COUNCIL,30/06/2021,1289,G,None,Grants
"Ministry of Housing, Communities and Local Government",Homes England,CAP GRNTS TO LOCAL AUTHORITIES,Investment,DERBY CITY COUNCIL,30/06/2021,1289,G,None,Grants
"Ministry of Housing, Communities and Local Government",Homes England,CAP GRNTS TO LOCAL AUTHORITIES,Investment,DERBY CITY COUNCIL,30/06/2021,1289,G,None,Grants
"Ministry of Housing, Communities and Local Government",Homes England,CAP GRNTS TO LOCAL AUTHORITIES,Investment,DERBY CITY COUNCIL,30/06/2021,1289,G,None,Grants
"Ministry of Housing, Communities and Local Government",Homes England,CAP GRNTS TO LOCAL AUTHORITIES,Investment,DERBY CITY COUNCIL,30/06/2021,1289,G,None,Grants
"Ministry of Housing, Communities and Local Government",Homes England,CAP GRNTS TO LOCAL AUTHORITIES,Investment,DERBY CITY COUNCIL,30/06/2021,1289,G,None,Grants
"Ministry of Housing, Communities and Local Government",Homes England,CAP GRNTS TO LOCAL AUTHORITIES,Investment,DERBY CITY COUNCIL,30/06/2021,1289,G,None,Grants
"Ministry of Housing, Communities and Local Government",Homes England,CAP GRNTS TO LOCAL AUTHORITIES,Investment,DERBY CITY COUNCIL,30/06/2021,1289,G,None,Grants
"Ministry of Housing, Communities and Local Government",Homes England,CAP GRNTS TO LOCAL AUTHORITIES,Investment,DERBY CITY COUNCIL,30/06/2021,1289,G,None,Grants
"Ministry of Housing, Communities and Local Government",Homes England,CAP GRNTS TO LOCAL AUTHORITIES,Investment,DERBY CITY COUNCIL,30/06/2021,1289,G,None,Grants
"Ministry of Housing, Communities and Local Government",Homes England,CAP GRNTS TO LOCAL AUTHORITIES,Investment,DERBY CITY COUNCIL,30/06/2021,1289,G,None,Grants
"Ministry of Housing, Communities and Local Government",Homes England,CAP GRNTS TO LOCAL AUTHORITIES,Investment,DERBY CITY COUNCIL,30/06/2021,1289,G,None,Grants
"Ministry of Housing, Communities and Local Government",Homes England,CAP GRNTS TO LOCAL AUTHORITIES,Investment,NOTTINGHAM CITY COUNCIL,14/06/2021,21000,G,None,Grants
"Ministry of Housing, Communities and Local Government",Homes England,CAP GRNTS TO LOCAL AUTHORITIES,Investment,NOTTINGHAM CITY COUNCIL,14/06/2021,21000,G,None,Grants
"Ministry of Housing, Communities and Local Government",Homes England,CAP GRNTS TO LOCAL AUTHORITIES,Investment,NOTTINGHAM CITY COUNCIL,14/06/2021,21000,G,None,Grants
"Ministry of Housing, Communities and Local Government",Homes England,CAP GRNTS TO LOCAL AUTHORITIES,Investment,NOTTINGHAM CITY COUNCIL,21/06/2021,21000,G,None,Grants
"Ministry of Housing, Communities and Local Government",Homes England,CAP GRNTS TO LOCAL AUTHORITIES,Investment,NOTTINGHAM CITY COUNCIL,30/06/2021,21000,G,None,Grants
"Ministry of Housing, Communities and Local Government",Homes England,CAP GRNTS TO LOCAL AUTHORITIES,Investment,NOTTINGHAM CITY COUNCIL,30/06/2021,21000,G,None,Grants
"Ministry of Housing, Communities and Local Government",Homes England,CAP GRNTS TO LOCAL AUTHORITIES,Investment,NOTTINGHAM CITY COUNCIL,07/06/2021,18900,G,None,Grants
"Ministry of Housing, Communities and Local Government",Homes England,CAP GRNTS TO LOCAL AUTHORITIES,Investment,NOTTINGHAM CITY COUNCIL,07/06/2021,18900,G,None,Grants
"Ministry of Housing, Communities and Local Government",Homes England,CAP GRNTS TO LOCAL AUTHORITIES,Investment,NOTTINGHAM CITY COUNCIL,07/06/2021,18900,G,None,Grants
"Ministry of Housing, Communities and Local Government",Homes England,CAP GRNTS TO LOCAL AUTHORITIES,Investment,NOTTINGHAM CITY COUNCIL,14/06/2021,18900,G,None,Grants
"Ministry of Housing, Communities and Local Government",Homes England,CAP GRNTS TO LOCAL AUTHORITIES,Investment,NOTTINGHAM CITY COUNCIL,28/06/2021,18900,G,None,Grants
"Ministry of Housing, Communities and Local Government",Homes England,CAP GRNTS TO LOCAL AUTHORITIES,Investment,NOTTINGHAM CITY COUNCIL,28/06/2021,18900,G,None,Grants
"Ministry of Housing, Communities and Local Government",Homes England,CAP GRNTS TO LOCAL AUTHORITIES,Investment,BRISTOL CITY COUNCIL,24/06/2021,16575,G,None,Grants
"Ministry of Housing, Communities and Local Government",Homes England,CAP GRNTS TO LOCAL AUTHORITIES,Investment,BRISTOL CITY COUNCIL,29/06/2021,1750,G,None,Grants
"Ministry of Housing, Communities and Local Government",Homes England,CAP GRNTS TO LOCAL AUTHORITIES,Investment,BRISTOL CITY COUNCIL,29/06/2021,1750,G,None,Grants
"Ministry of Housing, Communities and Local Government",Homes England,CAP GRNTS TO LOCAL AUTHORITIES,Investment,BRISTOL CITY COUNCIL,29/06/2021,1750,G,None,Grants
"Ministry of Housing, Communities and Local Government",Homes England,CAP GRNTS TO LOCAL AUTHORITIES,Investment,BRISTOL CITY COUNCIL,29/06/2021,1750,G,None,Grants
"Ministry of Housing, Communities and Local Government",Homes England,CAP GRNTS TO LOCAL AUTHORITIES,Investment,NORTH SOMERSET COUNCIL,24/06/2021,144458.71,G,None,Grants
"Ministry of Housing, Communities and Local Government",Homes England,CAP GRNTS TO LOCAL AUTHORITIES,Investment,NORTH SOMERSET COUNCIL,22/06/2021,19705.55,G,None,Grants
"Ministry of Housing, Communities and Local Government",Homes England,CAP GRNTS TO LOCAL AUTHORITIES,Investment,SWINDON BOROUGH COUNCIL,04/06/2021,32500,G,None,Grants
"Ministry of Housing, Communities and Local Government",Homes England,CAP GRNTS TO LOCAL AUTHORITIES,Investment,SWINDON BOROUGH COUNCIL,08/06/2021,32500,G,None,Grants
"Ministry of Housing, Communities and Local Government",Homes England,CAP GRNTS TO LOCAL AUTHORITIES,Investment,SWINDON BOROUGH COUNCIL,08/06/2021,32500,G,None,Grants
"Ministry of Housing, Communities and Local Government",Homes England,CAP GRNTS TO LOCAL AUTHORITIES,Investment,SWINDON BOROUGH COUNCIL,03/06/2021,29250,G,None,Grants
"Ministry of Housing, Communities and Local Government",Homes England,CAP GRNTS TO LOCAL AUTHORITIES,Investment,SWINDON BOROUGH COUNCIL,04/06/2021,29250,G,None,Grants
"Ministry of Housing, Communities and Local Government",Homes England,CAP GRNTS TO LOCAL AUTHORITIES,Investment,SWINDON BOROUGH COUNCIL,04/06/2021,29250,G,None,Grants
"Ministry of Housing, Communities and Local Government",Homes England,CAP GRNTS TO LOCAL AUTHORITIES,Investment,SWINDON BOROUGH COUNCIL,08/06/2021,3250,G,None,Grants
"Ministry of Housing, Communities and Local Government",Homes England,CAP GRNTS TO LOCAL AUTHORITIES,Investment,SWINDON BOROUGH COUNCIL,09/06/2021,3250,G,None,Grants
"Ministry of Housing, Communities and Local Government",Homes England,CAP GRNTS TO LOCAL AUTHORITIES,Investment,SWINDON BOROUGH COUNCIL,09/06/2021,3250,G,None,Grants
"Ministry of Housing, Communities and Local Government",Homes England,CAP GRNTS TO LOCAL AUTHORITIES,Investment,CENTRAL BEDFORDSHIRE COUNCIL,18/06/2021,17500,G,None,Grants
"Ministry of Housing, Communities and Local Government",Homes England,CAP GRNTS TO LOCAL AUTHORITIES,Investment,CENTRAL BEDFORDSHIRE COUNCIL,18/06/2021,17500,G,None,Grants
"Ministry of Housing, Communities and Local Government",Homes England,CAP GRNTS TO LOCAL AUTHORITIES,Investment,CENTRAL BEDFORDSHIRE COUNCIL,07/06/2021,15750,G,None,Grants
"Ministry of Housing, Communities and Local Government",Homes England,CAP GRNTS TO LOCAL AUTHORITIES,Investment,CENTRAL BEDFORDSHIRE COUNCIL,07/06/2021,15750,G,None,Grants
"Ministry of Housing, Communities and Local Government",Homes England,CAP GRNTS TO LOCAL AUTHORITIES,Investment,CENTRAL BEDFORDSHIRE COUNCIL,18/06/2021,1750,G,None,Grants
"Ministry of Housing, Communities and Local Government",Homes England,CAP GRNTS TO LOCAL AUTHORITIES,Investment,CENTRAL BEDFORDSHIRE COUNCIL,18/06/2021,1750,G,None,Grants
"Ministry of Housing, Communities and Local Government",Homes England,CAP GRNTS TO LOCAL AUTHORITIES,Investment,SOUTHEND-ON-SEA BOROUGH COUNCIL,24/06/2021,40600,G,None,Grants
"Ministry of Housing, Communities and Local Government",Homes England,CAP GRNTS TO LOCAL AUTHORITIES,Investment,SOUTHEND-ON-SEA BOROUGH COUNCIL,24/06/2021,40600,G,None,Grants
"Ministry of Housing, Communities and Local Government",Homes England,CAP GRNTS TO LOCAL AUTHORITIES,Investment,SOUTHEND-ON-SEA BOROUGH COUNCIL,24/06/2021,40600,G,None,Grants
"Ministry of Housing, Communities and Local Government",Homes England,CAP GRNTS TO LOCAL AUTHORITIES,Investment,SOUTHEND-ON-SEA BOROUGH COUNCIL,24/06/2021,40600,G,None,Grants
"Ministry of Housing, Communities and Local Government",Homes England,CAP GRNTS TO LOCAL AUTHORITIES,Investment,SOUTHEND-ON-SEA BOROUGH COUNCIL,24/06/2021,40600,G,None,Grants
"Ministry of Housing, Communities and Local Government",Homes England,CAP GRNTS TO LOCAL AUTHORITIES,Investment,SOUTHEND-ON-SEA BOROUGH COUNCIL,25/06/2021,40600,G,None,Grants
"Ministry of Housing, Communities and Local Government",Homes England,CAP GRNTS TO LOCAL AUTHORITIES,Investment,SOUTHEND-ON-SEA BOROUGH COUNCIL,25/06/2021,40600,G,None,Grants
"Ministry of Housing, Communities and Local Government",Homes England,CAP GRNTS TO LOCAL AUTHORITIES,Investment,SOUTHEND-ON-SEA BOROUGH COUNCIL,07/06/2021,36540,G,None,Grants
"Ministry of Housing, Communities and Local Government",Homes England,CAP GRNTS TO LOCAL AUTHORITIES,Investment,SOUTHEND-ON-SEA BOROUGH COUNCIL,07/06/2021,36540,G,None,Grants
"Ministry of Housing, Communities and Local Government",Homes England,CAP GRNTS TO LOCAL AUTHORITIES,Investment,SOUTHEND-ON-SEA BOROUGH COUNCIL,07/06/2021,36540,G,None,Grants
"Ministry of Housing, Communities and Local Government",Homes England,CAP GRNTS TO LOCAL AUTHORITIES,Investment,SOUTHEND-ON-SEA BOROUGH COUNCIL,07/06/2021,36540,G,None,Grants
"Ministry of Housing, Communities and Local Government",Homes England,CAP GRNTS TO LOCAL AUTHORITIES,Investment,SOUTHEND-ON-SEA BOROUGH COUNCIL,07/06/2021,36540,G,None,Grants
"Ministry of Housing, Communities and Local Government",Homes England,CAP GRNTS TO LOCAL AUTHORITIES,Investment,SOUTHEND-ON-SEA BOROUGH COUNCIL,24/06/2021,36540,G,None,Grants
"Ministry of Housing, Communities and Local Government",Homes England,CAP GRNTS TO LOCAL AUTHORITIES,Investment,SOUTHEND-ON-SEA BOROUGH COUNCIL,24/06/2021,36540,G,None,Grants
"Ministry of Housing, Communities and Local Government",Homes England,CAP GRNTS TO LOCAL AUTHORITIES,Investment,SOUTHEND-ON-SEA BOROUGH COUNCIL,07/06/2021,4060,G,None,Grants
"Ministry of Housing, Communities and Local Government",Homes England,CAP GRNTS TO LOCAL AUTHORITIES,Investment,SOUTHEND-ON-SEA BOROUGH COUNCIL,07/06/2021,4060,G,None,Grants
"Ministry of Housing, Communities and Local Government",Homes England,CAP GRNTS TO LOCAL AUTHORITIES,Investment,SOUTHEND-ON-SEA BOROUGH COUNCIL,25/06/2021,4060,G,None,Grants
"Ministry of Housing, Communities and Local Government",Homes England,CAP GRNTS TO LOCAL AUTHORITIES,Investment,SOUTHEND-ON-SEA BOROUGH COUNCIL,25/06/2021,4060,G,None,Grants
"Ministry of Housing, Communities and Local Government",Homes England,CAP GRNTS TO LOCAL AUTHORITIES,Investment,SOUTHEND-ON-SEA BOROUGH COUNCIL,25/06/2021,4060,G,None,Grants
"Ministry of Housing, Communities and Local Government",Homes England,CAP GRNTS TO LOCAL AUTHORITIES,Investment,SOUTHEND-ON-SEA BOROUGH COUNCIL,25/06/2021,4060,G,None,Grants
"Ministry of Housing, Communities and Local Government",Homes England,CAP GRNTS TO LOCAL AUTHORITIES,Investment,MILTON KEYNES COUNCIL,02/06/2021,17054,G,None,Grants
"Ministry of Housing, Communities and Local Government",Homes England,CAP GRNTS TO LOCAL AUTHORITIES,Investment,MILTON KEYNES COUNCIL,28/06/2021,17054,G,None,Grants
"Ministry of Housing, Communities and Local Government",Homes England,CAP GRNTS TO LOCAL AUTHORITIES,Investment,MILTON KEYNES COUNCIL,28/06/2021,17054,G,None,Grants
"Ministry of Housing, Communities and Local Government",Homes England,CAP GRNTS TO LOCAL AUTHORITIES,Investment,MILTON KEYNES COUNCIL,29/06/2021,17054,G,None,Grants
"Ministry of Housing, Communities and Local Government",Homes England,CAP GRNTS TO LOCAL AUTHORITIES,Investment,MILTON KEYNES COUNCIL,30/06/2021,17054,G,None,Grants
"Ministry of Housing, Communities and Local Government",Homes England,CAP GRNTS TO LOCAL AUTHORITIES,Investment,MILTON KEYNES COUNCIL,30/06/2021,17054,G,None,Grants
"Ministry of Housing, Communities and Local Government",Homes England,CAP GRNTS TO LOCAL AUTHORITIES,Investment,MILTON KEYNES COUNCIL,01/06/2021,15348,G,None,Grants
"Ministry of Housing, Communities and Local Government",Homes England,CAP GRNTS TO LOCAL AUTHORITIES,Investment,MILTON KEYNES COUNCIL,28/06/2021,15348,G,None,Grants
"Ministry of Housing, Communities and Local Government",Homes England,CAP GRNTS TO LOCAL AUTHORITIES,Investment,MILTON KEYNES COUNCIL,29/06/2021,15348,G,None,Grants
"Ministry of Housing, Communities and Local Government",Homes England,CAP GRNTS TO LOCAL AUTHORITIES,Investment,MILTON KEYNES COUNCIL,29/06/2021,15348,G,None,Grants
"Ministry of Housing, Communities and Local Government",Homes England,CAP GRNTS TO LOCAL AUTHORITIES,Investment,MILTON KEYNES COUNCIL,29/06/2021,1705,G,None,Grants
"Ministry of Housing, Communities and Local Government",Homes England,CAP GRNTS TO LOCAL AUTHORITIES,Investment,MILTON KEYNES COUNCIL,29/06/2021,1705,G,None,Grants
"Ministry of Housing, Communities and Local Government",Homes England,CAP GRNTS TO LOCAL AUTHORITIES,Investment,MILTON KEYNES COUNCIL,30/06/2021,1705,G,None,Grants
"Ministry of Housing, Communities and Local Government",Homes England,CAP GRNTS TO LOCAL AUTHORITIES,Investment,BRIGHTON & HOVE CITY COUNCIL,09/06/2021,29200,G,None,Grants
"Ministry of Housing, Communities and Local Government",Homes England,CAP GRNTS TO LOCAL AUTHORITIES,Investment,BRIGHTON & HOVE CITY COUNCIL,09/06/2021,29200,G,None,Grants
"Ministry of Housing, Communities and Local Government",Homes England,CAP GRNTS TO LOCAL AUTHORITIES,Investment,BRIGHTON & HOVE CITY COUNCIL,09/06/2021,29200,G,None,Grants
"Ministry of Housing, Communities and Local Government",Homes England,CAP GRNTS TO LOCAL AUTHORITIES,Investment,BRIGHTON & HOVE CITY COUNCIL,09/06/2021,29200,G,None,Grants
"Ministry of Housing, Communities and Local Government",Homes England,CAP GRNTS TO LOCAL AUTHORITIES,Investment,BRIGHTON & HOVE CITY COUNCIL,09/06/2021,29200,G,None,Grants
"Ministry of Housing, Communities and Local Government",Homes England,CAP GRNTS TO LOCAL AUTHORITIES,Investment,BRIGHTON & HOVE CITY COUNCIL,09/06/2021,29200,G,None,Grants
"Ministry of Housing, Communities and Local Government",Homes England,CAP GRNTS TO LOCAL AUTHORITIES,Investment,BRIGHTON & HOVE CITY COUNCIL,09/06/2021,29200,G,None,Grants
"Ministry of Housing, Communities and Local Government",Homes England,CAP GRNTS TO LOCAL AUTHORITIES,Investment,BRIGHTON & HOVE CITY COUNCIL,09/06/2021,29200,G,None,Grants
"Ministry of Housing, Communities and Local Government",Homes England,CAP GRNTS TO LOCAL AUTHORITIES,Investment,BRIGHTON & HOVE CITY COUNCIL,09/06/2021,29200,G,None,Grants
"Ministry of Housing, Communities and Local Government",Homes England,CAP GRNTS TO LOCAL AUTHORITIES,Investment,BRIGHTON & HOVE CITY COUNCIL,17/06/2021,29200,G,None,Grants
"Ministry of Housing, Communities and Local Government",Homes England,CAP GRNTS TO LOCAL AUTHORITIES,Investment,BRIGHTON & HOVE CITY COUNCIL,21/06/2021,29200,G,None,Grants
"Ministry of Housing, Communities and Local Government",Homes England,CAP GRNTS TO LOCAL AUTHORITIES,Investment,BRIGHTON & HOVE CITY COUNCIL,21/06/2021,29200,G,None,Grants
"Ministry of Housing, Communities and Local Government",Homes England,CAP GRNTS TO LOCAL AUTHORITIES,Investment,BRIGHTON & HOVE CITY COUNCIL,23/06/2021,29200,G,None,Grants
"Ministry of Housing, Communities and Local Government",Homes England,CAP GRNTS TO LOCAL AUTHORITIES,Investment,BRIGHTON & HOVE CITY COUNCIL,09/06/2021,26280,G,None,Grants
"Ministry of Housing, Communities and Local Government",Homes England,CAP GRNTS TO LOCAL AUTHORITIES,Investment,BRIGHTON & HOVE CITY COUNCIL,17/06/2021,2920,G,None,Grants
"Ministry of Housing, Communities and Local Government",Homes England,CAP GRNTS TO LOCAL AUTHORITIES,Investment,BRIGHTON & HOVE CITY COUNCIL,25/06/2021,2920,G,None,Grants
"Ministry of Housing, Communities and Local Government",Homes England,PLANNING APPLICATIONS,MPP,WELWYN HATFIELD COUNCIL,01/06/2021,6000,G,80131800,Real estate management services
"Ministry of Housing, Communities and Local Government",Homes England,CAP GRNTS TO LOCAL AUTHORITIES,Investment,EXETER CITY COUNCIL,14/06/2021,44825,G,None,Grants
"Ministry of Housing, Communities and Local Government",Homes England,CAP GRNTS TO LOCAL AUTHORITIES,Investment,EXETER CITY COUNCIL,09/06/2021,40343,G,None,Grants
"Ministry of Housing, Communities and Local Government",Homes England,CAP GRNTS TO LOCAL AUTHORITIES,Investment,EXETER CITY COUNCIL,24/06/2021,4482,G,None,Grants
"Ministry of Housing, Communities and Local Government",Homes England,CAP GRNTS TO LOCAL AUTHORITIES,Investment,EXETER CITY COUNCIL,24/06/2021,4482,G,None,Grants
"Ministry of Housing, Communities and Local Government",Homes England,CAP GRNTS TO LOCAL AUTHORITIES,Investment,EXETER CITY COUNCIL,24/06/2021,4482,G,None,Grants
"Ministry of Housing, Communities and Local Government",Homes England,CAP GRNTS TO LOCAL AUTHORITIES,Investment,EXETER CITY COUNCIL,24/06/2021,4482,G,None,Grants
"Ministry of Housing, Communities and Local Government",Homes England,CAP GRNTS TO LOCAL AUTHORITIES,Investment,EXETER CITY COUNCIL,24/06/2021,4482,G,None,Grants
"Ministry of Housing, Communities and Local Government",Homes England,CAP GRNTS TO LOCAL AUTHORITIES,Investment,EASTBOURNE BOROUGH COUNCIL,22/06/2021,55658,G,None,Grants
"Ministry of Housing, Communities and Local Government",Homes England,CAP GRNTS TO LOCAL AUTHORITIES,Investment,EASTBOURNE BOROUGH COUNCIL,21/06/2021,50093,G,None,Grants
"Ministry of Housing, Communities and Local Government",Homes England,CAP GRNTS TO LOCAL AUTHORITIES,Investment,EASTBOURNE BOROUGH COUNCIL,28/06/2021,50093,G,None,Grants
"Ministry of Housing, Communities and Local Government",Homes England,CAP GRNTS TO LOCAL AUTHORITIES,Investment,STROUD DISTRICT COUNCIL,23/06/2021,25000,G,None,Grants
"Ministry of Housing, Communities and Local Government",Homes England,CAP GRNTS TO LOCAL AUTHORITIES,Investment,STROUD DISTRICT COUNCIL,21/06/2021,22500,G,None,Grants
"Ministry of Housing, Communities and Local Government",Homes England,CAP GRNTS TO LOCAL AUTHORITIES,Investment,STROUD DISTRICT COUNCIL,30/06/2021,22500,G,None,Grants
"Ministry of Housing, Communities and Local Government",Homes England,CAP GRNTS TO LOCAL AUTHORITIES,Investment,STROUD DISTRICT COUNCIL,24/06/2021,2500,G,None,Grants
"Ministry of Housing, Communities and Local Government",Homes England,CAP GRNTS TO LOCAL AUTHORITIES,Investment,DOVER DISTRICT COUNCIL,04/06/2021,82334,G,None,Grants
"Ministry of Housing, Communities and Local Government",Homes England,CAP GRNTS TO LOCAL AUTHORITIES,Investment,DOVER DISTRICT COUNCIL,17/06/2021,82334,G,None,Grants
"Ministry of Housing, Communities and Local Government",Homes England,CAP GRNTS TO LOCAL AUTHORITIES,Investment,DOVER DISTRICT COUNCIL,02/06/2021,43334,G,None,Grants
"Ministry of Housing, Communities and Local Government",Homes England,CAP GRNTS TO LOCAL AUTHORITIES,Investment,DOVER DISTRICT COUNCIL,01/06/2021,39000,G,None,Grants
"Ministry of Housing, Communities and Local Government",Homes England,CAP GRNTS TO LOCAL AUTHORITIES,Investment,CITY OF LINCOLN COUNCIL,10/06/2021,27472,G,None,Grants
"Ministry of Housing, Communities and Local Government",Homes England,CAP GRNTS TO LOCAL AUTHORITIES,Investment,CITY OF LINCOLN COUNCIL,15/06/2021,27471,G,None,Grants
"Ministry of Housing, Communities and Local Government",Homes England,CAP GRNTS TO LOCAL AUTHORITIES,Investment,CITY OF LINCOLN COUNCIL,15/06/2021,27471,G,None,Grants
"Ministry of Housing, Communities and Local Government",Homes England,CAP GRNTS TO LOCAL AUTHORITIES,Investment,CITY OF LINCOLN COUNCIL,17/06/2021,27471,G,None,Grants
"Ministry of Housing, Communities and Local Government",Homes England,CAP GRNTS TO LOCAL AUTHORITIES,Investment,CITY OF LINCOLN COUNCIL,17/06/2021,27471,G,None,Grants
"Ministry of Housing, Communities and Local Government",Homes England,CAP GRNTS TO LOCAL AUTHORITIES,Investment,CITY OF LINCOLN COUNCIL,01/06/2021,24723,G,None,Grants
"Ministry of Housing, Communities and Local Government",Homes England,CAP GRNTS TO LOCAL AUTHORITIES,Investment,CITY OF LINCOLN COUNCIL,04/06/2021,24723,G,None,Grants
"Ministry of Housing, Communities and Local Government",Homes England,CAP GRNTS TO LOCAL AUTHORITIES,Investment,CITY OF LINCOLN COUNCIL,07/06/2021,24723,G,None,Grants
"Ministry of Housing, Communities and Local Government",Homes England,CAP GRNTS TO LOCAL AUTHORITIES,Investment,CITY OF LINCOLN COUNCIL,04/06/2021,2747,G,None,Grants
"Ministry of Housing, Communities and Local Government",Homes England,CAP GRNTS TO LOCAL AUTHORITIES,Investment,CITY OF LINCOLN COUNCIL,04/06/2021,2747,G,None,Grants
"Ministry of Housing, Communities and Local Government",Homes England,CAP GRNTS TO LOCAL AUTHORITIES,Investment,CITY OF LINCOLN COUNCIL,07/06/2021,2747,G,None,Grants
"Ministry of Housing, Communities and Local Government",Homes England,CAP GRNTS TO LOCAL AUTHORITIES,Investment,NORTH KESTEVEN DISTRICT COUNCIL,14/06/2021,6750,G,None,Grants
"Ministry of Housing, Communities and Local Government",Homes England,CAP GRNTS TO LOCAL AUTHORITIES,Investment,WEST NORTHAMPTONSHIRE COUNCIL,30/06/2021,40669,G,None,Grants
"Ministry of Housing, Communities and Local Government",Homes England,CAP GRNTS TO LOCAL AUTHORITIES,Investment,WEST NORTHAMPTONSHIRE COUNCIL,21/06/2021,4518,G,None,Grants
"Ministry of Housing, Communities and Local Government",Homes England,CAP GRNTS TO LOCAL AUTHORITIES,Investment,WEST NORTHAMPTONSHIRE COUNCIL,21/06/2021,4518,G,None,Grants
"Ministry of Housing, Communities and Local Government",Homes England,CAP GRNTS TO LOCAL AUTHORITIES,Investment,WEST NORTHAMPTONSHIRE COUNCIL,21/06/2021,4518,G,None,Grants
"Ministry of Housing, Communities and Local Government",Homes England,CAP GRNTS TO LOCAL AUTHORITIES,Investment,WEST NORTHAMPTONSHIRE COUNCIL,21/06/2021,4518,G,None,Grants
"Ministry of Housing, Communities and Local Government",Homes England,CAP GRNTS TO LOCAL AUTHORITIES,Investment,WEST NORTHAMPTONSHIRE COUNCIL,21/06/2021,4518,G,None,Grants
"Ministry of Housing, Communities and Local Government",Homes England,CAP GRNTS TO LOCAL AUTHORITIES,Investment,WEST NORTHAMPTONSHIRE COUNCIL,21/06/2021,4518,G,None,Grants
"Ministry of Housing, Communities and Local Government",Homes England,CAP GRNTS TO LOCAL AUTHORITIES,Investment,WEST NORTHAMPTONSHIRE COUNCIL,21/06/2021,4518,G,None,Grants
"Ministry of Housing, Communities and Local Government",Homes England,CAP GRNTS TO LOCAL AUTHORITIES,Investment,WEST NORTHAMPTONSHIRE COUNCIL,21/06/2021,4518,G,None,Grants
"Ministry of Housing, Communities and Local Government",Homes England,CAP GRNTS TO LOCAL AUTHORITIES,Investment,WEST NORTHAMPTONSHIRE COUNCIL,21/06/2021,4518,G,None,Grants
"Ministry of Housing, Communities and Local Government",Homes England,CAP GRNTS TO LOCAL AUTHORITIES,Investment,WEST NORTHAMPTONSHIRE COUNCIL,21/06/2021,4518,G,None,Grants
"Ministry of Housing, Communities and Local Government",Homes England,CAP GRNTS TO LOCAL AUTHORITIES,Investment,WEST NORTHAMPTONSHIRE COUNCIL,21/06/2021,4518,G,None,Grants
"Ministry of Housing, Communities and Local Government",Homes England,CAP GRNTS TO LOCAL AUTHORITIES,Investment,WEST NORTHAMPTONSHIRE COUNCIL,21/06/2021,4518,G,None,Grants
"Ministry of Housing, Communities and Local Government",Homes England,CAP GRNTS TO LOCAL AUTHORITIES,Investment,WEST NORTHAMPTONSHIRE COUNCIL,21/06/2021,4518,G,None,Grants
"Ministry of Housing, Communities and Local Government",Homes England,CAP GRNTS TO LOCAL AUTHORITIES,Investment,WEST NORTHAMPTONSHIRE COUNCIL,30/06/2021,4518,G,None,Grants
"Ministry of Housing, Communities and Local Government",Homes England,CAP GRNTS TO LOCAL AUTHORITIES,Investment,THE COUNCIL OF THE BOROUGH OF HARROGATE,28/06/2021,3250,G,None,Grants
"Ministry of Housing, Communities and Local Government",Homes England,CAP GRNTS TO LOCAL AUTHORITIES,Investment,THE COUNCIL OF THE BOROUGH OF HARROGATE,28/06/2021,3250,G,None,Grants
"Ministry of Housing, Communities and Local Government",Homes England,CAP GRNTS TO LOCAL AUTHORITIES,Investment,OXFORD CITY COUNCIL,30/06/2021,15000,G,None,Grants
"Ministry of Housing, Communities and Local Government",Homes England,CAP GRNTS TO LOCAL AUTHORITIES,Investment,OXFORD CITY COUNCIL,30/06/2021,15000,G,None,Grants
"Ministry of Housing, Communities and Local Government",Homes England,CAP GRNTS TO LOCAL AUTHORITIES,Investment,OXFORD CITY COUNCIL,30/06/2021,15000,G,None,Grants
"Ministry of Housing, Communities and Local Government",Homes England,CAP GRNTS TO LOCAL AUTHORITIES,Investment,CANNOCK CHASE DISTRICT COUNCIL,14/06/2021,28750,G,None,Grants
"Ministry of Housing, Communities and Local Government",Homes England,CAP GRNTS TO LOCAL AUTHORITIES,Investment,CANNOCK CHASE DISTRICT COUNCIL,10/06/2021,25875,G,None,Grants
"Ministry of Housing, Communities and Local Government",Homes England,CAP GRNTS TO LOCAL AUTHORITIES,Investment,CANNOCK CHASE DISTRICT COUNCIL,22/06/2021,2875,G,None,Grants
"Ministry of Housing, Communities and Local Government",Homes England,CAP GRNTS TO LOCAL AUTHORITIES,Investment,WAVERLEY BOROUGH COUNCIL,07/06/2021,90250,G,None,Grants
"Ministry of Housing, Communities and Local Government",Homes England,CAP GRNTS TO LOCAL AUTHORITIES,Investment,WOKING BOROUGH COUNCIL,29/06/2021,78000,G,None,Grants
"Ministry of Housing, Communities and Local Government",Homes England,CAP GRNTS TO LOCAL AUTHORITIES,Investment,NUNEATON AND BEDWORTH BOROUGH COUNCIL,30/06/2021,90000,G,None,Grants
"Ministry of Housing, Communities and Local Government",Homes England,MISC PROFESSIONAL FEES,Development,ALLEN DADSWELL CONSTRUCTION CONSULTANTS,23/06/2021,5272.8,M,72101500,Building maintenance and repair services
"Ministry of Housing, Communities and Local Government",Homes England,MISC PROFESSIONAL FEES,Development,ALLEN DADSWELL CONSTRUCTION CONSULTANTS,23/06/2021,3661.2,M,72101500,Building maintenance and repair services
"Ministry of Housing, Communities and Local Government",Homes England,MISC PROFESSIONAL FEES,Development,ALLEN DADSWELL CONSTRUCTION CONSULTANTS,23/06/2021,2334,M,72101500,Building maintenance and repair services
"Ministry of Housing, Communities and Local Government",Homes England,MISC PROFESSIONAL FEES,Development,ALLEN DADSWELL CONSTRUCTION CONSULTANTS,23/06/2021,1110,M,72101500,Building maintenance and repair services
"Ministry of Housing, Communities and Local Government",Homes England,ST FUND LOANS ADDITIONS,Investment,AQUINNA DEVELOPMENTS LIMITED,17/06/2021,303575,S,None,Loans
"Ministry of Housing, Communities and Local Government",Homes England,PROJECT MANAGEMENT,MPP,ATKINS LTD,28/06/2021,43200,L,80101600,Project management
"Ministry of Housing, Communities and Local Government",Homes England,PLANNING APPLICATIONS,MPP,ATKINS LTD,09/06/2021,36094.03,L,80131800,Real estate management services
"Ministry of Housing, Communities and Local Government",Homes England,MISC PROFESSIONAL FEES,Development,ATKINS LTD,03/06/2021,12168,L,80101500,Business and corporate management consultation services
"Ministry of Housing, Communities and Local Government",Homes England,RESERVOIRS REPAIR & MAINT,Development,ATKINS LTD,14/06/2021,1080,L,83101500,Water and sewer utilities
"Ministry of Housing, Communities and Local Government",Homes England,CAR LEASING - HIRE CHARGES,Investment,ALPHABET (GB) LTD,08/06/2021,3290.38,L,25101500,Passenger motor vehicles
"Ministry of Housing, Communities and Local Government",Homes England,CAR LEASING - HIRE CHARGES,Investment,ALPHABET (GB) LTD,08/06/2021,2300.57,L,25101500,Passenger motor vehicles
"Ministry of Housing, Communities and Local Government",Homes England,CAR LEASING - HIRE CHARGES,Investment,ALPHABET (GB) LTD,08/06/2021,302.25,L,25101500,Passenger motor vehicles
"Ministry of Housing, Communities and Local Government",Homes England,CAR LEASING - HIRE CHARGES,Investment,ALPHABET (GB) LTD,08/06/2021,256.88,L,25101500,Passenger motor vehicles
"Ministry of Housing, Communities and Local Government",Homes England,MISC PROFESSIONAL FEES,MPP,ELIZABETH AINGE,04/06/2021,250,S,43232800,Network Management Software
"Ministry of Housing, Communities and Local Government",Homes England,CONTRACT WORKS,MPP,AE YATES LTD,11/06/2021,101037.85,M,72103300,Infrastructure maintenance and repair services
"Ministry of Housing, Communities and Local Government",Homes England,CONTRACT WORKS,Development,AUSTIN WILKINSON DEMOLITION LTD,07/06/2021,34200,S,72103300,Infrastructure maintenance and repair services
"Ministry of Housing, Communities and Local Government",Homes England,CAR LEASING - HIRE CHARGES,Investment,ARVAL UK LIMITED,10/06/2021,2915.56,L,25101500,Passenger motor vehicles
"Ministry of Housing, Communities and Local Government",Homes England,CAR LEASING - HIRE CHARGES,Investment,ARVAL UK LIMITED,10/06/2021,2195.84,L,25101500,Passenger motor vehicles
"Ministry of Housing, Communities and Local Government",Homes England,MANAGEMENT COSTS,MPP,ALLIUM ENVIRONMENTAL LTD,22/06/2021,288,S,80131800,Real estate management services
"Ministry of Housing, Communities and Local Government",Homes England,ST FUND LOANS ADDITIONS,Investment,ACROM HOLDINGS LTD & ACROM CONSTRUCTION,15/06/2021,40967,S,None,Loans
"Ministry of Housing, Communities and Local Government",Homes England,LANDSCAPE MAINT-BUILT ESTATE,Development,ALBEN LANDSCAPES LIMITED,15/06/2021,1569.6,S,72102900,Facility maintenance and repair services
"Ministry of Housing, Communities and Local Government",Homes England,ROADS AND CAR PARKS,Development,ALBEN LANDSCAPES LIMITED,15/06/2021,1044,S,72101500,Building maintenance and repair services
"Ministry of Housing, Communities and Local Government",Homes England,AGENCY STAFF,Corporate Resources,ALLEN LANE LIMITED,28/06/2021,9315,S,80111600,Temporary personnel services
"Ministry of Housing, Communities and Local Government",Homes England,AGENCY STAFF,Corporate Resources,ALLEN LANE LIMITED,28/06/2021,7590,S,80111600,Temporary personnel services
"Ministry of Housing, Communities and Local Government",Homes England,AGENCY STAFF,Corporate Resources,ALLEN LANE LIMITED,17/06/2021,6831,S,80111600,Temporary personnel services
"Ministry of Housing, Communities and Local Government",Homes England,AGENCY STAFF,Corporate Resources,ALLEN LANE LIMITED,11/06/2021,6451.5,S,80111600,Temporary personnel services
"Ministry of Housing, Communities and Local Government",Homes England,AGENCY STAFF,Corporate Resources,ALLEN LANE LIMITED,28/06/2021,5280,S,80111600,Temporary personnel services
"Ministry of Housing, Communities and Local Government",Homes England,AGENCY STAFF,Corporate Resources,ALLEN LANE LIMITED,17/06/2021,5082,S,80111600,Temporary personnel services
"Ministry of Housing, Communities and Local Government",Homes England,AGENCY STAFF,Corporate Resources,ALLEN LANE LIMITED,04/06/2021,4657.5,S,80111600,Temporary personnel services
"Ministry of Housing, Communities and Local Government",Homes England,AGENCY STAFF,Corporate Resources,ALLEN LANE LIMITED,17/06/2021,4657.5,S,80111600,Temporary personnel services
"Ministry of Housing, Communities and Local Government",Homes England,AGENCY STAFF,Corporate Resources,ALLEN LANE LIMITED,11/06/2021,4620,S,80111600,Temporary personnel services
"Ministry of Housing, Communities and Local Government",Homes England,AGENCY STAFF,Corporate Resources,ALLEN LANE LIMITED,04/06/2021,4290,S,80111600,Temporary personnel services
"Ministry of Housing, Communities and Local Government",Homes England,AGENCY STAFF,Corporate Resources,ALLEN LANE LIMITED,17/06/2021,4290,S,80111600,Temporary personnel services
"Ministry of Housing, Communities and Local Government",Homes England,AGENCY STAFF,Corporate Resources,ALLEN LANE LIMITED,04/06/2021,3795,S,80111600,Temporary personnel services
"Ministry of Housing, Communities and Local Government",Homes England,AGENCY STAFF,Corporate Resources,ALLEN LANE LIMITED,04/06/2021,3795,S,80111600,Temporary personnel services
"Ministry of Housing, Communities and Local Government",Homes England,AGENCY STAFF,Corporate Resources,ALLEN LANE LIMITED,04/06/2021,3795,S,80111600,Temporary personnel services
"Ministry of Housing, Communities and Local Government",Homes England,AGENCY STAFF,Corporate Resources,ALLEN LANE LIMITED,04/06/2021,3795,S,80111600,Temporary personnel services
"Ministry of Housing, Communities and Local Government",Homes England,AGENCY STAFF,Corporate Resources,ALLEN LANE LIMITED,04/06/2021,3795,S,80111600,Temporary personnel services
"Ministry of Housing, Communities and Local Government",Homes England,AGENCY STAFF,Corporate Resources,ALLEN LANE LIMITED,17/06/2021,3795,S,80111600,Temporary personnel services
"Ministry of Housing, Communities and Local Government",Homes England,AGENCY STAFF,Corporate Resources,ALLEN LANE LIMITED,17/06/2021,3795,S,80111600,Temporary personnel services
"Ministry of Housing, Communities and Local Government",Homes England,AGENCY STAFF,Corporate Resources,ALLEN LANE LIMITED,17/06/2021,3795,S,80111600,Temporary personnel services
"Ministry of Housing, Communities and Local Government",Homes England,AGENCY STAFF,Corporate Resources,ALLEN LANE LIMITED,17/06/2021,3795,S,80111600,Temporary personnel services
"Ministry of Housing, Communities and Local Government",Homes England,AGENCY STAFF,Corporate Resources,ALLEN LANE LIMITED,28/06/2021,3795,S,80111600,Temporary personnel services
"Ministry of Housing, Communities and Local Government",Homes England,AGENCY STAFF,Corporate Resources,ALLEN LANE LIMITED,28/06/2021,3795,S,80111600,Temporary personnel services
"Ministry of Housing, Communities and Local Government",Homes England,AGENCY STAFF,Corporate Resources,ALLEN LANE LIMITED,28/06/2021,3795,S,80111600,Temporary personnel services
"Ministry of Housing, Communities and Local Government",Homes England,AGENCY STAFF,Corporate Resources,ALLEN LANE LIMITED,04/06/2021,3630,S,80111600,Temporary personnel services
"Ministry of Housing, Communities and Local Government",Homes England,AGENCY STAFF,Corporate Resources,ALLEN LANE LIMITED,17/06/2021,3630,S,80111600,Temporary personnel services
"Ministry of Housing, Communities and Local Government",Homes England,AGENCY STAFF,Corporate Resources,ALLEN LANE LIMITED,28/06/2021,3630,S,80111600,Temporary personnel services
"Ministry of Housing, Communities and Local Government",Homes England,AGENCY STAFF,Corporate Resources,ALLEN LANE LIMITED,11/06/2021,3432,S,80111600,Temporary personnel services
"Ministry of Housing, Communities and Local Government",Homes England,AGENCY STAFF,Corporate Resources,ALLEN LANE LIMITED,04/06/2021,3267,S,80111600,Temporary personnel services
"Ministry of Housing, Communities and Local Government",Homes England,AGENCY STAFF,Corporate Resources,ALLEN LANE LIMITED,11/06/2021,3036,S,80111600,Temporary personnel services
"Ministry of Housing, Communities and Local Government",Homes England,AGENCY STAFF,Corporate Resources,ALLEN LANE LIMITED,11/06/2021,3036,S,80111600,Temporary personnel services
"Ministry of Housing, Communities and Local Government",Homes England,AGENCY STAFF,Corporate Resources,ALLEN LANE LIMITED,11/06/2021,3036,S,80111600,Temporary personnel services
"Ministry of Housing, Communities and Local Government",Homes England,AGENCY STAFF,Corporate Resources,ALLEN LANE LIMITED,28/06/2021,3036,S,80111600,Temporary personnel services
"Ministry of Housing, Communities and Local Government",Homes England,AGENCY STAFF,Corporate Resources,ALLEN LANE LIMITED,28/06/2021,3036,S,80111600,Temporary personnel services
"Ministry of Housing, Communities and Local Government",Homes England,AGENCY STAFF,Corporate Resources,ALLEN LANE LIMITED,11/06/2021,2904,S,80111600,Temporary personnel services
"Ministry of Housing, Communities and Local Government",Homes England,AGENCY STAFF,Corporate Resources,ALLEN LANE LIMITED,28/06/2021,2904,S,80111600,Temporary personnel services
"Ministry of Housing, Communities and Local Government",Homes England,ESTATE GENERAL MAINTENANCE,Development,AIREDALE FORESTRY,15/06/2021,827.98,S,72101500,Building maintenance and repair services
"Ministry of Housing, Communities and Local Government",Homes England,ESTATE GENERAL MAINTENANCE,Development,AIREDALE FORESTRY,07/06/2021,723.07,S,72101500,Building maintenance and repair services
"Ministry of Housing, Communities and Local Government",Homes England,ESTATE GENERAL MAINTENANCE,Development,AIREDALE FORESTRY,16/06/2021,723.07,S,72101500,Building maintenance and repair services
"Ministry of Housing, Communities and Local Government",Homes England,ESTATE GENERAL MAINTENANCE,MPP,AIREDALE FORESTRY,11/06/2021,595.09,S,72101500,Building maintenance and repair services
"Ministry of Housing, Communities and Local Government",Homes England,ESTATE GENERAL MAINTENANCE,MPP,AIREDALE FORESTRY,11/06/2021,535.88,S,72101500,Building maintenance and repair services
"Ministry of Housing, Communities and Local Government",Homes England,LANDSCAPE MAINT-BUILT ESTATE,Development,AIREDALE FORESTRY,11/06/2021,438.97,S,72102900,Facility maintenance and repair services
"Ministry of Housing, Communities and Local Government",Homes England,ESTATE GENERAL MAINTENANCE,Development,AIREDALE FORESTRY,15/06/2021,400.07,S,72101500,Building maintenance and repair services
"Ministry of Housing, Communities and Local Government",Homes England,ESTATE GENERAL MAINTENANCE,Development,AIREDALE FORESTRY,11/06/2021,278.22,S,72101500,Building maintenance and repair services
"Ministry of Housing, Communities and Local Government",Homes England,CAR LEASING - HIRE CHARGES,MPP,ALD AUTOMOTIVE,08/06/2021,260.95,L,25101500,Passenger motor vehicles
"Ministry of Housing, Communities and Local Government",Homes England,PROF FEES LOANS CAPITALISED,Investment,ASHFORDS,03/06/2021,5400,L,80131800,Real estate management services
"Ministry of Housing, Communities and Local Government",Homes England,DISPOSAL FEES - LEGAL,MPP,ASHFORDS,03/06/2021,664.8,L,80121600,Business law services
"Ministry of Housing, Communities and Local Government",Homes England,SECURITY,Development,ADT FIRE AND SECURITY PLC,07/06/2021,617.41,L,92121500,Guard services
"Ministry of Housing, Communities and Local Government",Homes England,SECURITY,Development,ADT FIRE AND SECURITY PLC,07/06/2021,493.42,L,92121500,Guard services
"Ministry of Housing, Communities and Local Government",Homes England,CAR LEASING - HIRE CHARGES,Development,ARNOLD CLARK FINANCE LIMITED,24/06/2021,2638.07,L,25101500,Passenger motor vehicles
"Ministry of Housing, Communities and Local Government",Homes England,CAR LEASING - HIRE CHARGES,Development,ARNOLD CLARK FINANCE LIMITED,10/06/2021,2615.83,L,25101500,Passenger motor vehicles
"Ministry of Housing, Communities and Local Government",Homes England,CAR LEASING - HIRE CHARGES,MPP,ARNOLD CLARK FINANCE LIMITED,24/06/2021,2540.52,L,25101500,Passenger motor vehicles
"Ministry of Housing, Communities and Local Government",Homes England,CAR LEASING - HIRE CHARGES,Development,ARNOLD CLARK FINANCE LIMITED,10/06/2021,2294.14,L,25101500,Passenger motor vehicles
"Ministry of Housing, Communities and Local Government",Homes England,CAR LEASING - HIRE CHARGES,MPP,ARNOLD CLARK FINANCE LIMITED,24/06/2021,2171.73,L,25101500,Passenger motor vehicles
"Ministry of Housing, Communities and Local Government",Homes England,CAR LEASING - HIRE CHARGES,Development,ARNOLD CLARK FINANCE LIMITED,24/06/2021,2118.1,L,25101500,Passenger motor vehicles
"Ministry of Housing, Communities and Local Government",Homes England,CAR LEASING - HIRE CHARGES,Investment,ARNOLD CLARK FINANCE LIMITED,24/06/2021,2110.25,L,25101500,Passenger motor vehicles
"Ministry of Housing, Communities and Local Government",Homes England,CAR LEASING - HIRE CHARGES,Investment,ARNOLD CLARK FINANCE LIMITED,24/06/2021,1891.65,L,25101500,Passenger motor vehicles
"Ministry of Housing, Communities and Local Government",Homes England,CAR LEASING - HIRE CHARGES,Development,ARNOLD CLARK FINANCE LIMITED,10/06/2021,311.78,L,25101500,Passenger motor vehicles
"Ministry of Housing, Communities and Local Government",Homes England,CAR LEASING - HIRE CHARGES,Development,ARNOLD CLARK FINANCE LIMITED,07/06/2021,311.77,L,25101500,Passenger motor vehicles
"Ministry of Housing, Communities and Local Government",Homes England,CAR LEASING - HIRE CHARGES,Investment,ARNOLD CLARK FINANCE LIMITED,10/06/2021,304.69,L,25101500,Passenger motor vehicles
"Ministry of Housing, Communities and Local Government",Homes England,CAR LEASING - HIRE CHARGES,Investment,ARNOLD CLARK FINANCE LIMITED,07/06/2021,304.68,L,25101500,Passenger motor vehicles
"Ministry of Housing, Communities and Local Government",Homes England,CAR LEASING - HIRE CHARGES,Development,ARNOLD CLARK FINANCE LIMITED,07/06/2021,301.91,L,25101500,Passenger motor vehicles
"Ministry of Housing, Communities and Local Government",Homes England,CAR LEASING - HIRE CHARGES,Development,ARNOLD CLARK FINANCE LIMITED,07/06/2021,284.99,L,25101500,Passenger motor vehicles
"Ministry of Housing, Communities and Local Government",Homes England,CAR LEASING - HIRE CHARGES,Investment,ARNOLD CLARK FINANCE LIMITED,07/06/2021,267.54,L,25101500,Passenger motor vehicles
"Ministry of Housing, Communities and Local Government",Homes England,CAR LEASING - HIRE CHARGES,Development,ARNOLD CLARK FINANCE LIMITED,07/06/2021,254.11,L,25101500,Passenger motor vehicles
"Ministry of Housing, Communities and Local Government",Homes England,CAR LEASING - HIRE CHARGES,Development,ARNOLD CLARK FINANCE LIMITED,10/06/2021,254.11,L,25101500,Passenger motor vehicles
"Ministry of Housing, Communities and Local Government",Homes England,LEGAL FEES (PROGRAMME - RDEL),Investment,BERWIN LEIGHTON PAISNER,24/06/2021,23282.4,L,80121600,Business law services
"Ministry of Housing, Communities and Local Government",Homes England,AHP HOMEBUY AGENTS FEES,Investment,BERWIN LEIGHTON PAISNER,25/06/2021,3960,L,80121600,Business law services
"Ministry of Housing, Communities and Local Government",Homes England,LEGAL FEES (PROGRAMME - RDEL),Development,BERWIN LEIGHTON PAISNER,14/06/2021,3600,L,80121600,Business law services
"Ministry of Housing, Communities and Local Government",Homes England,LEGAL FEES (PROGRAMME - RDEL),MPP,BERWIN LEIGHTON PAISNER,23/06/2021,2454.96,L,80121600,Business law services
"Ministry of Housing, Communities and Local Government",Homes England,LEGAL FEES (PROGRAMME - RDEL),Investment,BERWIN LEIGHTON PAISNER,29/06/2021,2400,L,80121600,Business law services
"Ministry of Housing, Communities and Local Government",Homes England,DISPOSAL FEES - LEGAL,MPP,BERWIN LEIGHTON PAISNER,15/06/2021,769.2,L,80121600,Business law services
"Ministry of Housing, Communities and Local Government",Homes England,LEGAL FEES (PROGRAMME - RDEL),MPP,BERWIN LEIGHTON PAISNER,10/06/2021,514.8,L,80121600,Business law services
"Ministry of Housing, Communities and Local Government",Homes England,MISC PROFESSIONAL FEES,Service Design And Transformation,BJSS LIMITED,15/06/2021,155931.3,L,81112000,Data Services
"Ministry of Housing, Communities and Local Government",Homes England,DISPOSAL FEES - LEGAL,MPP,BROWNE JACOBSON LLP,28/06/2021,9931.2,L,80121600,Business law services
"Ministry of Housing, Communities and Local Government",Homes England,LEGAL FEES (PROGRAMME - CDEL),MPP,BROWNE JACOBSON LLP,07/06/2021,9600,L,80121600,Business law services
"Ministry of Housing, Communities and Local Government",Homes England,DISPOSAL FEES - LEGAL,Development,BROWNE JACOBSON LLP,02/06/2021,8400,L,80121600,Business law services
"Ministry of Housing, Communities and Local Government",Homes England,LEGAL FEES (PROGRAMME - RDEL),Development,BROWNE JACOBSON LLP,29/06/2021,4800,L,80121600,Business law services
"Ministry of Housing, Communities and Local Government",Homes England,LEGAL FEES (PROGRAMME - RDEL),Development,BROWNE JACOBSON LLP,10/06/2021,3600,L,80121600,Business law services
"Ministry of Housing, Communities and Local Government",Homes England,DISPOSAL FEES - LEGAL,MPP,BROWNE JACOBSON LLP,30/06/2021,2913.6,L,80121600,Business law services
"Ministry of Housing, Communities and Local Government",Homes England,DISPOSAL FEES - LEGAL,MPP,BROWNE JACOBSON LLP,02/06/2021,2700,L,80121600,Business law services
"Ministry of Housing, Communities and Local Government",Homes England,LEGAL FEES (PROGRAMME - RDEL),MPP,BROWNE JACOBSON LLP,30/06/2021,2587.2,L,80121600,Business law services
"Ministry of Housing, Communities and Local Government",Homes England,LEGAL FEES (PROGRAMME - RDEL),MPP,BROWNE JACOBSON LLP,15/06/2021,2407.2,L,80121600,Business law services
"Ministry of Housing, Communities and Local Government",Homes England,LEGAL FEES (PROGRAMME - CDEL),MPP,BROWNE JACOBSON LLP,07/06/2021,2400,L,80121600,Business law services
"Ministry of Housing, Communities and Local Government",Homes England,DISPOSAL FEES - LEGAL,MPP,BROWNE JACOBSON LLP,09/06/2021,2160,L,80121600,Business law services
"Ministry of Housing, Communities and Local Government",Homes England,LEGAL FEES (PROGRAMME - RDEL),Development,BROWNE JACOBSON LLP,04/06/2021,1818,L,80121600,Business law services
"Ministry of Housing, Communities and Local Government",Homes England,LEGAL FEES (PROGRAMME - RDEL),MPP,BROWNE JACOBSON LLP,04/06/2021,1818,L,80121600,Business law services
"Ministry of Housing, Communities and Local Government",Homes England,LEGAL FEES (PROGRAMME - RDEL),Development,BROWNE JACOBSON LLP,10/06/2021,1818,L,80121600,Business law services
"Ministry of Housing, Communities and Local Government",Homes England,LEGAL FEES (PROGRAMME - RDEL),Development,BROWNE JACOBSON LLP,28/06/2021,1800,L,80121600,Business law services
"Ministry of Housing, Communities and Local Government",Homes England,DISPOSAL FEES - LEGAL,Development,BROWNE JACOBSON LLP,03/06/2021,1554,L,80121600,Business law services
"Ministry of Housing, Communities and Local Government",Homes England,LEGAL FEES (PROGRAMME - RDEL),Development,BROWNE JACOBSON LLP,24/06/2021,1200,L,80121600,Business law services
"Ministry of Housing, Communities and Local Government",Homes England,LEGAL FEES (PROGRAMME - RDEL),Development,BROWNE JACOBSON LLP,24/06/2021,1200,L,80121600,Business law services
"Ministry of Housing, Communities and Local Government",Homes England,DISPOSAL FEES - LEGAL,MPP,BROWNE JACOBSON LLP,28/06/2021,1200,L,80121600,Business law services
"Ministry of Housing, Communities and Local Government",Homes England,LEGAL FEES (PROGRAMME - CDEL),Development,BROWNE JACOBSON LLP,02/06/2021,1140,L,80121600,Business law services
"Ministry of Housing, Communities and Local Government",Homes England,DISPOSAL FEES - LEGAL,MPP,BROWNE JACOBSON LLP,08/06/2021,900,L,80121600,Business law services
"Ministry of Housing, Communities and Local Government",Homes England,LEGAL FEES (PROGRAMME - RDEL),MPP,BROWNE JACOBSON LLP,30/06/2021,588,L,80121600,Business law services
"Ministry of Housing, Communities and Local Government",Homes England,LEGAL FEES (PROGRAMME - RDEL),Development,BROWNE JACOBSON LLP,07/06/2021,480,L,80121600,Business law services
"Ministry of Housing, Communities and Local Government",Homes England,LEGAL FEES (PROGRAMME - CDEL),MPP,BROWNE JACOBSON LLP,03/06/2021,288,L,80121600,Business law services
"Ministry of Housing, Communities and Local Government",Homes England,RI - MONIITORING SURVEYOR FEES,Investment,BUILDING DESIGN PARTNERSHIP,08/06/2021,2310,L,81101500,Civil Engineering
"Ministry of Housing, Communities and Local Government",Homes England,RI - MONIITORING SURVEYOR FEES,Investment,BUILDING DESIGN PARTNERSHIP,14/06/2021,2310,L,81101500,Civil Engineering
"Ministry of Housing, Communities and Local Government",Homes England,CAP GRNTS TO LOCAL AUTHORITIES,Investment,BUCKINGHAMSHIRE COUNTY COUNCIL,25/06/2021,1036231.1,G,None,Grants
"Ministry of Housing, Communities and Local Government",Homes England,CAP GRNTS TO LOCAL AUTHORITIES,Investment,BUCKINGHAMSHIRE COUNTY COUNCIL,25/06/2021,68814.53,G,None,Grants
"Ministry of Housing, Communities and Local Government",Homes England,ST FUND LOANS ADDITIONS,Investment,BROADFIELD HOMES LTD,07/06/2021,56686.17,L,None,Loans
"Ministry of Housing, Communities and Local Government",Homes England,OTHER PROFESSIONAL FEES,MPP,STANTEC UK LIMITED,10/06/2021,52551.25,L,80131800,Real estate management services
"Ministry of Housing, Communities and Local Government",Homes England,ENGINEERING FEES,Development,STANTEC UK LIMITED,30/06/2021,40607.77,L,81101500,Civil Engineering
"Ministry of Housing, Communities and Local Government",Homes England,ENGINEERING FEES,Development,STANTEC UK LIMITED,11/06/2021,28881.6,L,81101500,Civil Engineering
"Ministry of Housing, Communities and Local Government",Homes England,ENGINEERING CONSULTANTS,MPP,STANTEC UK LIMITED,15/06/2021,9780,L,81101500,Civil Engineering
"Ministry of Housing, Communities and Local Government",Homes England,PROF FEES LOANS CAPITALISED,Investment,STANTEC UK LIMITED,10/06/2021,3000,L,80131800,Real estate management services
"Ministry of Housing, Communities and Local Government",Homes England,OTHER PROFESSIONAL FEES,MPP,STANTEC UK LIMITED,07/06/2021,2064,L,80131800,Real estate management services
"Ministry of Housing, Communities and Local Government",Homes England,RI - MONIITORING SURVEYOR FEES,Investment,STANTEC UK LIMITED,15/06/2021,1860,L,81101500,Civil Engineering
"Ministry of Housing, Communities and Local Government",Homes England,ENGINEERING FEES,Development,STANTEC UK LIMITED,08/06/2021,1800,L,81101500,Civil Engineering
"Ministry of Housing, Communities and Local Government",Homes England,ENGINEERING CONSULTANTS,Development,STANTEC UK LIMITED,08/06/2021,1800,L,81101500,Civil Engineering
"Ministry of Housing, Communities and Local Government",Homes England,ENGINEERING FEES,Development,STANTEC UK LIMITED,15/06/2021,1800,L,81101500,Civil Engineering
"Ministry of Housing, Communities and Local Government",Homes England,PROJECT MANAGEMENT,MPP,STANTEC UK LIMITED,11/06/2021,1635,L,80101600,Project management
"Ministry of Housing, Communities and Local Government",Homes England,AGENCY STAFF,Development,BADENOCH & CLARK,01/06/2021,2796,L,80111600,Temporary personnel services
"Ministry of Housing, Communities and Local Government",Homes England,AGENCY STAFF,Development,BADENOCH & CLARK,01/06/2021,2796,L,80111600,Temporary personnel services
"Ministry of Housing, Communities and Local Government",Homes England,AGENCY STAFF,Development,BADENOCH & CLARK,01/06/2021,2796,L,80111600,Temporary personnel services
"Ministry of Housing, Communities and Local Government",Homes England,AGENCY STAFF,Development,BADENOCH & CLARK,07/06/2021,2796,L,80111600,Temporary personnel services
"Ministry of Housing, Communities and Local Government",Homes England,AGENCY STAFF,Development,BADENOCH & CLARK,22/06/2021,2446.5,L,80111600,Temporary personnel services
"Ministry of Housing, Communities and Local Government",Homes England,AGENCY STAFF,Development,BADENOCH & CLARK,22/06/2021,2446.5,L,80111600,Temporary personnel services
"Ministry of Housing, Communities and Local Government",Homes England,AGENCY STAFF,Development,BADENOCH & CLARK,01/06/2021,2236.8,L,80111600,Temporary personnel services
"Ministry of Housing, Communities and Local Government",Homes England,AGENCY STAFF,Development,BADENOCH & CLARK,07/06/2021,2236.8,L,80111600,Temporary personnel services
"Ministry of Housing, Communities and Local Government",Homes England,AGENCY STAFF,Development,BADENOCH & CLARK,03/06/2021,2097,L,80111600,Temporary personnel services
"Ministry of Housing, Communities and Local Government",Homes England,AGENCY STAFF,Development,BADENOCH & CLARK,10/06/2021,1677.6,L,80111600,Temporary personnel services
"Ministry of Housing, Communities and Local Government",Homes England,AGENCY STAFF,Development,BADENOCH & CLARK,22/06/2021,1467.9,L,80111600,Temporary personnel services
"Ministry of Housing, Communities and Local Government",Homes England,PROJECT MANAGEMENT,Development,RIDER LEVETT BUCKNALL UK LTD,03/06/2021,5640,L,80101600,Project management
"Ministry of Housing, Communities and Local Government",Homes England,HOME WORKERS,Corporate Resources,BRITISH TELECOMMUNICATIONS PLC,30/06/2021,769.66,L,83111500,Local and long distance telephone communications
"Ministry of Housing, Communities and Local Government",Homes England,MOBILES,Corporate Resources,BRITISH TELECOMMUNICATIONS PLC,02/06/2021,401.82,L,83111500,Local and long distance telephone communications
"Ministry of Housing, Communities and Local Government",Homes England,CAP GRNTS TO LOCAL AUTHORITIES,Investment,BARNSLEY METROPOLITAN BOROUGH COUNCIL,30/06/2021,1200000,G,None,Grants
"Ministry of Housing, Communities and Local Government",Homes England,BUILDINGS-GAS,MPP,BRITISH GAS BUSINESS,16/06/2021,487.35,L,83101600,Oil and gas utilities
"Ministry of Housing, Communities and Local Government",Homes England,L&OD STRATEGIC - HR USE ONLY,Corporate Resources,BRAVE PRODUCTIONS LIMITED,03/06/2021,9120,S,86101800,In service training and manpower development
"Ministry of Housing, Communities and Local Government",Homes England,MISC PROFESSIONAL FEES,Development,BRYAN LECOCHE LTD,02/06/2021,2005.38,S,92121500,Guard services
"Ministry of Housing, Communities and Local Government",Homes England,CONTRIBUTIONS,Development,BROWNE JACOBSON,22/06/2021,2176992.38,L,None,Contributions
"Ministry of Housing, Communities and Local Government",Homes England,CAP GRNTS TO LOCAL AUTHORITIES,Investment,BRISTOL CITY COUNCIL,29/06/2021,1005171.09,G,None,Grants
"Ministry of Housing, Communities and Local Government",Homes England,CAP GRNTS TO LOCAL AUTHORITIES,Investment,BRISTOL CITY COUNCIL,28/06/2021,482612,G,None,Grants
"Ministry of Housing, Communities and Local Government",Homes England,OTHER LTF LOAN ADDITIONS,Investment,BL CW Developments Limited,28/06/2021,1424320.22,S,None,Loans
"Ministry of Housing, Communities and Local Government",Homes England,ST FUND LOANS ADDITIONS,Investment,BRYNKINALT FARMING LTD,02/06/2021,304498,L,None,Loans
"Ministry of Housing, Communities and Local Government",Homes England,ST FUND LOANS ADDITIONS,Investment,BUCHANAN ESTATES LIMITED,29/06/2021,97825.06,S,None,Loans
"Ministry of Housing, Communities and Local Government",Homes England,ST FUND LOANS ADDITIONS,Investment,BROADLEAF NORWICH ROAD LIMITED,15/06/2021,225169.01,L,None,Loans
"Ministry of Housing, Communities and Local Government",Homes England,ST FUND LOANS ADDITIONS,Investment,BARCLAYS BANK PLC,14/06/2021,660,L,None,Loans
"Ministry of Housing, Communities and Local Government",Homes England,ST FUND LOANS ADDITIONS,Investment,BERI PROPERTIES LIMITED,23/06/2021,65499.99,S,None,Loans
"Ministry of Housing, Communities and Local Government",Homes England,ST FUND LOANS ADDITIONS,Investment,BE21 LTD,10/06/2021,133316,L,None,Loans
"Ministry of Housing, Communities and Local Government",Homes England,MISC PROFESSIONAL FEES,Investment,BOSTON HALE LTD,09/06/2021,81768.96,S,80111600,Temporary personnel services
"Ministry of Housing, Communities and Local Government",Homes England,MISC PROFESSIONAL FEES,Investment,BOSTON HALE LTD,11/06/2021,65297.64,S,80111600,Temporary personnel services
"Ministry of Housing, Communities and Local Government",Homes England,ST FUND LOANS ADDITIONS,Investment,BELFIELD KINGSKERSWELL LLP,11/06/2021,105000,S,None,Loans
"Ministry of Housing, Communities and Local Government",Homes England,LT FUND EQUITY (PS) ADDITIONS,Investment,BARKING RIVERSIDE LIMITED,23/06/2021,1467008.32,M,None,Loans
"Ministry of Housing, Communities and Local Government",Homes England,ESTATE GENERAL MAINTENANCE,MPP,BIRMINGHAM CITY COUNCIL,24/06/2021,386.4,G,72101500,Building maintenance and repair services
"Ministry of Housing, Communities and Local Government",Homes England,LT FUND LOANS (PS) ADDITIONS,Investment,BXS LIMITED PARTNERSHIP,01/06/2021,3544873.08,M,None,Loans
"Ministry of Housing, Communities and Local Government",Homes England,RI - SITE VALUATION FEES,Investment,BNP PARIBAS REAL ESTATE,02/06/2021,9000,L,80131800,Real estate management services
"Ministry of Housing, Communities and Local Government",Homes England,RI - SITE VALUATION FEES,Investment,BNP PARIBAS REAL ESTATE,01/06/2021,6600,L,80131800,Real estate management services
"Ministry of Housing, Communities and Local Government",Homes England,PROF FEES LOANS CAPITALISED,Investment,BNP PARIBAS REAL ESTATE,15/06/2021,6600,L,80131800,Real estate management services
"Ministry of Housing, Communities and Local Government",Homes England,RI - SITE VALUATION FEES,Investment,BNP PARIBAS REAL ESTATE,07/06/2021,3000,L,80131800,Real estate management services
"Ministry of Housing, Communities and Local Government",Homes England,PROF FEES LOANS CAPITALISED,Investment,BNP PARIBAS REAL ESTATE,04/06/2021,1680,L,80131800,Real estate management services
"Ministry of Housing, Communities and Local Government",Homes England,RI - MONIITORING SURVEYOR FEES,Investment,BNP PARIBAS REAL ESTATE,16/06/2021,1680,L,81101500,Civil Engineering
"Ministry of Housing, Communities and Local Government",Homes England,PROF FEES LOANS CAPITALISED,Investment,BNP PARIBAS REAL ESTATE,25/06/2021,1680,L,80131800,Real estate management services
"Ministry of Housing, Communities and Local Government",Homes England,PROF FEES LOANS CAPITALISED,Investment,BNP PARIBAS REAL ESTATE,28/06/2021,1680,L,80131800,Real estate management services
"Ministry of Housing, Communities and Local Government",Homes England,RI - MONIITORING SURVEYOR FEES,Investment,BNP PARIBAS REAL ESTATE,02/06/2021,1170,L,81101500,Civil Engineering
"Ministry of Housing, Communities and Local Government",Homes England,RI - MONIITORING SURVEYOR FEES,Investment,BNP PARIBAS REAL ESTATE,11/06/2021,1140,L,81101500,Civil Engineering
"Ministry of Housing, Communities and Local Government",Homes England,RI - MONIITORING SURVEYOR FEES,Investment,BNP PARIBAS REAL ESTATE,02/06/2021,1110,L,81101500,Civil Engineering
"Ministry of Housing, Communities and Local Government",Homes England,RI - MONIITORING SURVEYOR FEES,Investment,BNP PARIBAS REAL ESTATE,22/06/2021,1110,L,81101500,Civil Engineering
"Ministry of Housing, Communities and Local Government",Homes England,RI - MONIITORING SURVEYOR FEES,Investment,BNP PARIBAS REAL ESTATE,02/06/2021,1080,L,81101500,Civil Engineering
"Ministry of Housing, Communities and Local Government",Homes England,PROF FEES LOANS CAPITALISED,Investment,BNP PARIBAS REAL ESTATE,02/06/2021,1080,L,80131800,Real estate management services
"Ministry of Housing, Communities and Local Government",Homes England,RI - MONIITORING SURVEYOR FEES,Investment,BNP PARIBAS REAL ESTATE,11/06/2021,1050,L,81101500,Civil Engineering
"Ministry of Housing, Communities and Local Government",Homes England,RI - MONIITORING SURVEYOR FEES,Investment,BNP PARIBAS REAL ESTATE,30/06/2021,1050,L,81101500,Civil Engineering
"Ministry of Housing, Communities and Local Government",Homes England,RI - MONIITORING SURVEYOR FEES,Investment,BNP PARIBAS REAL ESTATE,02/06/2021,1020,L,81101500,Civil Engineering
"Ministry of Housing, Communities and Local Government",Homes England,RI - MONIITORING SURVEYOR FEES,Investment,BNP PARIBAS REAL ESTATE,03/06/2021,1020,L,81101500,Civil Engineering
"Ministry of Housing, Communities and Local Government",Homes England,RI - MONIITORING SURVEYOR FEES,Investment,BNP PARIBAS REAL ESTATE,03/06/2021,1020,L,81101500,Civil Engineering
"Ministry of Housing, Communities and Local Government",Homes England,RI - MONIITORING SURVEYOR FEES,Investment,BNP PARIBAS REAL ESTATE,04/06/2021,1020,L,81101500,Civil Engineering
"Ministry of Housing, Communities and Local Government",Homes England,RI - MONIITORING SURVEYOR FEES,Investment,BNP PARIBAS REAL ESTATE,07/06/2021,1020,L,81101500,Civil Engineering
"Ministry of Housing, Communities and Local Government",Homes England,RI - MONIITORING SURVEYOR FEES,Investment,BNP PARIBAS REAL ESTATE,11/06/2021,1020,L,81101500,Civil Engineering
"Ministry of Housing, Communities and Local Government",Homes England,RI - MONIITORING SURVEYOR FEES,Investment,BNP PARIBAS REAL ESTATE,30/06/2021,1020,L,81101500,Civil Engineering
"Ministry of Housing, Communities and Local Government",Homes England,RI - MONIITORING SURVEYOR FEES,Investment,BNP PARIBAS REAL ESTATE,02/06/2021,960,L,81101500,Civil Engineering
"Ministry of Housing, Communities and Local Government",Homes England,RI - MONIITORING SURVEYOR FEES,Investment,BNP PARIBAS REAL ESTATE,07/06/2021,960,L,81101500,Civil Engineering
"Ministry of Housing, Communities and Local Government",Homes England,RI - MONIITORING SURVEYOR FEES,Investment,BNP PARIBAS REAL ESTATE,02/06/2021,840,L,81101500,Civil Engineering
"Ministry of Housing, Communities and Local Government",Homes England,RI - MONIITORING SURVEYOR FEES,Investment,BNP PARIBAS REAL ESTATE,02/06/2021,840,L,81101500,Civil Engineering
"Ministry of Housing, Communities and Local Government",Homes England,RI - MONIITORING SURVEYOR FEES,Investment,BNP PARIBAS REAL ESTATE,03/06/2021,840,L,81101500,Civil Engineering
"Ministry of Housing, Communities and Local Government",Homes England,RI - MONIITORING SURVEYOR FEES,Investment,BNP PARIBAS REAL ESTATE,07/06/2021,840,L,81101500,Civil Engineering
"Ministry of Housing, Communities and Local Government",Homes England,RI - MONIITORING SURVEYOR FEES,Investment,BNP PARIBAS REAL ESTATE,07/06/2021,840,L,81101500,Civil Engineering
"Ministry of Housing, Communities and Local Government",Homes England,RI - MONIITORING SURVEYOR FEES,Investment,BNP PARIBAS REAL ESTATE,16/06/2021,840,L,81101500,Civil Engineering
"Ministry of Housing, Communities and Local Government",Homes England,RI - MONIITORING SURVEYOR FEES,Investment,BNP PARIBAS REAL ESTATE,16/06/2021,840,L,81101500,Civil Engineering
"Ministry of Housing, Communities and Local Government",Homes England,RI - MONIITORING SURVEYOR FEES,Investment,BNP PARIBAS REAL ESTATE,25/06/2021,840,L,80131800,Real estate management services
"Ministry of Housing, Communities and Local Government",Homes England,RI - MONIITORING SURVEYOR FEES,Development,BNP PARIBAS REAL ESTATE,03/06/2021,780,L,81101500,Civil Engineering
"Ministry of Housing, Communities and Local Government",Homes England,RI - MONIITORING SURVEYOR FEES,Investment,BNP PARIBAS REAL ESTATE,03/06/2021,780,L,81101500,Civil Engineering
"Ministry of Housing, Communities and Local Government",Homes England,RI - MONIITORING SURVEYOR FEES,Investment,BNP PARIBAS REAL ESTATE,07/06/2021,720,L,81101500,Civil Engineering
"Ministry of Housing, Communities and Local Government",Homes England,RI - MONIITORING SURVEYOR FEES,Investment,BNP PARIBAS REAL ESTATE,16/06/2021,720,L,81101500,Civil Engineering
"Ministry of Housing, Communities and Local Government",Homes England,LANDSCAPE MAINT-BUILT ESTATE,Development,BROOKFIELD CONTRACTING & FARMING LTD,25/06/2021,465.46,S,72102900,Facility maintenance and repair services
"Ministry of Housing, Communities and Local Government",Homes England,ESTATE GENERAL MAINTENANCE,Development,BROOKFIELD CONTRACTING & FARMING LTD,14/06/2021,420,S,72101500,Building maintenance and repair services
"Ministry of Housing, Communities and Local Government",Homes England,ESTATE GENERAL MAINTENANCE,Development,BROOKFIELD CONTRACTING & FARMING LTD,14/06/2021,321.99,S,72101500,Building maintenance and repair services
"Ministry of Housing, Communities and Local Government",Homes England,LEGAL FEES (NON-ASSET),Investment,BOND DICKINSON LLP,01/06/2021,13800,L,80121600,Business law services
"Ministry of Housing, Communities and Local Government",Homes England,LEGAL FEES (PROGRAMME - RDEL),Investment,BOND DICKINSON LLP,09/06/2021,9352.2,L,80121600,Business law services
"Ministry of Housing, Communities and Local Government",Homes England,DISPOSAL FEES - LEGAL,MPP,BOND DICKINSON LLP,07/06/2021,3774.6,L,80121600,Business law services
"Ministry of Housing, Communities and Local Government",Homes England,DISPOSAL FEES - LEGAL,MPP,BOND DICKINSON LLP,08/06/2021,3436.2,L,80121600,Business law services
"Ministry of Housing, Communities and Local Government",Homes England,DISPOSAL FEES - LEGAL,MPP,BOND DICKINSON LLP,07/06/2021,2916,L,80121600,Business law services
"Ministry of Housing, Communities and Local Government",Homes England,LEGAL FEES (PROGRAMME - RDEL),Investment,BOND DICKINSON LLP,16/06/2021,1800,L,80121600,Business law services
"Ministry of Housing, Communities and Local Government",Homes England,LEGAL FEES (PROGRAMME - RDEL),MPP,BOND DICKINSON LLP,15/06/2021,967.2,L,80121600,Business law services
"Ministry of Housing, Communities and Local Government",Homes England,BUILDINGS-TELEPHONES,Development,BLINK TELECOM,18/06/2021,866.03,M,83111500,Local and long distance telephone communications
"Ministry of Housing, Communities and Local Government",Homes England,CAP GRNTS TO PRIVATE SECTOR,Investment,PREMIER RESIDENTIAL MANAGEMENT LTD,14/06/2021,3801427,S,None,Grants
"Ministry of Housing, Communities and Local Government",Homes England,CAP GRNTS TO PRIVATE SECTOR,Investment,LIGHTHOUSE (MANCHESTER) MANAGEMENT LTD,25/06/2021,1339117.13,S,None,Grants
"Ministry of Housing, Communities and Local Government",Homes England,CAP GRNTS PUB SECTOR EXCL L A,Investment,KENNET HOUSE MANAGEMENT CO LTD,02/06/2021,521603.3,S,None,Grants
"Ministry of Housing, Communities and Local Government",Homes England,CAP GRNTS PUB SECTOR EXCL L A,Investment,PORTSMOUTH CITY COUNCIL,04/06/2021,243293.67,G,None,Grants
"Ministry of Housing, Communities and Local Government",Homes England,CAP GRNTS TO PRIVATE SECTOR,Investment,CHELMSFORD MANAGEMENT COMPANY LIMITED,30/06/2021,2632717,S,None,Grants
"Ministry of Housing, Communities and Local Government",Homes England,CAP GRNTS TO PRIVATE SECTOR,Investment,REVOLUTION PROPERTY MANAGEMENT LTD,10/06/2021,192599,S,None,Grants
"Ministry of Housing, Communities and Local Government",Homes England,CAP GRNTS TO PRIVATE SECTOR,Investment,MARCONI HOUSE RTM COMPANY LIMITED,14/06/2021,2198452.32,S,None,Grants
"Ministry of Housing, Communities and Local Government",Homes England,CAP GRNTS TO PRIVATE SECTOR,Investment,SCANLANS PROPERTY MANAGEMENT LLP,30/06/2021,2628026.18,S,None,Grants
"Ministry of Housing, Communities and Local Government",Homes England,CAP GRNTS TO PRIVATE SECTOR,Investment,3SIXTY REAL ESTATE,01/06/2021,190831,S,None,Grants
"Ministry of Housing, Communities and Local Government",Homes England,CAP GRNTS PUB SECTOR EXCL L A,Investment,PENNYCUICK COLLINS,03/06/2021,341030,S,None,Grants
"Ministry of Housing, Communities and Local Government",Homes England,CAP GRNTS TO PRIVATE SECTOR,Investment,CITY POINT 2 MANAGEMENT COMPANY LTD,09/06/2021,154513,S,None,Grants
"Ministry of Housing, Communities and Local Government",Homes England,CAP GRNTS TO PRIVATE SECTOR,Investment,HEART OF ENGLAND MANAGEMENT CO LTD,03/06/2021,302183,S,None,Grants
"Ministry of Housing, Communities and Local Government",Homes England,CAP GRNTS TO PRIVATE SECTOR,Investment,EAU2 (SHEPHERDS WHARF) MANAGEMENT COMPANY LTD,01/06/2021,492628,S,None,Grants
"Ministry of Housing, Communities and Local Government",Homes England,CAP GRNTS PUB SECTOR EXCL L A,Investment,ADMIRALTY QUARTER (PORTMOUTH) MANAGEMENT LTD,01/06/2021,2220028,S,None,Grants
"Ministry of Housing, Communities and Local Government",Homes England,CAP GRNTS TO PRIVATE SECTOR,Investment,TRINITY ESTATES PROPERTY MANAGEMENT LIMITED,08/06/2021,548208,M,None,Grants
"Ministry of Housing, Communities and Local Government",Homes England,CAP GRNTS TO PRIVATE SECTOR,Investment,SCANLANS PROPERTY MANAGEMENT LLP,17/06/2021,1680413,S,None,Grants
"Ministry of Housing, Communities and Local Government",Homes England,CAP GRNTS TO PRIVATE SECTOR,Investment,GUNWHARF QUAYS (EASTSIDE PLAZA) MANAGEMENT CO,25/06/2021,333242,S,None,Grants
"Ministry of Housing, Communities and Local Government",Homes England,CAP GRNTS TO PRIVATE SECTOR,Investment,MANCHESTER RESIDENTIAL MANAGEMENT LIMITED,10/06/2021,479981,S,None,Grants
"Ministry of Housing, Communities and Local Government",Homes England,CAP GRNTS TO PRIVATE SECTOR,Investment,KINGSTON PROPERTY SERVICES LIMITED,23/06/2021,424569,M,None,Grants
"Ministry of Housing, Communities and Local Government",Homes England,CAP GRNTS TO PRIVATE SECTOR,Investment,CASTLE EXCHANGE RTM LTD,18/06/2021,423439,S,None,Grants
"Ministry of Housing, Communities and Local Government",Homes England,CAP GRNTS TO PRIVATE SECTOR,Investment,CENTRICK LIMITED,24/06/2021,194324,S,None,Grants
"Ministry of Housing, Communities and Local Government",Homes England,CAP GRNTS TO PRIVATE SECTOR,Investment,THE REACH PROPERTY MANAGEMENT CO LTD,14/06/2021,842975,S,None,Grants
"Ministry of Housing, Communities and Local Government",Homes England,CAP GRNTS TO PRIVATE SECTOR,Investment,J H WATSON PROPERTY MANAGEMENT LTD,24/06/2021,445628,S,None,Grants
"Ministry of Housing, Communities and Local Government",Homes England,BUILDINGS-VACANT RATES,MPP,CORBY BOROUGH COUNCIL,25/06/2021,16716.5,G,80131500,Lease and rental of property or building
"Ministry of Housing, Communities and Local Government",Homes England,MISC PROFESSIONAL FEES,MPP,CAMPBELL REITH,16/06/2021,83441.41,M,77101500,Environmental auditing
"Ministry of Housing, Communities and Local Government",Homes England,OTHER PROFESSIONAL FEES,MPP,CAMPBELL REITH,16/06/2021,35788.15,M,80131800,Real estate management services
"Ministry of Housing, Communities and Local Government",Homes England,OTHER PROFESSIONAL FEES,MPP,CAMPBELL REITH,04/06/2021,13807.2,M,80131800,Real estate management services
"Ministry of Housing, Communities and Local Government",Homes England,ENGINEERING CONSULTANTS,Development,CAMPBELL REITH,17/06/2021,7507.2,M,81101500,Civil Engineering
"Ministry of Housing, Communities and Local Government",Homes England,ENVIRONMENTAL ASSESMENT,Development,CAMPBELL REITH,11/06/2021,6444,M,77101500,Environmental auditing
"Ministry of Housing, Communities and Local Government",Homes England,PLANNING APPLICATIONS,MPP,CAMPBELL REITH,16/06/2021,4200,M,80131800,Real estate management services
"Ministry of Housing, Communities and Local Government",Homes England,PROF FEES LOANS CAPITALISED,Investment,CAMPBELL REITH,01/06/2021,2700,M,80131800,Real estate management services
"Ministry of Housing, Communities and Local Government",Homes England,ENGINEERING CONSULTANTS,MPP,CAMPBELL REITH,18/06/2021,2100,M,81101500,Civil Engineering
"Ministry of Housing, Communities and Local Government",Homes England,ENVIRONMENTAL ASSESMENT,Development,CAMPBELL REITH,17/06/2021,1953.8,M,77101500,Environmental auditing
"Ministry of Housing, Communities and Local Government",Homes England,MISC PROFESSIONAL FEES,MPP,CAMPBELL REITH,14/06/2021,1560,M,77101500,Environmental auditing
"Ministry of Housing, Communities and Local Government",Homes England,RI - MONIITORING SURVEYOR FEES,Investment,CAMPBELL REITH,10/06/2021,1320,M,81101500,Civil Engineering
"Ministry of Housing, Communities and Local Government",Homes England,RI - MONIITORING SURVEYOR FEES,Investment,CAMPBELL REITH,01/06/2021,1302,M,81101500,Civil Engineering
"Ministry of Housing, Communities and Local Government",Homes England,RI - MONIITORING SURVEYOR FEES,Investment,CAMPBELL REITH,23/06/2021,1260,M,81101500,Civil Engineering
"Ministry of Housing, Communities and Local Government",Homes England,MARKET RESEARCH FEES,MPP,CARTER JONAS,08/06/2021,12000,L,80141500,Market research
"Ministry of Housing, Communities and Local Government",Homes England,VALUATION FEES,Development,CARTER JONAS,08/06/2021,9000,L,80131800,Real estate management services
"Ministry of Housing, Communities and Local Government",Homes England,PROPERTY SERVICES,MPP,CARTER JONAS,09/06/2021,8400,L,80131800,Real estate management services
"Ministry of Housing, Communities and Local Government",Homes England,PROPERTY SERVICES,Development,CARTER JONAS,15/06/2021,5400,L,80131800,Real estate management services
"Ministry of Housing, Communities and Local Government",Homes England,VALUATION FEES,MPP,CARTER JONAS,03/06/2021,4638,L,80131800,Real estate management services
"Ministry of Housing, Communities and Local Government",Homes England,PROPERTY SERVICES,Development,CARTER JONAS,02/06/2021,4196.1,L,80131800,Real estate management services
"Ministry of Housing, Communities and Local Government",Homes England,PROPERTY SERVICES,MPP,CARTER JONAS,25/06/2021,2700,L,80131800,Real estate management services
"Ministry of Housing, Communities and Local Government",Homes England,RI - SITE VALUATION FEES,Investment,CARTER JONAS,17/06/2021,2340,L,80131800,Real estate management services
"Ministry of Housing, Communities and Local Government",Homes England,PROPERTY SERVICES,MPP,CARTER JONAS,25/06/2021,2100,L,80131800,Real estate management services
"Ministry of Housing, Communities and Local Government",Homes England,RI - MONIITORING SURVEYOR FEES,Investment,CARTER JONAS,15/06/2021,1140,L,81101500,Civil Engineering
"Ministry of Housing, Communities and Local Government",Homes England,RI - MONIITORING SURVEYOR FEES,Investment,CARTER JONAS,15/06/2021,1140,L,81101500,Civil Engineering
"Ministry of Housing, Communities and Local Government",Homes England,BUILDINGS-GAS,MPP,CADENT GAS LIMITED,01/06/2021,1727,L,83101600,Oil and gas utilities
"Ministry of Housing, Communities and Local Government",Homes England,BUILDINGS-GAS,MPP,CORONA ENERGY,14/06/2021,7268.02,L,83101600,Oil and gas utilities
"Ministry of Housing, Communities and Local Government",Homes England,GAS,Development,CORONA ENERGY,15/06/2021,552.4,L,83101600,Oil and gas utilities
"Ministry of Housing, Communities and Local Government",Homes England,BUILDINGS-GAS,MPP,CORONA ENERGY,14/06/2021,460.74,L,83101600,Oil and gas utilities
"Ministry of Housing, Communities and Local Government",Homes England,GAS,Development,CORONA ENERGY,15/06/2021,349.44,L,83101600,Oil and gas utilities
"Ministry of Housing, Communities and Local Government",Homes England,ST FUND LOANS ADDITIONS,Development,CHILDWALL HOMES LIMITED,02/06/2021,59281.87,S,None,Loans
"Ministry of Housing, Communities and Local Government",Homes England,ESTATE GENERAL MAINTENANCE,Development,C A STAMP GROUNDS & AGRICULTURE,07/06/2021,3564,S,72101500,Building maintenance and repair services
"Ministry of Housing, Communities and Local Government",Homes England,ST FUND LOANS ADDITIONS,Investment,CREATE DEVELOPMENTS (LONGRIDGE) LTD,02/06/2021,233705,L,None,Loans
"Ministry of Housing, Communities and Local Government",Homes England,DATA CENTRE,Corporate Resources,CROWN HOSTING DATA CENTRES LIMITED,11/06/2021,2717.66,S,81112000,Data Services
"Ministry of Housing, Communities and Local Government",Homes England,DATA CENTRE,Corporate Resources,CROWN HOSTING DATA CENTRES LIMITED,11/06/2021,1860,S,81112000,Data Services
"Ministry of Housing, Communities and Local Government",Homes England,DATA CENTRE,Corporate Resources,CROWN HOSTING DATA CENTRES LIMITED,11/06/2021,1222.93,S,81112000,Data Services
"Ministry of Housing, Communities and Local Government",Homes England,DATA CENTRE,Corporate Resources,CROWN HOSTING DATA CENTRES LIMITED,11/06/2021,502.49,S,81112000,Data Services
"Ministry of Housing, Communities and Local Government",Homes England,ST FUND LOANS ADDITIONS,Investment,CAMPBELL HOMES DEVELOPMENTS LIMITED,23/06/2021,133009,L,None,Loans
"Ministry of Housing, Communities and Local Government",Homes England,ST FUND LOANS ADDITIONS,Investment,C&M CONTRACTORS (MANCHESTER) LTD,23/06/2021,57589,S,None,Loans
"Ministry of Housing, Communities and Local Government",Homes England,ST FUND LOANS ADDITIONS,Investment,C&M CONTRACTORS (MANCHESTER) LTD,02/06/2021,46720.97,S,None,Loans
"Ministry of Housing, Communities and Local Government",Homes England,ST FUND LOANS ADDITIONS,Investment,CLL (HOLLINS LANE) LTD,16/06/2021,83383.12,L,None,Loans
"Ministry of Housing, Communities and Local Government",Homes England,LAND REMEDIATION,Development,CAMBRIDGE ARCHAEOLOGY UNIT,11/06/2021,22311,L,72141500,Land preparation services
"Ministry of Housing, Communities and Local Government",Homes England,RENT PAYABLE,Development,COMBINED PROPERTY CONTROL,09/06/2021,106500,S,80131500,Lease and rental of property or building
"Ministry of Housing, Communities and Local Government",Homes England,RI - MONIITORING SURVEYOR FEES,Investment,COLLIERS INTERNATIONAL PROPERTY CONSULTANTS,14/06/2021,1320,L,81101500,Civil Engineering
"Ministry of Housing, Communities and Local Government",Homes England,RI - MONIITORING SURVEYOR FEES,Investment,COLLIERS INTERNATIONAL PROPERTY CONSULTANTS,08/06/2021,900,L,81101500,Civil Engineering
"Ministry of Housing, Communities and Local Government",Homes England,RI - MONIITORING SURVEYOR FEES,Investment,COLLIERS INTERNATIONAL PROPERTY CONSULTANTS,14/06/2021,900,L,81101500,Civil Engineering
"Ministry of Housing, Communities and Local Government",Homes England,RI - MONIITORING SURVEYOR FEES,Development,COLLIERS INTERNATIONAL PROPERTY CONSULTANTS,15/06/2021,900,L,81101500,Civil Engineering
"Ministry of Housing, Communities and Local Government",Homes England,RI - MONIITORING SURVEYOR FEES,Investment,COLLIERS INTERNATIONAL PROPERTY CONSULTANTS,29/06/2021,900,L,81101500,Civil Engineering
"Ministry of Housing, Communities and Local Government",Homes England,RI - MONIITORING SURVEYOR FEES,Investment,COLLIERS INTERNATIONAL PROPERTY CONSULTANTS,08/06/2021,810,L,81101500,Civil Engineering
"Ministry of Housing, Communities and Local Government",Homes England,RI - MONIITORING SURVEYOR FEES,Development,COLLIERS INTERNATIONAL PROPERTY CONSULTANTS,14/06/2021,810,L,81101500,Civil Engineering
"Ministry of Housing, Communities and Local Government",Homes England,RI - MONIITORING SURVEYOR FEES,Investment,COLLIERS INTERNATIONAL PROPERTY CONSULTANTS,14/06/2021,810,L,81101500,Civil Engineering
"Ministry of Housing, Communities and Local Government",Homes England,RI - MONIITORING SURVEYOR FEES,Development,COLLIERS INTERNATIONAL PROPERTY CONSULTANTS,14/06/2021,810,L,81101500,Civil Engineering
"Ministry of Housing, Communities and Local Government",Homes England,RI - MONIITORING SURVEYOR FEES,Investment,COLLIERS INTERNATIONAL PROPERTY CONSULTANTS,17/06/2021,810,L,81101500,Civil Engineering
"Ministry of Housing, Communities and Local Government",Homes England,RI - MONIITORING SURVEYOR FEES,Investment,COLLIERS INTERNATIONAL PROPERTY CONSULTANTS,21/06/2021,810,L,81101500,Civil Engineering
"Ministry of Housing, Communities and Local Government",Homes England,RI - MONIITORING SURVEYOR FEES,Investment,COLLIERS INTERNATIONAL PROPERTY CONSULTANTS,21/06/2021,810,L,81101500,Civil Engineering
"Ministry of Housing, Communities and Local Government",Homes England,RI - MONIITORING SURVEYOR FEES,Development,COLLIERS INTERNATIONAL PROPERTY CONSULTANTS,29/06/2021,810,L,81101500,Civil Engineering
"Ministry of Housing, Communities and Local Government",Homes England,PROF FEES LOANS CAPITALISED,Investment,COLLIERS INTERNATIONAL PROPERTY CONSULTANTS,29/06/2021,810,L,80131800,Real estate management services
"Ministry of Housing, Communities and Local Government",Homes England,RI - MONIITORING SURVEYOR FEES,Investment,COLLIERS INTERNATIONAL PROPERTY CONSULTANTS,29/06/2021,810,L,81101500,Civil Engineering
"Ministry of Housing, Communities and Local Government",Homes England,MANAGEMENT COSTS,Development,COLLIERS INTERNATIONAL PROPERTY CONSULTANTS,09/06/2021,600,L,80131800,Real estate management services
"Ministry of Housing, Communities and Local Government",Homes England,MANAGEMENT COSTS,Development,COLLIERS INTERNATIONAL PROPERTY CONSULTANTS,09/06/2021,600,L,80131800,Real estate management services
"Ministry of Housing, Communities and Local Government",Homes England,ESTATE GENERAL MAINTENANCE,Development,COGNITION LAND & WATER,18/06/2021,3673.2,S,72101500,Building maintenance and repair services
"Ministry of Housing, Communities and Local Government",Homes England,PROF FEES LOANS CAPITALISED,Investment,CLARKE WILLMOTT LLP,02/06/2021,23830.32,L,80121600,Business law services
"Ministry of Housing, Communities and Local Government",Homes England,DISPOSAL FEES - LEGAL,MPP,CLARKE WILLMOTT LLP,09/06/2021,3507.36,L,80121600,Business law services
"Ministry of Housing, Communities and Local Government",Homes England,DISPOSAL FEES - LEGAL,MPP,CLARKE WILLMOTT LLP,09/06/2021,3010.8,L,80121600,Business law services
"Ministry of Housing, Communities and Local Government",Homes England,DISPOSAL FEES - LEGAL,MPP,CLARKE WILLMOTT LLP,02/06/2021,939.6,L,80121600,Business law services
"Ministry of Housing, Communities and Local Government",Homes England,LEGAL FEES (PROGRAMME - RDEL),MPP,CLARKE WILLMOTT LLP,24/06/2021,900,L,80121600,Business law services
"Ministry of Housing, Communities and Local Government",Homes England,LEGAL FEES (PROGRAMME - RDEL),Investment,CLARKE WILLMOTT LLP,25/06/2021,840,L,80121600,Business law services
"Ministry of Housing, Communities and Local Government",Homes England,LEGAL FEES (PROGRAMME - RDEL),Investment,CLARKE WILLMOTT LLP,25/06/2021,840,L,80121600,Business law services
"Ministry of Housing, Communities and Local Government",Homes England,CLEANING,Development,CHURCHILL CONTRACT SERVICES LTD,04/06/2021,4253.89,S,76111500,General building and office cleaining and maintenance services
"Ministry of Housing, Communities and Local Government",Homes England,STAFF RECRUITMENT COSTS,Corporate Resources,CIVIL SERVICE HR,03/06/2021,12041.35,G,80111700,Personnel Recruitment
"Ministry of Housing, Communities and Local Government",Homes England,CAP GRNTS TO LOCAL AUTHORITIES,Investment,CENTRAL BEDFORDSHIRE COUNCIL,24/06/2021,203775,G,None,Grants
"Ministry of Housing, Communities and Local Government",Homes England,ST FUND LOANS ADDITIONS,Investment,CITADEL HOMES LS LIMITED,23/06/2021,265074,L,None,Loans
"Ministry of Housing, Communities and Local Government",Homes England,ESTATE GENERAL MAINTENANCE,Development,FRANK COOPER & SON LIMITED,08/06/2021,980,S,72101500,Building maintenance and repair services
"Ministry of Housing, Communities and Local Government",Homes England,ESTATE GENERAL MAINTENANCE,Development,FRANK COOPER & SON LIMITED,18/06/2021,980,S,72101500,Building maintenance and repair services
"Ministry of Housing, Communities and Local Government",Homes England,ESTATE GENERAL MAINTENANCE,Development,FRANK COOPER & SON LIMITED,08/06/2021,287.38,S,72101500,Building maintenance and repair services
"Ministry of Housing, Communities and Local Government",Homes England,ESTATE GENERAL MAINTENANCE,Development,FRANK COOPER & SON LIMITED,18/06/2021,287.38,S,72101500,Building maintenance and repair services
"Ministry of Housing, Communities and Local Government",Homes England,ESTATE GENERAL MAINTENANCE,MPP,FRANK COOPER & SON LIMITED,17/06/2021,286.01,S,72101500,Building maintenance and repair services
"Ministry of Housing, Communities and Local Government",Homes England,OTHER PROFESSIONAL FEES,Development,CWC GROUP,23/06/2021,1341952.54,M,None,Contributions
"Ministry of Housing, Communities and Local Government",Homes England,OTHER PROFESSIONAL FEES,Development,CWC GROUP,01/06/2021,1056811.67,M,None,Contributions
"Ministry of Housing, Communities and Local Government",Homes England,ESTATE GENERAL MAINTENANCE,MPP,C-ELECT ASSOCIATES LIMITED,17/06/2021,768,S,72101500,Building maintenance and repair services
"Ministry of Housing, Communities and Local Government",Homes England,BUILDINGS-FIRE PREVENTION,MPP,C-ELECT ASSOCIATES LIMITED,09/06/2021,355.5,S,92121700,Security systems services
"Ministry of Housing, Communities and Local Government",Homes England,EXTERNAL BUILDING MAINTENANCE,MPP,C-ELECT ASSOCIATES LIMITED,17/06/2021,269.93,S,72101500,Building maintenance and repair services
"Ministry of Housing, Communities and Local Government",Homes England,EXTERNAL BUILDING MAINTENANCE,MPP,CHESTER & NEWMAN PLUMBING & HEATING SERVICES,29/06/2021,838.8,S,72101500,Building maintenance and repair services
"Ministry of Housing, Communities and Local Government",Homes England,BUILDINGS-WATER,MPP,CHESTER & NEWMAN PLUMBING & HEATING SERVICES,29/06/2021,534,S,83101500,Water and sewer utilities
"Ministry of Housing, Communities and Local Government",Homes England,TRAINING COURSES & CONFERENCES,Investment,CITB,24/06/2021,910,L,86101800,In service training and manpower development
"Ministry of Housing, Communities and Local Government",Homes England,TRAINING COURSES & CONFERENCES,Investment,CITB,25/06/2021,520,L,86101800,In service training and manpower development
"Ministry of Housing, Communities and Local Government",Homes England,TRAINING COURSES & CONFERENCES,Investment,CITB,25/06/2021,260,L,86101800,In service training and manpower development
"Ministry of Housing, Communities and Local Government",Homes England,ESTATE GENERAL MAINTENANCE,Development,CONTINENTAL LANDSCAPES - GREENHAND,10/06/2021,3875.8,L,72101500,Building maintenance and repair services
"Ministry of Housing, Communities and Local Government",Homes England,BUILDINGS-WATER,Development,CASTLE WATER LIMITED,08/06/2021,403.25,L,83101500,Water and sewer utilities
"Ministry of Housing, Communities and Local Government",Homes England,ST FUND LOANS ADDITIONS,Investment,CHERRY TREE DEVELOPMENTS LTD,04/06/2021,47831,S,None,Loans
"Ministry of Housing, Communities and Local Government",Homes England,ST FUND LOANS ADDITIONS,Investment,CHERRY TREE DEVELOPMENTS LTD,24/06/2021,26700,S,None,Loans
"Ministry of Housing, Communities and Local Government",Homes England,RI - SITE VALUATION FEES,Investment,CB RICHARD ELLIS,29/06/2021,12000,L,80131800,Real estate management services
"Ministry of Housing, Communities and Local Government",Homes England,DRAINS & SEWERS,Development,CROWN OIL LTD T/A CROWN GAS & POWER,03/06/2021,436.54,L,72101500,Building maintenance and repair services
"Ministry of Housing, Communities and Local Government",Homes England,MASTERPLANNING FEES,Development,CSA ENVIRONMENTAL,02/06/2021,3799.14,M,81101500,Civil Engineering
"Ministry of Housing, Communities and Local Government",Homes England,ST FUND LOANS ADDITIONS,Investment,CLEANSLATE (HURSTBOURNE PRIORS) LTD,24/06/2021,329151,L,None,Loans
"Ministry of Housing, Communities and Local Government",Homes England,ST FUND LOANS ADDITIONS,Development,CHARDALE COUNTRY HOMES LIMITED,10/06/2021,202823.9,S,None,Loans
"Ministry of Housing, Communities and Local Government",Homes England,ESTATE GENERAL MAINTENANCE,Development,CGM GROUP LTD,02/06/2021,4419.3,M,72101500,Building maintenance and repair services
"Ministry of Housing, Communities and Local Government",Homes England,ESTATE GENERAL MAINTENANCE,Development,CGM GROUP LTD,02/06/2021,883.86,M,72101500,Building maintenance and repair services
"Ministry of Housing, Communities and Local Government",Homes England,ESTATE GENERAL MAINTENANCE,Development,CGM GROUP LTD,25/06/2021,883.86,M,72101500,Building maintenance and repair services
"Ministry of Housing, Communities and Local Government",Homes England,LT FUND LOANS (PS) ADDITIONS,Investment,CAMLAND HYTHE LIMITED,24/06/2021,226374.11,L,None,Loans
"Ministry of Housing, Communities and Local Government",Homes England,ST FUND LOANS ADDITIONS,Investment,CBH DEVELOPMENTS LTD,28/06/2021,69349,S,None,Loans
"Ministry of Housing, Communities and Local Government",Homes England,FENCE MAINTENANCE,MPP,CHANNEL ENGINEERING LTD,14/06/2021,2092.51,S,72102900,Facility maintenance and repair services
"Ministry of Housing, Communities and Local Government",Homes England,ESTATE GENERAL MAINTENANCE,MPP,CHANNEL ENGINEERING LTD,17/06/2021,1080,S,72101500,Building maintenance and repair services
"Ministry of Housing, Communities and Local Government",Homes England,ESTATE GENERAL MAINTENANCE,MPP,CHANNEL ENGINEERING LTD,25/06/2021,562.8,S,72101500,Building maintenance and repair services
"Ministry of Housing, Communities and Local Government",Homes England,ESTATE GENERAL MAINTENANCE,Development,CHANNEL ENGINEERING LTD,14/06/2021,540,S,72101500,Building maintenance and repair services
"Ministry of Housing, Communities and Local Government",Homes England,ROADS AND CAR PARKS,Development,CHANNEL ENGINEERING LTD,17/06/2021,540,S,72101500,Building maintenance and repair services
"Ministry of Housing, Communities and Local Government",Homes England,FENCE MAINTENANCE,Development,CHANNEL ENGINEERING LTD,17/06/2021,540,S,72102900,Facility maintenance and repair services
"Ministry of Housing, Communities and Local Government",Homes England,FENCE MAINTENANCE,MPP,CHANNEL ENGINEERING LTD,14/06/2021,392.4,S,72102900,Facility maintenance and repair services
"Ministry of Housing, Communities and Local Government",Homes England,ESTATE GENERAL MAINTENANCE,MPP,CHANNEL ENGINEERING LTD,17/06/2021,316.8,S,72101500,Building maintenance and repair services
"Ministry of Housing, Communities and Local Government",Homes England,FENCE MAINTENANCE,Development,CHANNEL ENGINEERING LTD,17/06/2021,270,S,72102900,Facility maintenance and repair services
"Ministry of Housing, Communities and Local Government",Homes England,FENCE MAINTENANCE,MPP,CHANNEL ENGINEERING LTD,17/06/2021,270,S,72102900,Facility maintenance and repair services
"Ministry of Housing, Communities and Local Government",Homes England,PROMOTIONAL EVENTS,Executive Office,COMPOSURE MEDIA,22/06/2021,5400,S,80141600,Sales and business promotion activities
"Ministry of Housing, Communities and Local Government",Homes England,ESTATE GENERAL MAINTENANCE,Development,CARTWRIGHT LANDSCAPES,25/06/2021,2697.6,S,72101500,Building maintenance and repair services
"Ministry of Housing, Communities and Local Government",Homes England,ESTATE GENERAL MAINTENANCE,Development,CARTWRIGHT LANDSCAPES,25/06/2021,2280,S,72101500,Building maintenance and repair services
"Ministry of Housing, Communities and Local Government",Homes England,ESTATE GENERAL MAINTENANCE,Development,CARTWRIGHT LANDSCAPES,25/06/2021,895.13,S,72101500,Building maintenance and repair services
"Ministry of Housing, Communities and Local Government",Homes England,ESTATE GENERAL MAINTENANCE,Development,CARTWRIGHT LANDSCAPES,25/06/2021,895.13,S,72101500,Building maintenance and repair services
"Ministry of Housing, Communities and Local Government",Homes England,ESTATE GENERAL MAINTENANCE,Development,CARTWRIGHT LANDSCAPES,25/06/2021,895.13,S,72101500,Building maintenance and repair services
"Ministry of Housing, Communities and Local Government",Homes England,LANDSCAPE MAINT-BUILT ESTATE,MPP,CARTWRIGHT LANDSCAPES,25/06/2021,487.87,S,72102900,Facility maintenance and repair services
"Ministry of Housing, Communities and Local Government",Homes England,LANDSCAPE MAINT-BUILT ESTATE,MPP,CARTWRIGHT LANDSCAPES,25/06/2021,487.87,S,72102900,Facility maintenance and repair services
"Ministry of Housing, Communities and Local Government",Homes England,PLANNED PREVENTATIVE MAINT CON,Development,ENGIE FM LIMITED,28/06/2021,2140.63,L,72102900,Facility maintenance and repair services
"Ministry of Housing, Communities and Local Government",Homes England,ESTATE GENERAL MAINTENANCE,Development,ENGIE FM LIMITED,16/06/2021,997.5,L,72101500,Building maintenance and repair services
"Ministry of Housing, Communities and Local Government",Homes England,STAFF WELFARE,Development,ENGIE FM LIMITED,15/06/2021,475.2,L,46181500,Safety apparel
"Ministry of Housing, Communities and Local Government",Homes England,LEGAL FEES (PROGRAMME - RDEL),Investment,MILLS & REEVE,01/06/2021,59795.1,L,80121600,Business law services
"Ministry of Housing, Communities and Local Government",Homes England,LEGAL FEES (PROGRAMME - RDEL),Investment,MILLS & REEVE,01/06/2021,35755.58,L,80121600,Business law services
"Ministry of Housing, Communities and Local Government",Homes England,LEGAL FEES (ADMIN ONLY),Service Design And Transformation,MILLS & REEVE,07/06/2021,11752.8,L,80121600,Business law services
"Ministry of Housing, Communities and Local Government",Homes England,LEGAL FEES (PROGRAMME - RDEL),Development,MILLS & REEVE,02/06/2021,2340,L,80121600,Business law services
"Ministry of Housing, Communities and Local Government",Homes England,MISC PROFESSIONAL FEES,Development,MILLS & REEVE,18/06/2021,1620,L,80121600,Business law services
"Ministry of Housing, Communities and Local Government",Homes England,MISC PROFESSIONAL FEES,Development,TETRA TECH ENVIRONMENT PLANNING TRANSPORT LTD,25/06/2021,2700,L,80131800,Real estate management services
"Ministry of Housing, Communities and Local Government",Homes England,DATA CENTRE,Corporate Resources,OASIS UK NORTH LIMITED,09/06/2021,341.4,L,81112000,Data Services
"Ministry of Housing, Communities and Local Government",Homes England,VALUATION FEES,Development,CUSHMAN & WAKEFIELD DEBENHAM TIE LEUNG,29/06/2021,28934.48,L,80131800,Real estate management services
"Ministry of Housing, Communities and Local Government",Homes England,OTHER PROF FESS (NON-ASSET),Investment,CUSHMAN & WAKEFIELD DEBENHAM TIE LEUNG,15/06/2021,8318.4,L,80131800,Real estate management services
"Ministry of Housing, Communities and Local Government",Homes England,MISC PROFESSIONAL FEES,Investment,CUSHMAN & WAKEFIELD DEBENHAM TIE LEUNG,08/06/2021,7792.8,L,80121600,Business law services
"Ministry of Housing, Communities and Local Government",Homes England,ENGINEERING CONSULTANTS,Development,CUSHMAN & WAKEFIELD DEBENHAM TIE LEUNG,09/06/2021,6300,L,81101500,Civil Engineering
"Ministry of Housing, Communities and Local Government",Homes England,PROPERTY SERVICES,Development,CUSHMAN & WAKEFIELD DEBENHAM TIE LEUNG,07/06/2021,6000,L,80131800,Real estate management services
"Ministry of Housing, Communities and Local Government",Homes England,PROPERTY SERVICES,Development,CUSHMAN & WAKEFIELD DEBENHAM TIE LEUNG,18/06/2021,6000,L,80131800,Real estate management services
"Ministry of Housing, Communities and Local Government",Homes England,PROPERTY SERVICES,Development,CUSHMAN & WAKEFIELD DEBENHAM TIE LEUNG,18/06/2021,6000,L,80131800,Real estate management services
"Ministry of Housing, Communities and Local Government",Homes England,PROPERTY SERVICES,MPP,CUSHMAN & WAKEFIELD DEBENHAM TIE LEUNG,17/06/2021,4800,L,80131800,Real estate management services
"Ministry of Housing, Communities and Local Government",Homes England,PROPERTY SERVICES,Development,CUSHMAN & WAKEFIELD DEBENHAM TIE LEUNG,21/06/2021,3450,L,80131800,Real estate management services
"Ministry of Housing, Communities and Local Government",Homes England,PROPERTY SERVICES,MPP,CUSHMAN & WAKEFIELD DEBENHAM TIE LEUNG,18/06/2021,3393.6,L,80131800,Real estate management services
"Ministry of Housing, Communities and Local Government",Homes England,DISPOSAL FEES - PROPERTY AGENT,Development,CUSHMAN & WAKEFIELD DEBENHAM TIE LEUNG,10/06/2021,3000,L,80131600,Sale of property and building
"Ministry of Housing, Communities and Local Government",Homes England,OTHER PROFESSIONAL FEES,Development,CUSHMAN & WAKEFIELD DEBENHAM TIE LEUNG,03/06/2021,2944.8,L,80131800,Real estate management services
"Ministry of Housing, Communities and Local Government",Homes England,PROF FEES LOANS CAPITALISED,Investment,CUSHMAN & WAKEFIELD DEBENHAM TIE LEUNG,08/06/2021,2700,L,80131800,Real estate management services
"Ministry of Housing, Communities and Local Government",Homes England,RI - MONIITORING SURVEYOR FEES,Investment,CUSHMAN & WAKEFIELD DEBENHAM TIE LEUNG,07/06/2021,1056,L,81101500,Civil Engineering
"Ministry of Housing, Communities and Local Government",Homes England,PROPERTY SERVICES,Development,CUSHMAN & WAKEFIELD DEBENHAM TIE LEUNG,10/06/2021,1033.14,L,80131800,Real estate management services
"Ministry of Housing, Communities and Local Government",Homes England,RI - MONIITORING SURVEYOR FEES,Investment,CUSHMAN & WAKEFIELD DEBENHAM TIE LEUNG,03/06/2021,1020,L,81101500,Civil Engineering
"Ministry of Housing, Communities and Local Government",Homes England,RI - MONIITORING SURVEYOR FEES,Investment,CUSHMAN & WAKEFIELD DEBENHAM TIE LEUNG,03/06/2021,1020,L,81101500,Civil Engineering
"Ministry of Housing, Communities and Local Government",Homes England,RI - MONIITORING SURVEYOR FEES,Investment,CUSHMAN & WAKEFIELD DEBENHAM TIE LEUNG,16/06/2021,1020,L,81101500,Civil Engineering
"Ministry of Housing, Communities and Local Government",Homes England,PROPERTY SERVICES,Development,CUSHMAN & WAKEFIELD DEBENHAM TIE LEUNG,09/06/2021,986.88,L,80131800,Real estate management services
"Ministry of Housing, Communities and Local Government",Homes England,RI - MONIITORING SURVEYOR FEES,Investment,CUSHMAN & WAKEFIELD DEBENHAM TIE LEUNG,11/06/2021,960,L,81101500,Civil Engineering
"Ministry of Housing, Communities and Local Government",Homes England,RI - MONIITORING SURVEYOR FEES,Investment,CUSHMAN & WAKEFIELD DEBENHAM TIE LEUNG,11/06/2021,960,L,81101500,Civil Engineering
"Ministry of Housing, Communities and Local Government",Homes England,RI - MONIITORING SURVEYOR FEES,Investment,CUSHMAN & WAKEFIELD DEBENHAM TIE LEUNG,24/06/2021,960,L,81101500,Civil Engineering
"Ministry of Housing, Communities and Local Government",Homes England,PROF FEES LOANS CAPITALISED,Investment,CUSHMAN & WAKEFIELD DEBENHAM TIE LEUNG,02/06/2021,900,L,80131800,Real estate management services
"Ministry of Housing, Communities and Local Government",Homes England,RI - MONIITORING SURVEYOR FEES,Investment,CUSHMAN & WAKEFIELD DEBENHAM TIE LEUNG,02/06/2021,900,L,81101500,Civil Engineering
"Ministry of Housing, Communities and Local Government",Homes England,RI - MONIITORING SURVEYOR FEES,Investment,CUSHMAN & WAKEFIELD DEBENHAM TIE LEUNG,07/06/2021,900,L,81101500,Civil Engineering
"Ministry of Housing, Communities and Local Government",Homes England,PROPERTY SERVICES,MPP,CUSHMAN & WAKEFIELD DEBENHAM TIE LEUNG,10/06/2021,848.1,L,80131800,Real estate management services
"Ministry of Housing, Communities and Local Government",Homes England,RI - MONIITORING SURVEYOR FEES,Investment,CUSHMAN & WAKEFIELD DEBENHAM TIE LEUNG,02/06/2021,840,L,81101500,Civil Engineering
"Ministry of Housing, Communities and Local Government",Homes England,RI - MONIITORING SURVEYOR FEES,Investment,CUSHMAN & WAKEFIELD DEBENHAM TIE LEUNG,02/06/2021,840,L,81101500,Civil Engineering
"Ministry of Housing, Communities and Local Government",Homes England,RI - MONIITORING SURVEYOR FEES,Investment,CUSHMAN & WAKEFIELD DEBENHAM TIE LEUNG,02/06/2021,840,L,81101500,Civil Engineering
"Ministry of Housing, Communities and Local Government",Homes England,RI - MONIITORING SURVEYOR FEES,Investment,CUSHMAN & WAKEFIELD DEBENHAM TIE LEUNG,02/06/2021,840,L,81101500,Civil Engineering
"Ministry of Housing, Communities and Local Government",Homes England,RI - MONIITORING SURVEYOR FEES,Investment,CUSHMAN & WAKEFIELD DEBENHAM TIE LEUNG,02/06/2021,840,L,81101500,Civil Engineering
"Ministry of Housing, Communities and Local Government",Homes England,RI - MONIITORING SURVEYOR FEES,Investment,CUSHMAN & WAKEFIELD DEBENHAM TIE LEUNG,02/06/2021,840,L,81101500,Civil Engineering
"Ministry of Housing, Communities and Local Government",Homes England,RI - MONIITORING SURVEYOR FEES,Investment,CUSHMAN & WAKEFIELD DEBENHAM TIE LEUNG,03/06/2021,840,L,81101500,Civil Engineering
"Ministry of Housing, Communities and Local Government",Homes England,RI - MONIITORING SURVEYOR FEES,Investment,CUSHMAN & WAKEFIELD DEBENHAM TIE LEUNG,03/06/2021,840,L,81101500,Civil Engineering
"Ministry of Housing, Communities and Local Government",Homes England,RI - MONIITORING SURVEYOR FEES,Investment,CUSHMAN & WAKEFIELD DEBENHAM TIE LEUNG,07/06/2021,840,L,81101500,Civil Engineering
"Ministry of Housing, Communities and Local Government",Homes England,RI - MONIITORING SURVEYOR FEES,Investment,CUSHMAN & WAKEFIELD DEBENHAM TIE LEUNG,10/06/2021,840,L,81101500,Civil Engineering
"Ministry of Housing, Communities and Local Government",Homes England,PROPERTY SERVICES,MPP,CUSHMAN & WAKEFIELD DEBENHAM TIE LEUNG,01/06/2021,600,L,80131800,Real estate management services
"Ministry of Housing, Communities and Local Government",Homes England,INTERNAL COMMUNICATIONS,Executive Office,DAVID TETT PHOTOGRAPHY LTD,09/06/2021,960,S,82131600,Photographers and cinematographers
"Ministry of Housing, Communities and Local Government",Homes England,LANDSCAPING & PLANTS,Development,DEEDMAN TROPICAL PLANT HIRE COMPANY,01/06/2021,449.28,S,10161600,Floral plants
"Ministry of Housing, Communities and Local Government",Homes England,LANDSCAPING & PLANTS,Development,DEEDMAN TROPICAL PLANT HIRE COMPANY,29/06/2021,449.28,S,10161600,Floral plants
"Ministry of Housing, Communities and Local Government",Homes England,LANDSCAPING & PLANTS,Development,DEEDMAN TROPICAL PLANT HIRE COMPANY,01/06/2021,327.6,S,10161600,Floral plants
"Ministry of Housing, Communities and Local Government",Homes England,LANDSCAPING & PLANTS,Development,DEEDMAN TROPICAL PLANT HIRE COMPANY,29/06/2021,327.6,S,10161600,Floral plants
"Ministry of Housing, Communities and Local Government",Homes England,OTHER PROFESSIONAL FEES,Development,DESIGN FOR HOMES,18/06/2021,3252,S,80131800,Real estate management services
"Ministry of Housing, Communities and Local Government",Homes England,LEGAL FEES (PROGRAMME - RDEL),MPP,DWF LLP,29/06/2021,3853.8,L,80121600,Business law services
"Ministry of Housing, Communities and Local Government",Homes England,LEGAL FEES (PROGRAMME - CDEL),MPP,DWF LLP,03/06/2021,2208.6,L,80121600,Business law services
"Ministry of Housing, Communities and Local Government",Homes England,LEGAL FEES (PROGRAMME - RDEL),Development,DWF LLP,24/06/2021,1974,L,80121600,Business law services
"Ministry of Housing, Communities and Local Government",Homes England,LEGAL FEES (PROGRAMME - CDEL),Development,DWF LLP,23/06/2021,989.4,L,80121600,Business law services
"Ministry of Housing, Communities and Local Government",Homes England,LEGAL FEES (PROGRAMME - RDEL),MPP,DWF LLP,07/06/2021,840,L,80121600,Business law services
"Ministry of Housing, Communities and Local Government",Homes England,LEGAL FEES (PROGRAMME - RDEL),MPP,DWF LLP,29/06/2021,818.4,L,80121600,Business law services
"Ministry of Housing, Communities and Local Government",Homes England,DISPOSAL FEES - LEGAL,MPP,DWF LLP,28/06/2021,417.6,L,80121600,Business law services
"Ministry of Housing, Communities and Local Government",Homes England,ST FUND LOANS ADDITIONS,Investment,80 DOVECOTE ROAD LTD,02/06/2021,140596,L,None,Loans
"Ministry of Housing, Communities and Local Government",Homes England,ST FUND LOANS ADDITIONS,Investment,DURLEY ROAD DEVELOPMENTS LLP,09/06/2021,306000,S,None,Loans
"Ministry of Housing, Communities and Local Government",Homes England,TAXIS,Development,DEAN TAXI LIMITED,04/06/2021,857.6,S,78111800,Passenger road transportation
"Ministry of Housing, Communities and Local Government",Homes England,TAXIS,Development,DEAN TAXI LIMITED,04/06/2021,102.91,S,78111800,Passenger road transportation
"Ministry of Housing, Communities and Local Government",Homes England,ESTATE GENERAL MAINTENANCE,Development,DR TREE SURGEONS,10/06/2021,450,S,72101500,Building maintenance and repair services
"Ministry of Housing, Communities and Local Government",Homes England,DATA CENTRE,Corporate Resources,VODAFONE LIMITEDTHUS LTD,25/06/2021,360,L,81112000,Data Services
"Ministry of Housing, Communities and Local Government",Homes England,ESTATE GENERAL MAINTENANCE,Development,THE WATT GROUP (NORTH EAST) LTD,28/06/2021,1032,S,72101500,Building maintenance and repair services
"Ministry of Housing, Communities and Local Government",Homes England,ESTATE GENERAL MAINTENANCE,Development,THE WATT GROUP (NORTH EAST) LTD,28/06/2021,978,S,72101500,Building maintenance and repair services
"Ministry of Housing, Communities and Local Government",Homes England,PAYMENT OF INSURANCE AWARDS,Development,DAC BEACHCROFT CLAIMS LTD,24/06/2021,1000,L,84131500,Insurance services for structures and property and possessions
"Ministry of Housing, Communities and Local Government",Homes England,NETWORKS,Corporate Resources,DAISY CORPORATE SERVICES TRADING LIMITED,11/06/2021,8999.39,L,81112100,Internet Services
"Ministry of Housing, Communities and Local Government",Homes England,MISC PROFESSIONAL FEES,Service Design And Transformation,DXW,28/06/2021,25650,M,80101500,Business and corporate management consultation services
"Ministry of Housing, Communities and Local Government",Homes England,MISC PROFESSIONAL FEES,Service Design And Transformation,DXW,11/06/2021,25093.1,M,80101500,Business and corporate management consultation services
"Ministry of Housing, Communities and Local Government",Homes England,MISC PROFESSIONAL FEES,Service Design And Transformation,DXW,17/06/2021,18810,M,80101500,Business and corporate management consultation services
"Ministry of Housing, Communities and Local Government",Homes England,MISC PROFESSIONAL FEES,Service Design And Transformation,DXW,11/06/2021,15960,M,80101500,Business and corporate management consultation services
"Ministry of Housing, Communities and Local Government",Homes England,MISC PROFESSIONAL FEES,Service Design And Transformation,DXW,11/06/2021,13680,M,80101500,Business and corporate management consultation services
"Ministry of Housing, Communities and Local Government",Homes England,DISPOSAL FEES - LEGAL,MPP,DWF LAW LLP,03/06/2021,8101.92,L,80121600,Business law services
"Ministry of Housing, Communities and Local Government",Homes England,DISPOSAL FEES - LEGAL,MPP,DWF LAW LLP,01/06/2021,4803.6,L,80121600,Business law services
"Ministry of Housing, Communities and Local Government",Homes England,DISPOSAL FEES - LEGAL,MPP,DWF LAW LLP,14/06/2021,2431.92,L,80121600,Business law services
"Ministry of Housing, Communities and Local Government",Homes England,LEGAL FEES (ADMIN ONLY),Corporate Resources,DWF LAW LLP,03/06/2021,1800,L,80121600,Business law services
"Ministry of Housing, Communities and Local Government",Homes England,DISPOSAL FEES - LEGAL,Development,DWF LAW LLP,04/06/2021,1658.34,L,80121600,Business law services
"Ministry of Housing, Communities and Local Government",Homes England,PROF FEES LOANS CAPITALISED,Investment,DWF LAW LLP,14/06/2021,1195.86,L,80121600,Business law services
"Ministry of Housing, Communities and Local Government",Homes England,LEGAL FEES (PROGRAMME - RDEL),Development,DWF LAW LLP,24/06/2021,1170.96,L,80121600,Business law services
"Ministry of Housing, Communities and Local Government",Homes England,LEGAL FEES (PROGRAMME - CDEL),Development,DWF LAW LLP,01/06/2021,960,L,80121600,Business law services
"Ministry of Housing, Communities and Local Government",Homes England,LEGAL FEES (PROGRAMME - RDEL),MPP,DWF LAW LLP,17/06/2021,745.8,L,80121600,Business law services
"Ministry of Housing, Communities and Local Government",Homes England,LEGAL FEES (ADMIN ONLY),Corporate Resources,DWF LAW LLP,03/06/2021,600,L,80121600,Business law services
"Ministry of Housing, Communities and Local Government",Homes England,AGENCY STAFF,Service Design And Transformation,DWF LAW LLP,03/06/2021,600,L,80111600,Temporary personnel services
"Ministry of Housing, Communities and Local Government",Homes England,LEGAL FEES (ADMIN ONLY),Corporate Resources,DWF LAW LLP,03/06/2021,600,L,80121600,Business law services
"Ministry of Housing, Communities and Local Government",Homes England,LEGAL FEES (ADMIN ONLY),Corporate Resources,DWF LAW LLP,09/06/2021,600,L,80121600,Business law services
"Ministry of Housing, Communities and Local Government",Homes England,LEGAL FEES (ADMIN ONLY),Corporate Resources,DWF LAW LLP,09/06/2021,600,L,80121600,Business law services
"Ministry of Housing, Communities and Local Government",Homes England,AGENCY STAFF,Development,DWF LAW LLP,16/06/2021,600,L,80111600,Temporary personnel services
"Ministry of Housing, Communities and Local Government",Homes England,AGENCY STAFF,Development,DWF LAW LLP,16/06/2021,600,L,80111600,Temporary personnel services
"Ministry of Housing, Communities and Local Government",Homes England,AGENCY STAFF,Development,DWF LAW LLP,16/06/2021,600,L,80111600,Temporary personnel services
"Ministry of Housing, Communities and Local Government",Homes England,LEGAL FEES (PROGRAMME - CDEL),MPP,DWF LAW LLP,08/06/2021,550.44,L,80121600,Business law services
"Ministry of Housing, Communities and Local Government",Homes England,LEGAL FEES (PROGRAMME - RDEL),Development,DWF LAW LLP,09/06/2021,547.74,L,80121600,Business law services
"Ministry of Housing, Communities and Local Government",Homes England,LEGAL FEES (PROGRAMME - RDEL),MPP,DWF LAW LLP,14/06/2021,540,L,80121600,Business law services
"Ministry of Housing, Communities and Local Government",Homes England,LEGAL FEES (PROGRAMME - RDEL),Investment,DENTONS UK & MIDDLES EAT LLP,23/06/2021,46200,L,80121600,Business law services
"Ministry of Housing, Communities and Local Government",Homes England,PACKAGE MAINTENANCE & SUBSCRIP,Corporate Resources,DB GROUP LTD T/A ESUASIVE,07/06/2021,918,S,43231500,Business function specific software
"Ministry of Housing, Communities and Local Government",Homes England,OTHER PROFESSIONAL FEES,Development,WOOD ENVIRONMENT & INFRASTRUCTURE SOLUTIONS,17/06/2021,55200,L,80131800,Real estate management services
"Ministry of Housing, Communities and Local Government",Homes England,PLANNING APPLICATIONS,MPP,WOOD ENVIRONMENT & INFRASTRUCTURE SOLUTIONS,29/06/2021,8484,L,80131800,Real estate management services
"Ministry of Housing, Communities and Local Government",Homes England,ENGINEERING FEES,MPP,WOOD ENVIRONMENT & INFRASTRUCTURE SOLUTIONS,11/06/2021,7038,L,81101500,Civil Engineering
"Ministry of Housing, Communities and Local Government",Homes England,DRAINS & SEWERS,MPP,WOOD ENVIRONMENT & INFRASTRUCTURE SOLUTIONS,14/06/2021,5883.6,L,72101500,Building maintenance and repair services
"Ministry of Housing, Communities and Local Government",Homes England,PROPERTY SERVICES,MPP,WOOD ENVIRONMENT & INFRASTRUCTURE SOLUTIONS,25/06/2021,3393.6,L,80131800,Real estate management services
"Ministry of Housing, Communities and Local Government",Homes England,ENGINEERING FEES,MPP,WOOD ENVIRONMENT & INFRASTRUCTURE SOLUTIONS,29/06/2021,3120,L,81101500,Civil Engineering
"Ministry of Housing, Communities and Local Government",Homes England,PROPERTY SERVICES,MPP,WOOD ENVIRONMENT & INFRASTRUCTURE SOLUTIONS,25/06/2021,2648.22,L,80131800,Real estate management services
"Ministry of Housing, Communities and Local Government",Homes England,ENGINEERING CONSULTANTS,Development,WOOD ENVIRONMENT & INFRASTRUCTURE SOLUTIONS,21/06/2021,2400,L,81101500,Civil Engineering
"Ministry of Housing, Communities and Local Government",Homes England,PROPERTY SERVICES,MPP,WOOD ENVIRONMENT & INFRASTRUCTURE SOLUTIONS,25/06/2021,1738.8,L,80131800,Real estate management services
"Ministry of Housing, Communities and Local Government",Homes England,PROPERTY SERVICES,MPP,WOOD ENVIRONMENT & INFRASTRUCTURE SOLUTIONS,25/06/2021,1196.93,L,80131800,Real estate management services
"Ministry of Housing, Communities and Local Government",Homes England,PROPERTY SERVICES,MPP,WOOD ENVIRONMENT & INFRASTRUCTURE SOLUTIONS,25/06/2021,300,L,80131800,Real estate management services
"Ministry of Housing, Communities and Local Government",Homes England,CAR HIRE,Development,ENTERPRISE RENT A CAR,28/06/2021,434.11,L,78111800,Passenger road transportation
"Ministry of Housing, Communities and Local Government",Homes England,ST FUND LOANS ADDITIONS,Investment,EAST CHALLOWS LLP,14/06/2021,342900,L,None,Loans
"Ministry of Housing, Communities and Local Government",Homes England,L&OD STRATEGIC - HR USE ONLY,Corporate Resources,ERNST & YOUNG,08/06/2021,6129.78,L,86101800,In service training and manpower development
"Ministry of Housing, Communities and Local Government",Homes England,REWARD & EXCELLENCE,Corporate Resources,EDENRED (UK GROUP) LTD,10/06/2021,1525,L,80111500,Human resource development
"Ministry of Housing, Communities and Local Government",Homes England,ST FUND LOANS ADDITIONS,Investment,EDG IRONMONGER LTD,09/06/2021,327167.22,S,None,Loans
"Ministry of Housing, Communities and Local Government",Homes England,COMPUTERS - ADDITIONS,Corporate Resources,EE LTD,16/06/2021,9462,L,43211500,Computers
"Ministry of Housing, Communities and Local Government",Homes England,COMPUTERS - ADDITIONS,Corporate Resources,EE LTD,16/06/2021,498,L,43211500,Computers
"Ministry of Housing, Communities and Local Government",Homes England,LEGAL FEES (PROGRAMME - RDEL),Development,EVERSHEDS CLIENT ACCOUNT,09/06/2021,28600.8,L,None,Acquisitions
"Ministry of Housing, Communities and Local Government",Homes England,LEGAL FEES (PROGRAMME - RDEL),MPP,EVERSHEDS CLIENT ACCOUNT,22/06/2021,25200,L,None,Acquisitions
"Ministry of Housing, Communities and Local Government",Homes England,LEGAL FEES (PROGRAMME - RDEL),MPP,EVERSHEDS CLIENT ACCOUNT,08/06/2021,12150,L,80121600,Business law services
"Ministry of Housing, Communities and Local Government",Homes England,LEGAL FEES (PROGRAMME - RDEL),MPP,EVERSHEDS CLIENT ACCOUNT,01/06/2021,9000,L,80121600,Business law services
"Ministry of Housing, Communities and Local Government",Homes England,LEGAL FEES (PROGRAMME - RDEL),MPP,EVERSHEDS CLIENT ACCOUNT,08/06/2021,6000,L,80121600,Business law services
"Ministry of Housing, Communities and Local Government",Homes England,LEGAL FEES (PROGRAMME - CDEL),Development,EVERSHEDS CLIENT ACCOUNT,03/06/2021,2160,L,80121600,Business law services
"Ministry of Housing, Communities and Local Government",Homes England,LEGAL FEES (PROGRAMME - RDEL),Development,EVERSHEDS CLIENT ACCOUNT,29/06/2021,1667.14,L,80121600,Business law services
"Ministry of Housing, Communities and Local Government",Homes England,LEGAL FEES (PROGRAMME - CDEL),Development,EVERSHEDS CLIENT ACCOUNT,29/06/2021,1301.14,L,80121600,Business law services
"Ministry of Housing, Communities and Local Government",Homes England,LEGAL FEES (PROGRAMME - RDEL),Investment,EVERSHEDS CLIENT ACCOUNT,21/06/2021,900,L,80121600,Business law services
"Ministry of Housing, Communities and Local Government",Homes England,LEGAL FEES (PROGRAMME - RDEL),Investment,EVERSHEDS CLIENT ACCOUNT,21/06/2021,300,L,80121600,Business law services
"Ministry of Housing, Communities and Local Government",Homes England,ST FUND LOANS ADDITIONS,Investment,ERRIS HOMES (YORKSHIRE) LIMITED,03/06/2021,123480,S,None,Loans
"Ministry of Housing, Communities and Local Government",Homes England,ST FUND LOANS ADDITIONS,Investment,ERRIS HOMES (YORKSHIRE) LIMITED,29/06/2021,110359,S,None,Loans
"Ministry of Housing, Communities and Local Government",Homes England,FENCE MAINTENANCE,Development,ECOLOGICAL LAND MANGEMENT LTD,02/06/2021,3960.35,S,72102900,Facility maintenance and repair services
"Ministry of Housing, Communities and Local Government",Homes England,FENCE MAINTENANCE,Development,ECOLOGICAL LAND MANGEMENT LTD,02/06/2021,3764.16,S,72102900,Facility maintenance and repair services
"Ministry of Housing, Communities and Local Government",Homes England,FENCE MAINTENANCE,Development,ECOLOGICAL LAND MANGEMENT LTD,02/06/2021,1758.24,S,72102900,Facility maintenance and repair services
"Ministry of Housing, Communities and Local Government",Homes England,FENCE MAINTENANCE,Development,ECOLOGICAL LAND MANGEMENT LTD,02/06/2021,1265.29,S,72102900,Facility maintenance and repair services
"Ministry of Housing, Communities and Local Government",Homes England,ESTATE GENERAL MAINTENANCE,Development,ECOLOGICAL LAND MANGEMENT LTD,24/06/2021,402,S,72101500,Building maintenance and repair services
"Ministry of Housing, Communities and Local Government",Homes England,ST FUND LOANS ADDITIONS,Investment,EVANS MANN COMMERCIAL LTD,14/06/2021,134333,L,None,Loans
"Ministry of Housing, Communities and Local Government",Homes England,EXTERNAL BUILDING MAINTENANCE,MPP,EMCOR GROUP (UK) lTD,14/06/2021,1378.64,L,72101500,Building maintenance and repair services
"Ministry of Housing, Communities and Local Government",Homes England,LANDSCAPE MAINT-BUILT ESTATE,MPP,ELMTREE GARDEN CONTRACTORS LTD,25/06/2021,681,M,72102900,Facility maintenance and repair services
"Ministry of Housing, Communities and Local Government",Homes England,BUILDINGS-GAS,Development,ENERGY ASSETS LIMITED,16/06/2021,2934.32,M,83101600,Oil and gas utilities
"Ministry of Housing, Communities and Local Government",Homes England,MANAGEMENT COSTS,Development,ENERGY ASSETS LIMITED,16/06/2021,1248,M,80131800,Real estate management services
"Ministry of Housing, Communities and Local Government",Homes England,BUILDINGS-GAS,Development,ENERGY ASSETS LIMITED,23/06/2021,918.88,M,83101600,Oil and gas utilities
"Ministry of Housing, Communities and Local Government",Homes England,PLANNING APPLICATIONS,MPP,EVERSHEDS SUTHERLAND LLP CLIENT ACCOUNT,23/06/2021,360,L,80131800,Real estate management services
"Ministry of Housing, Communities and Local Government",Homes England,STAFF RECRUITMENT COSTS,Corporate Allocations,EXPERIAN,28/06/2021,33600,L,80111700,Personnel Recruitment
"Ministry of Housing, Communities and Local Government",Homes England,MISC PROFESSIONAL FEES,Development,EXPERIAN,02/06/2021,580.8,L,94101500,Business associations
"Ministry of Housing, Communities and Local Government",Homes England,CAP GRNTS TO LOCAL AUTHORITIES,Investment,EASTLEIGH BOROUGH COUNCIL,29/06/2021,1101712.58,G,None,Grants
"Ministry of Housing, Communities and Local Government",Homes England,ST FUND LOANS ADDITIONS,Investment,EDWARDS HOMES (ST HELENS) LIMITED,11/06/2021,264357.42,L,None,Loans
"Ministry of Housing, Communities and Local Government",Homes England,MISC PROFESSIONAL FEES,Development,EDDISONS COMMERCIAL LIMITED,08/06/2021,4620,M,80131800,Real estate management services
"Ministry of Housing, Communities and Local Government",Homes England,PROF FEES LOANS CAPITALISED,Investment,EDDISONS COMMERCIAL LIMITED,04/06/2021,2940,M,80131800,Real estate management services
"Ministry of Housing, Communities and Local Government",Homes England,OTHER PROFESSIONAL FEES,Development,EDDISONS COMMERCIAL LIMITED,29/06/2021,1957.2,M,80131800,Real estate management services
"Ministry of Housing, Communities and Local Government",Homes England,PROF FEES LOANS CAPITALISED,Investment,EDDISONS COMMERCIAL LIMITED,29/06/2021,1800,M,80131800,Real estate management services
"Ministry of Housing, Communities and Local Government",Homes England,RI - MONIITORING SURVEYOR FEES,Investment,EDDISONS COMMERCIAL LIMITED,21/06/2021,900,M,81101500,Civil Engineering
"Ministry of Housing, Communities and Local Government",Homes England,RI - MONIITORING SURVEYOR FEES,Investment,EDDISONS COMMERCIAL LIMITED,07/06/2021,870,M,81101500,Civil Engineering
"Ministry of Housing, Communities and Local Government",Homes England,RI - MONIITORING SURVEYOR FEES,Investment,EDDISONS COMMERCIAL LIMITED,03/06/2021,714,M,81101500,Civil Engineering
"Ministry of Housing, Communities and Local Government",Homes England,MISC PROFESSIONAL FEES,Development,EDDISONS COMMERCIAL LIMITED,18/06/2021,324,M,80131800,Real estate management services
"Ministry of Housing, Communities and Local Government",Homes England,MASTERPLANNING FEES,Development,EAST HAMPSHIRE DISTRICT COUNCIL,23/06/2021,61779.19,G,81101500,Civil Engineering
"Ministry of Housing, Communities and Local Government",Homes England,MASTERPLANNING FEES,Development,EAST HAMPSHIRE DISTRICT COUNCIL,23/06/2021,45863.47,G,81101500,Civil Engineering
"Ministry of Housing, Communities and Local Government",Homes England,MASTERPLANNING FEES,Development,EAST HAMPSHIRE DISTRICT COUNCIL,02/06/2021,16519.8,G,81101500,Civil Engineering
"Ministry of Housing, Communities and Local Government",Homes England,MASTERPLANNING FEES,Development,EAST HAMPSHIRE DISTRICT COUNCIL,28/06/2021,14394.6,G,81101500,Civil Engineering
"Ministry of Housing, Communities and Local Government",Homes England,OTHER PROFESSIONAL FEES,MPP,EAST HAMPSHIRE DISTRICT COUNCIL,03/06/2021,13980,G,80131800,Real estate management services
"Ministry of Housing, Communities and Local Government",Homes England,OTHER PROFESSIONAL FEES,MPP,EAST HAMPSHIRE DISTRICT COUNCIL,25/06/2021,13980,G,80131800,Real estate management services
"Ministry of Housing, Communities and Local Government",Homes England,MASTERPLANNING FEES,Development,EAST HAMPSHIRE DISTRICT COUNCIL,02/06/2021,9525.17,G,81101500,Civil Engineering
"Ministry of Housing, Communities and Local Government",Homes England,MASTERPLANNING FEES,Development,EAST HAMPSHIRE DISTRICT COUNCIL,02/06/2021,3630,G,81101500,Civil Engineering
"Ministry of Housing, Communities and Local Government",Homes England,MASTERPLANNING FEES,Development,EAST HAMPSHIRE DISTRICT COUNCIL,28/06/2021,3630,G,81101500,Civil Engineering
"Ministry of Housing, Communities and Local Government",Homes England,MASTERPLANNING FEES,Development,EAST HAMPSHIRE DISTRICT COUNCIL,02/06/2021,2574,G,81101500,Civil Engineering
"Ministry of Housing, Communities and Local Government",Homes England,MASTERPLANNING FEES,Development,EAST HAMPSHIRE DISTRICT COUNCIL,02/06/2021,2347.49,G,81101500,Civil Engineering
"Ministry of Housing, Communities and Local Government",Homes England,ESTATE GENERAL MAINTENANCE,Development,ECO SITE SOLUTIONS LTD,18/06/2021,3840,S,72101500,Building maintenance and repair services
"Ministry of Housing, Communities and Local Government",Homes England,OTHER PROFESSIONAL FEES,Development,AECOM LIMITED,24/06/2021,83825.74,L,80131800,Real estate management services
"Ministry of Housing, Communities and Local Government",Homes England,OTHER PROFESSIONAL FEES,Development,AECOM LIMITED,01/06/2021,76060.72,L,80131800,Real estate management services
"Ministry of Housing, Communities and Local Government",Homes England,ENVIRONMENTAL ASSESMENT,MPP,AECOM LIMITED,30/06/2021,29987.56,L,77101500,Environmental auditing
"Ministry of Housing, Communities and Local Government",Homes England,ENVIRONMENTAL ASSESMENT,MPP,AECOM LIMITED,07/06/2021,12328.36,L,77101500,Environmental auditing
"Ministry of Housing, Communities and Local Government",Homes England,ENGINEERING FEES,MPP,AECOM LIMITED,14/06/2021,5788.8,L,81101500,Civil Engineering
"Ministry of Housing, Communities and Local Government",Homes England,RI - MONIITORING SURVEYOR FEES,Investment,AECOM LIMITED,17/06/2021,2301.74,L,81101500,Civil Engineering
"Ministry of Housing, Communities and Local Government",Homes England,RI - MONIITORING SURVEYOR FEES,Investment,AECOM LIMITED,14/06/2021,1980,L,81101500,Civil Engineering
"Ministry of Housing, Communities and Local Government",Homes England,ENGINEERING CONSULTANTS,Development,AECOM LIMITED,02/06/2021,660,L,81101500,Civil Engineering
"Ministry of Housing, Communities and Local Government",Homes England,PROF FEES LOANS CAPITALISED,Investment,SAVILLS UK LIMITED,18/06/2021,21600,L,80131800,Real estate management services
"Ministry of Housing, Communities and Local Government",Homes England,DISPOSAL FEES - PROPERTY AGENT,Development,SAVILLS UK LIMITED,03/06/2021,18000,L,80131600,Sale of property and building
"Ministry of Housing, Communities and Local Government",Homes England,RI - SITE VALUATION FEES,Investment,SAVILLS UK LIMITED,14/06/2021,18000,L,80131800,Real estate management services
"Ministry of Housing, Communities and Local Government",Homes England,DISPOSAL FEES - PROPERTY AGENT,Development,SAVILLS UK LIMITED,28/06/2021,16800,L,80131600,Sale of property and building
"Ministry of Housing, Communities and Local Government",Homes England,DISPOSAL FEES - PROPERTY AGENT,Development,SAVILLS UK LIMITED,07/06/2021,13800,L,80131600,Sale of property and building
"Ministry of Housing, Communities and Local Government",Homes England,DISPOSAL FEES - PROPERTY AGENT,Development,SAVILLS UK LIMITED,07/06/2021,12000,L,80131600,Sale of property and building
"Ministry of Housing, Communities and Local Government",Homes England,VALUATION FEES,Development,SAVILLS UK LIMITED,10/06/2021,9600,L,80131800,Real estate management services
"Ministry of Housing, Communities and Local Government",Homes England,DISPOSAL FEES - PROPERTY AGENT,Development,SAVILLS UK LIMITED,14/06/2021,6000,L,80131600,Sale of property and building
"Ministry of Housing, Communities and Local Government",Homes England,LEGAL FEES (PROGRAMME - RDEL),Investment,SAVILLS UK LIMITED,11/06/2021,1800,L,80121600,Business law services
"Ministry of Housing, Communities and Local Government",Homes England,PROPERTY SERVICES,MPP,SAVILLS UK LIMITED,09/06/2021,1365.3,L,80131800,Real estate management services
"Ministry of Housing, Communities and Local Government",Homes England,VALUATION FEES,Development,SAVILLS UK LIMITED,15/06/2021,696,L,80131800,Real estate management services
"Ministry of Housing, Communities and Local Government",Homes England,LT FUND LOANS (PS) ADDITIONS,Investment,FAIRBRIDGE DEVELOPMENTS LTD,18/06/2021,187872,S,None,Loans
"Ministry of Housing, Communities and Local Government",Homes England,ST FUND LOANS ADDITIONS,Investment,FP (YE CORNER) LIMITED,15/06/2021,181624.35,L,None,Loans
"Ministry of Housing, Communities and Local Government",Homes England,MISC PROFESSIONAL FEES,Development,4WARD MANAGEMENT LIMITED,14/06/2021,900,S,81101500,Civil Engineering
"Ministry of Housing, Communities and Local Government",Homes England,ESTATE GENERAL MAINTENANCE,Development,R FOX T/A SOUTHCOAST MAINTENANCE,09/06/2021,2640,S,72101500,Building maintenance and repair services
"Ministry of Housing, Communities and Local Government",Homes England,EXTERNAL BUILDING MAINTENANCE,Development,R FOX T/A SOUTHCOAST MAINTENANCE,09/06/2021,1929.6,S,72101500,Building maintenance and repair services
"Ministry of Housing, Communities and Local Government",Homes England,DRAINS & SEWERS,Development,R FOX T/A SOUTHCOAST MAINTENANCE,09/06/2021,1440,S,72101500,Building maintenance and repair services
"Ministry of Housing, Communities and Local Government",Homes England,EXTERNAL BUILDING MAINTENANCE,Development,R FOX T/A SOUTHCOAST MAINTENANCE,09/06/2021,840,S,72101500,Building maintenance and repair services
"Ministry of Housing, Communities and Local Government",Homes England,ESTATE GENERAL MAINTENANCE,Development,R FOX T/A SOUTHCOAST MAINTENANCE,09/06/2021,840,S,72101500,Building maintenance and repair services
"Ministry of Housing, Communities and Local Government",Homes England,MANAGEMENT COSTS,Development,R FOX T/A SOUTHCOAST MAINTENANCE,09/06/2021,756,S,80131800,Real estate management services
"Ministry of Housing, Communities and Local Government",Homes England,MANAGEMENT COSTS,Development,R FOX T/A SOUTHCOAST MAINTENANCE,09/06/2021,734.4,S,80131800,Real estate management services
"Ministry of Housing, Communities and Local Government",Homes England,MANAGEMENT COSTS,Development,R FOX T/A SOUTHCOAST MAINTENANCE,09/06/2021,720,S,80131800,Real estate management services
"Ministry of Housing, Communities and Local Government",Homes England,BUILDINGS-WATER,Development,R FOX T/A SOUTHCOAST MAINTENANCE,09/06/2021,670.8,S,83101500,Water and sewer utilities
"Ministry of Housing, Communities and Local Government",Homes England,MANAGEMENT COSTS,Development,R FOX T/A SOUTHCOAST MAINTENANCE,18/06/2021,642,S,80131800,Real estate management services
"Ministry of Housing, Communities and Local Government",Homes England,MANAGEMENT COSTS,Development,R FOX T/A SOUTHCOAST MAINTENANCE,18/06/2021,480,S,80131800,Real estate management services
"Ministry of Housing, Communities and Local Government",Homes England,MANAGEMENT COSTS,Development,R FOX T/A SOUTHCOAST MAINTENANCE,09/06/2021,420,S,80131800,Real estate management services
"Ministry of Housing, Communities and Local Government",Homes England,MANAGEMENT COSTS,Development,R FOX T/A SOUTHCOAST MAINTENANCE,18/06/2021,360,S,80131800,Real estate management services
"Ministry of Housing, Communities and Local Government",Homes England,ESTATE GENERAL MAINTENANCE,MPP,R FOX T/A SOUTHCOAST MAINTENANCE,18/06/2021,360,S,72101500,Building maintenance and repair services
"Ministry of Housing, Communities and Local Government",Homes England,SECURITY,Development,R FOX T/A SOUTHCOAST MAINTENANCE,09/06/2021,304.8,S,92121500,Guard services
"Ministry of Housing, Communities and Local Government",Homes England,MANAGEMENT COSTS,Development,R FOX T/A SOUTHCOAST MAINTENANCE,21/06/2021,300,S,80131800,Real estate management services
"Ministry of Housing, Communities and Local Government",Homes England,LT FUND LOANS (PS) ADDITIONS,Investment,FAIRHAM PASTURES DEVELOPMENT LTD,28/06/2021,1244913.29,S,None,Loans
"Ministry of Housing, Communities and Local Government",Homes England,SECURITY,Development,FALCON SECURITY,02/06/2021,31386.91,S,92121500,Guard services
"Ministry of Housing, Communities and Local Government",Homes England,SECURITY,Development,FALCON SECURITY,24/06/2021,31326.72,S,92121500,Guard services
"Ministry of Housing, Communities and Local Government",Homes England,SECURITY,Development,FALCON SECURITY,24/06/2021,30966.72,S,92121500,Guard services
"Ministry of Housing, Communities and Local Government",Homes England,SECURITY,Development,FALCON SECURITY,24/06/2021,30122.88,S,92121500,Guard services
"Ministry of Housing, Communities and Local Government",Homes England,SECURITY,Development,FALCON SECURITY,02/06/2021,6631.48,S,92121500,Guard services
"Ministry of Housing, Communities and Local Government",Homes England,SECURITY,Development,FALCON SECURITY,24/06/2021,4584,S,92121500,Guard services
"Ministry of Housing, Communities and Local Government",Homes England,SECURITY,Development,FALCON SECURITY,24/06/2021,2592,S,92121500,Guard services
"Ministry of Housing, Communities and Local Government",Homes England,SECURITY,Development,FALCON SECURITY,24/06/2021,1536,S,92121500,Guard services
"Ministry of Housing, Communities and Local Government",Homes England,EXTERNAL BUILDING MAINTENANCE,Development,FIRST NATIONAL SERVICES LTD,24/06/2021,1923.6,S,72101500,Building maintenance and repair services
"Ministry of Housing, Communities and Local Government",Homes England,DRAINS & SEWERS,MPP,FIRST CHOICE CLEANING & MAINTENANCE LTD,29/06/2021,3420,M,72101500,Building maintenance and repair services
"Ministry of Housing, Communities and Local Government",Homes England,EXTERNAL BUILDING MAINTENANCE,Development,FIRST CHOICE CLEANING & MAINTENANCE LTD,29/06/2021,1648.8,M,72101500,Building maintenance and repair services
"Ministry of Housing, Communities and Local Government",Homes England,EXTERNAL BUILDING MAINTENANCE,Development,FIRST CHOICE CLEANING & MAINTENANCE LTD,29/06/2021,752.4,M,72101500,Building maintenance and repair services
"Ministry of Housing, Communities and Local Government",Homes England,ESTATE GENERAL MAINTENANCE,MPP,FIRST CHOICE CLEANING & MAINTENANCE LTD,29/06/2021,630,M,72101500,Building maintenance and repair services
"Ministry of Housing, Communities and Local Government",Homes England,EXTERNAL BUILDING MAINTENANCE,Development,FIRST CHOICE CLEANING & MAINTENANCE LTD,29/06/2021,449.08,M,72101500,Building maintenance and repair services
"Ministry of Housing, Communities and Local Government",Homes England,LEGAL FEES (PROGRAMME - CDEL),MPP,Francis Taylor Building,03/06/2021,6300,S,80121600,Business law services
"Ministry of Housing, Communities and Local Government",Homes England,SECURITY,Development,FIRST RESPONSE GROUP LTD,04/06/2021,775.3,M,92121500,Guard services
"Ministry of Housing, Communities and Local Government",Homes England,ESTATE GENERAL MAINTENANCE,Development,F T GEARING L/S LTD,08/06/2021,1049.28,S,72101500,Building maintenance and repair services
"Ministry of Housing, Communities and Local Government",Homes England,ESTATE GENERAL MAINTENANCE,Development,F T GEARING L/S LTD,10/06/2021,598.8,S,72101500,Building maintenance and repair services
"Ministry of Housing, Communities and Local Government",Homes England,ESTATE GENERAL MAINTENANCE,Development,F T GEARING L/S LTD,08/06/2021,321.26,S,72101500,Building maintenance and repair services
"Ministry of Housing, Communities and Local Government",Homes England,OTHER EQUITY LA ADDITIONS,MPP,AVISON YOUNG (UK) LTD,02/06/2021,76400.1,L,80131800,Real estate management services
"Ministry of Housing, Communities and Local Government",Homes England,MISC PROFESSIONAL FEES,Development,AVISON YOUNG (UK) LTD,03/06/2021,58794,L,80131800,Real estate management services
"Ministry of Housing, Communities and Local Government",Homes England,ENGINEERING FEES,MPP,AVISON YOUNG (UK) LTD,02/06/2021,51644.4,L,81101500,Civil Engineering
"Ministry of Housing, Communities and Local Government",Homes England,MISC PROFESSIONAL FEES,Development,AVISON YOUNG (UK) LTD,02/06/2021,38364,L,80131800,Real estate management services
"Ministry of Housing, Communities and Local Government",Homes England,PROF FEES LOANS CAPITALISED,Investment,AVISON YOUNG (UK) LTD,10/06/2021,28800,L,80131800,Real estate management services
"Ministry of Housing, Communities and Local Government",Homes England,MISC PROFESSIONAL FEES,MPP,AVISON YOUNG (UK) LTD,01/06/2021,21285.6,L,80131800,Real estate management services
"Ministry of Housing, Communities and Local Government",Homes England,MISC PROFESSIONAL FEES,Development,AVISON YOUNG (UK) LTD,04/06/2021,11208,L,80131800,Real estate management services
"Ministry of Housing, Communities and Local Government",Homes England,DISPOSAL FEES - PROPERTY AGENT,MPP,AVISON YOUNG (UK) LTD,22/06/2021,2994,L,80131600,Sale of property and building
"Ministry of Housing, Communities and Local Government",Homes England,MANAGEMENT COSTS,Development,AVISON YOUNG (UK) LTD,24/06/2021,2550,L,80131800,Real estate management services
"Ministry of Housing, Communities and Local Government",Homes England,PLANNING FEES,MPP,AVISON YOUNG (UK) LTD,10/06/2021,2348.64,L,80131800,Real estate management services
"Ministry of Housing, Communities and Local Government",Homes England,MANAGEMENT COSTS,MPP,AVISON YOUNG (UK) LTD,16/06/2021,1800,L,80131800,Real estate management services
"Ministry of Housing, Communities and Local Government",Homes England,MANAGEMENT COSTS,MPP,AVISON YOUNG (UK) LTD,16/06/2021,1440,L,80131800,Real estate management services
"Ministry of Housing, Communities and Local Government",Homes England,MANAGEMENT COSTS,MPP,AVISON YOUNG (UK) LTD,18/06/2021,1440,L,80131800,Real estate management services
"Ministry of Housing, Communities and Local Government",Homes England,MISC PROFESSIONAL FEES,Development,AVISON YOUNG (UK) LTD,02/06/2021,1017.9,L,80131800,Real estate management services
"Ministry of Housing, Communities and Local Government",Homes England,RI - MONIITORING SURVEYOR FEES,Investment,AVISON YOUNG (UK) LTD,04/06/2021,960,L,81101500,Civil Engineering
"Ministry of Housing, Communities and Local Government",Homes England,RI - MONIITORING SURVEYOR FEES,Investment,AVISON YOUNG (UK) LTD,04/06/2021,960,L,81101500,Civil Engineering
"Ministry of Housing, Communities and Local Government",Homes England,RI - MONIITORING SURVEYOR FEES,Investment,AVISON YOUNG (UK) LTD,16/06/2021,960,L,81101500,Civil Engineering
"Ministry of Housing, Communities and Local Government",Homes England,PLANNING APPLICATIONS,MPP,AVISON YOUNG (UK) LTD,25/06/2021,900,L,80131800,Real estate management services
"Ministry of Housing, Communities and Local Government",Homes England,MANAGEMENT COSTS,MPP,AVISON YOUNG (UK) LTD,18/06/2021,855,L,80131800,Real estate management services
"Ministry of Housing, Communities and Local Government",Homes England,PLANNING APPLICATIONS,Development,AVISON YOUNG (UK) LTD,24/06/2021,600,L,80131800,Real estate management services
"Ministry of Housing, Communities and Local Government",Homes England,ESTATE GENERAL MAINTENANCE,Development,GRASSTEX LIMITED,07/06/2021,510,S,72101500,Building maintenance and repair services
"Ministry of Housing, Communities and Local Government",Homes England,ESTATE GENERAL MAINTENANCE,Development,C G GODFREY LTD,17/06/2021,1062.55,S,72101500,Building maintenance and repair services
"Ministry of Housing, Communities and Local Government",Homes England,ST FUND LOANS ADDITIONS,Investment,GBR DEVELOPMENTS LLP,17/06/2021,8100,S,None,Loans
"Ministry of Housing, Communities and Local Government",Homes England,ST FUND LOANS ADDITIONS,Investment,GENUS DESIGN HOMES LIMITED,02/06/2021,101085.85,L,None,Loans
"Ministry of Housing, Communities and Local Government",Homes England,PROPERTY SERVICES,Development,GERALD EVE LLP,17/06/2021,11998.8,L,80131800,Real estate management services
"Ministry of Housing, Communities and Local Government",Homes England,CAP GRNTS TO LOCAL AUTHORITIES,Investment,GLOUCESTERSHIRE COUNTY COUNCIL,24/06/2021,626652.98,G,None,Grants
"Ministry of Housing, Communities and Local Government",Homes England,ST FUND LOANS ADDITIONS,Investment,GRC DEVELOPMENTS LIMITED,17/06/2021,48550,L,None,Loans
"Ministry of Housing, Communities and Local Government",Homes England,SERVICE RENTS/CHARGES,Development,AVISON YOUNG (UK) LTD,04/06/2021,6779,L,80131500,Lease and rental of property or building
"Ministry of Housing, Communities and Local Government",Homes England,SERVICE RENTS/CHARGES,Development,AVISON YOUNG (UK) LTD,01/06/2021,1500,L,80131500,Lease and rental of property or building
"Ministry of Housing, Communities and Local Government",Homes England,ESTATE GENERAL MAINTENANCE,MPP,GREENHATCH GROUP LIMITED,17/06/2021,3474,S,72101500,Building maintenance and repair services
"Ministry of Housing, Communities and Local Government",Homes England,RENT,Development,GOVERNMENT PROPERTY AGENCY,08/06/2021,67805.81,G,80131500,Lease and rental of property or building
"Ministry of Housing, Communities and Local Government",Homes England,SERVICE CHARGES,Development,GOVERNMENT PROPERTY AGENCY,22/06/2021,58727.9,G,80131500,Lease and rental of property or building
"Ministry of Housing, Communities and Local Government",Homes England,SERVICE CHARGES,Development,GOVERNMENT PROPERTY AGENCY,21/06/2021,39165.03,G,80131500,Lease and rental of property or building
"Ministry of Housing, Communities and Local Government",Homes England,RENT,Development,GOVERNMENT PROPERTY AGENCY,07/06/2021,31602.75,G,80131500,Lease and rental of property or building
"Ministry of Housing, Communities and Local Government",Homes England,RENT,Development,GOVERNMENT PROPERTY AGENCY,28/06/2021,14215.76,G,80131500,Lease and rental of property or building
"Ministry of Housing, Communities and Local Government",Homes England,SERVICE CHARGES,Development,GOVERNMENT PROPERTY AGENCY,07/06/2021,7697.09,G,80131500,Lease and rental of property or building
"Ministry of Housing, Communities and Local Government",Homes England,RENT,Development,GOVERNMENT PROPERTY AGENCY,07/06/2021,4125,G,80131500,Lease and rental of property or building
"Ministry of Housing, Communities and Local Government",Homes England,Management Fee,Development,GOVERNMENT PROPERTY AGENCY,28/06/2021,3243.6,G,80131500,Lease and rental of property or building
"Ministry of Housing, Communities and Local Government",Homes England,BUILDINGS-VACANT RATES,Development,GOSPORT BOROUGH COUNCIL,07/06/2021,931.69,G,80131500,Lease and rental of property or building
"Ministry of Housing, Communities and Local Government",Homes England,TRAINING COURSES & CONFERENCES,Investment,PARTNERSHIP MEDIA GROUP LTD T/A GOVNET COMMUN,18/06/2021,390,M,86101800,In service training and manpower development
"Ministry of Housing, Communities and Local Government",Homes England,CAP GRNTS TO LOCAL AUTHORITIES,Investment,GUILDFORD BOROUGH COUNCIL,29/06/2021,140975.58,G,None,Grants
"Ministry of Housing, Communities and Local Government",Homes England,OTHER PROFESSIONAL FEES,Development,GLEEDS ADVISORY LTD,22/06/2021,29250,S,80131800,Real estate management services
"Ministry of Housing, Communities and Local Government",Homes England,PROJECT MANAGEMENT,MPP,GLEEDS ADVISORY LTD,17/06/2021,3439.2,S,80101600,Project management
"Ministry of Housing, Communities and Local Government",Homes England,PROJECT MANAGEMENT,MPP,GLEEDS ADVISORY LTD,18/06/2021,3439.2,S,80101600,Project management
"Ministry of Housing, Communities and Local Government",Homes England,RI - MONIITORING SURVEYOR FEES,Investment,GLEEDS ADVISORY LTD,14/06/2021,1200,S,81101500,Civil Engineering
"Ministry of Housing, Communities and Local Government",Homes England,ESTATE GENERAL MAINTENANCE,Development,G.D.C LIMITED,17/06/2021,264,S,72101500,Building maintenance and repair services
"Ministry of Housing, Communities and Local Government",Homes England,AGENCY STAFF,Development,GREEN PARK INTERIM & EXECUTIVE LTD,07/06/2021,10032,M,80111600,Temporary personnel services
"Ministry of Housing, Communities and Local Government",Homes England,AGENCY STAFF,Development,GREEN PARK INTERIM & EXECUTIVE LTD,07/06/2021,10032,M,80111600,Temporary personnel services
"Ministry of Housing, Communities and Local Government",Homes England,AGENCY STAFF,Development,GREEN PARK INTERIM & EXECUTIVE LTD,07/06/2021,8778,M,80111600,Temporary personnel services
"Ministry of Housing, Communities and Local Government",Homes England,CAP GRNTS TO LOCAL AUTHORITIES,Investment,HYNDBURN BOROUGH COUNCIL,21/06/2021,363032.3,G,None,Grants
"Ministry of Housing, Communities and Local Government",Homes England,AGENCY STAFF,Investment,HAYS ACCOUNTANCY & FINANCE,09/06/2021,7900.2,L,80111600,Temporary personnel services
"Ministry of Housing, Communities and Local Government",Homes England,AGENCY STAFF,Investment,HAYS ACCOUNTANCY & FINANCE,09/06/2021,7900.2,L,80111600,Temporary personnel services
"Ministry of Housing, Communities and Local Government",Homes England,AGENCY STAFF,Investment,HAYS ACCOUNTANCY & FINANCE,18/06/2021,7900.2,L,80111600,Temporary personnel services
"Ministry of Housing, Communities and Local Government",Homes England,AGENCY STAFF,Investment,HAYS ACCOUNTANCY & FINANCE,25/06/2021,7900.2,L,80111600,Temporary personnel services
"Ministry of Housing, Communities and Local Government",Homes England,AGENCY STAFF,Corporate Resources,HAYS ACCOUNTANCY & FINANCE,25/06/2021,6726,L,80111600,Temporary personnel services
"Ministry of Housing, Communities and Local Government",Homes England,AGENCY STAFF,Investment,HAYS ACCOUNTANCY & FINANCE,11/06/2021,6320.16,L,80111600,Temporary personnel services
"Ministry of Housing, Communities and Local Government",Homes England,AGENCY STAFF,Corporate Resources,HAYS ACCOUNTANCY & FINANCE,25/06/2021,5158.52,L,80111600,Temporary personnel services
"Ministry of Housing, Communities and Local Government",Homes England,AGENCY STAFF,Corporate Resources,HAYS ACCOUNTANCY & FINANCE,25/06/2021,4884,L,80111600,Temporary personnel services
"Ministry of Housing, Communities and Local Government",Homes England,AGENCY STAFF,Corporate Resources,HAYS ACCOUNTANCY & FINANCE,04/06/2021,3540,L,80111600,Temporary personnel services
"Ministry of Housing, Communities and Local Government",Homes England,AGENCY STAFF,Corporate Resources,HAYS ACCOUNTANCY & FINANCE,17/06/2021,3540,L,80111600,Temporary personnel services
"Ministry of Housing, Communities and Local Government",Homes England,AGENCY STAFF,Corporate Resources,HAYS ACCOUNTANCY & FINANCE,25/06/2021,3540,L,80111600,Temporary personnel services
"Ministry of Housing, Communities and Local Government",Homes England,AGENCY STAFF,Corporate Resources,HAYS ACCOUNTANCY & FINANCE,16/06/2021,2995.2,L,80111600,Temporary personnel services
"Ministry of Housing, Communities and Local Government",Homes England,AGENCY STAFF,Corporate Resources,HAYS ACCOUNTANCY & FINANCE,11/06/2021,2832,L,80111600,Temporary personnel services
"Ministry of Housing, Communities and Local Government",Homes England,AGENCY STAFF,Development,HAYS ACCOUNTANCY & FINANCE,16/06/2021,2420.46,L,80111600,Temporary personnel services
"Ministry of Housing, Communities and Local Government",Homes England,AGENCY STAFF,Corporate Resources,HAYS ACCOUNTANCY & FINANCE,09/06/2021,1086.96,L,80111600,Temporary personnel services
"Ministry of Housing, Communities and Local Government",Homes England,AGENCY STAFF,Corporate Resources,HAYS ACCOUNTANCY & FINANCE,09/06/2021,1086.96,L,80111600,Temporary personnel services
"Ministry of Housing, Communities and Local Government",Homes England,AGENCY STAFF,Corporate Resources,HAYS ACCOUNTANCY & FINANCE,11/06/2021,1086.96,L,80111600,Temporary personnel services
"Ministry of Housing, Communities and Local Government",Homes England,AGENCY STAFF,Corporate Resources,HAYS ACCOUNTANCY & FINANCE,11/06/2021,1086.96,L,80111600,Temporary personnel services
"Ministry of Housing, Communities and Local Government",Homes England,AGENCY STAFF,Corporate Resources,HAYS ACCOUNTANCY & FINANCE,09/06/2021,869.57,L,80111600,Temporary personnel services
"Ministry of Housing, Communities and Local Government",Homes England,AGENCY STAFF,Corporate Resources,HAYS ACCOUNTANCY & FINANCE,11/06/2021,869.57,L,80111600,Temporary personnel services
"Ministry of Housing, Communities and Local Government",Homes England,AGENCY STAFF,Corporate Resources,HAYS ACCOUNTANCY & FINANCE,11/06/2021,869.57,L,80111600,Temporary personnel services
"Ministry of Housing, Communities and Local Government",Homes England,AGENCY STAFF,Corporate Resources,HAYS ACCOUNTANCY & FINANCE,01/06/2021,679.98,L,80111600,Temporary personnel services
"Ministry of Housing, Communities and Local Government",Homes England,AGENCY STAFF,Corporate Resources,HAYS ACCOUNTANCY & FINANCE,09/06/2021,652.18,L,80111600,Temporary personnel services
"Ministry of Housing, Communities and Local Government",Homes England,OTHER PROFESSIONAL FEES,MPP,ARCADIS CONSULTING (UK) LIMITED,30/06/2021,68257.2,L,80131800,Real estate management services
"Ministry of Housing, Communities and Local Government",Homes England,OTHER PROFESSIONAL FEES,MPP,ARCADIS CONSULTING (UK) LIMITED,23/06/2021,48500.4,L,80131800,Real estate management services
"Ministry of Housing, Communities and Local Government",Homes England,ENGINEERING FEES,MPP,ARCADIS CONSULTING (UK) LIMITED,14/06/2021,40878.41,L,81101500,Civil Engineering
"Ministry of Housing, Communities and Local Government",Homes England,PLANNING APPLICATIONS,MPP,ARCADIS CONSULTING (UK) LIMITED,11/06/2021,24009.01,L,80131800,Real estate management services
"Ministry of Housing, Communities and Local Government",Homes England,OTHER PROFESSIONAL FEES,MPP,ARCADIS CONSULTING (UK) LIMITED,07/06/2021,24000,L,80131800,Real estate management services
"Ministry of Housing, Communities and Local Government",Homes England,OTHER PROFESSIONAL FEES,MPP,ARCADIS CONSULTING (UK) LIMITED,30/06/2021,21000,L,80131800,Real estate management services
"Ministry of Housing, Communities and Local Government",Homes England,PROJECT MANAGEMENT,Development,ARCADIS CONSULTING (UK) LIMITED,23/06/2021,20068.36,L,80101600,Project management
"Ministry of Housing, Communities and Local Government",Homes England,PROJECT MANAGEMENT,MPP,ARCADIS CONSULTING (UK) LIMITED,01/06/2021,16776.86,L,80101600,Project management
"Ministry of Housing, Communities and Local Government",Homes England,OTHER PROFESSIONAL FEES,MPP,ARCADIS CONSULTING (UK) LIMITED,02/06/2021,11895.6,L,80131800,Real estate management services
"Ministry of Housing, Communities and Local Government",Homes England,ENGINEERING CONSULTANTS,Development,ARCADIS CONSULTING (UK) LIMITED,28/06/2021,3947.28,L,81101500,Civil Engineering
"Ministry of Housing, Communities and Local Government",Homes England,PROF FEES LOANS CAPITALISED,Investment,ARCADIS CONSULTING (UK) LIMITED,14/06/2021,3000,L,80131800,Real estate management services
"Ministry of Housing, Communities and Local Government",Homes England,PROF FEES LOANS CAPITALISED,Investment,ARCADIS CONSULTING (UK) LIMITED,14/06/2021,3000,L,80131800,Real estate management services
"Ministry of Housing, Communities and Local Government",Homes England,RI - MONIITORING SURVEYOR FEES,Investment,ARCADIS CONSULTING (UK) LIMITED,02/06/2021,2244,L,81101500,Civil Engineering
"Ministry of Housing, Communities and Local Government",Homes England,RI - MONIITORING SURVEYOR FEES,Investment,ARCADIS CONSULTING (UK) LIMITED,02/06/2021,2100,L,81101500,Civil Engineering
"Ministry of Housing, Communities and Local Government",Homes England,RI - MONIITORING SURVEYOR FEES,Investment,ARCADIS CONSULTING (UK) LIMITED,03/06/2021,1980,L,81101500,Civil Engineering
"Ministry of Housing, Communities and Local Government",Homes England,RI - MONIITORING SURVEYOR FEES,Investment,ARCADIS CONSULTING (UK) LIMITED,01/06/2021,1740,L,81101500,Civil Engineering
"Ministry of Housing, Communities and Local Government",Homes England,RI - MONIITORING SURVEYOR FEES,Investment,ARCADIS CONSULTING (UK) LIMITED,03/06/2021,1740,L,81101500,Civil Engineering
"Ministry of Housing, Communities and Local Government",Homes England,RI - MONIITORING SURVEYOR FEES,Investment,ARCADIS CONSULTING (UK) LIMITED,03/06/2021,1740,L,81101500,Civil Engineering
"Ministry of Housing, Communities and Local Government",Homes England,RI - MONIITORING SURVEYOR FEES,Investment,ARCADIS CONSULTING (UK) LIMITED,11/06/2021,1740,L,81101500,Civil Engineering
"Ministry of Housing, Communities and Local Government",Homes England,RI - MONIITORING SURVEYOR FEES,Investment,ARCADIS CONSULTING (UK) LIMITED,24/06/2021,1560,L,81101500,Civil Engineering
"Ministry of Housing, Communities and Local Government",Homes England,RI - MONIITORING SURVEYOR FEES,Investment,ARCADIS CONSULTING (UK) LIMITED,02/06/2021,1500,L,81101500,Civil Engineering
"Ministry of Housing, Communities and Local Government",Homes England,RI - MONIITORING SURVEYOR FEES,Investment,ARCADIS CONSULTING (UK) LIMITED,02/06/2021,1500,L,81101500,Civil Engineering
"Ministry of Housing, Communities and Local Government",Homes England,RI - MONIITORING SURVEYOR FEES,Investment,ARCADIS CONSULTING (UK) LIMITED,02/06/2021,1500,L,81101500,Civil Engineering
"Ministry of Housing, Communities and Local Government",Homes England,RI - MONIITORING SURVEYOR FEES,Investment,ARCADIS CONSULTING (UK) LIMITED,03/06/2021,1500,L,81101500,Civil Engineering
"Ministry of Housing, Communities and Local Government",Homes England,RI - MONIITORING SURVEYOR FEES,Investment,ARCADIS CONSULTING (UK) LIMITED,03/06/2021,1500,L,81101500,Civil Engineering
"Ministry of Housing, Communities and Local Government",Homes England,RI - MONIITORING SURVEYOR FEES,Investment,ARCADIS CONSULTING (UK) LIMITED,10/06/2021,1500,L,81101500,Civil Engineering
"Ministry of Housing, Communities and Local Government",Homes England,RI - MONIITORING SURVEYOR FEES,Investment,ARCADIS CONSULTING (UK) LIMITED,25/06/2021,1500,L,81101500,Civil Engineering
"Ministry of Housing, Communities and Local Government",Homes England,RI - MONIITORING SURVEYOR FEES,Investment,ARCADIS CONSULTING (UK) LIMITED,28/06/2021,1500,L,81101500,Civil Engineering
"Ministry of Housing, Communities and Local Government",Homes England,RI - MONIITORING SURVEYOR FEES,Investment,ARCADIS CONSULTING (UK) LIMITED,30/06/2021,1500,L,81101500,Civil Engineering
"Ministry of Housing, Communities and Local Government",Homes England,RI - MONIITORING SURVEYOR FEES,Investment,ARCADIS CONSULTING (UK) LIMITED,03/06/2021,840,L,81101500,Civil Engineering
"Ministry of Housing, Communities and Local Government",Homes England,LANDSCAPE MAINT-BUILT ESTATE,Development,HENDERSON & TAYLOR FM LIMITED,25/06/2021,586,M,72102900,Facility maintenance and repair services
"Ministry of Housing, Communities and Local Government",Homes England,PROPERTY SERVICES,MPP,HARTNELL TAYLOR COOK LLP,07/06/2021,2124,M,80131800,Real estate management services
"Ministry of Housing, Communities and Local Government",Homes England,PROPERTY SERVICES,Development,HARTNELL TAYLOR COOK LLP,07/06/2021,1125,M,80131800,Real estate management services
"Ministry of Housing, Communities and Local Government",Homes England,PROPERTY SERVICES,MPP,HARTNELL TAYLOR COOK LLP,08/06/2021,1062,M,80131800,Real estate management services
"Ministry of Housing, Communities and Local Government",Homes England,PROPERTY SERVICES,Development,HARTNELL TAYLOR COOK LLP,07/06/2021,424.8,M,80131800,Real estate management services
"Ministry of Housing, Communities and Local Government",Homes England,PROPERTY SERVICES,Development,HARTNELL TAYLOR COOK LLP,07/06/2021,424.8,M,80131800,Real estate management services
"Ministry of Housing, Communities and Local Government",Homes England,PROPERTY SERVICES,MPP,HARTNELL TAYLOR COOK LLP,04/06/2021,371.7,M,80131800,Real estate management services
"Ministry of Housing, Communities and Local Government",Homes England,PLANNING APPLICATIONS,MPP,HUNTINGDONSHIRE DISTRICT COUNCIL,29/06/2021,7044,G,80131800,Real estate management services
"Ministry of Housing, Communities and Local Government",Homes England,CAP GRNTS TO LOCAL AUTHORITIES,Investment,HASTINGS BOROUGH COUNCIL,28/06/2021,92231.7,G,None,Grants
"Ministry of Housing, Communities and Local Government",Homes England,CAP GRNTS TO LOCAL AUTHORITIES,Investment,HASTINGS BOROUGH COUNCIL,28/06/2021,32803.54,G,None,Grants
"Ministry of Housing, Communities and Local Government",Homes England,MISC PROFESSIONAL FEES,Development,HARVEYHR LTD,01/06/2021,2160,S,80111500,Human resource development
"Ministry of Housing, Communities and Local Government",Homes England,OFFICE RELOCATION COSTS,Development,HARROW GREEN LIMITED,08/06/2021,1859.4,L,78131800,Specialised warehousing and Storage
"Ministry of Housing, Communities and Local Government",Homes England,ST FUND LOANS ADDITIONS,Development,HARDFIELD HOMES (BELPER) LTD,23/06/2021,76040,L,None,Loans
"Ministry of Housing, Communities and Local Government",Homes England,CONTRACT WORKS,Development,HALL CONSTRUCTION SERVICES LTD,22/06/2021,13925.14,M,72103300,Infrastructure maintenance and repair services
"Ministry of Housing, Communities and Local Government",Homes England,ST FUND LOANS ADDITIONS,Investment,HOLLINS HOMES (TILSTOCK) LTD,28/06/2021,256551,S,None,Loans
"Ministry of Housing, Communities and Local Government",Homes England,CAPITAL GRANTS TO RPs,Investment,TRANSFORM HOUSING & SUPPORT,22/06/2021,64000,L,None,Grants
"Ministry of Housing, Communities and Local Government",Homes England,CAPITAL GRANTS TO RPs,Investment,TRANSFORM HOUSING & SUPPORT,30/06/2021,24000,L,None,Grants
"Ministry of Housing, Communities and Local Government",Homes England,CAPITAL GRANTS TO RPs,Investment,TRANSFORM HOUSING & SUPPORT,29/06/2021,15000,L,None,Grants
"Ministry of Housing, Communities and Local Government",Homes England,CAPITAL GRANTS TO RPs,Investment,TRANSFORM HOUSING & SUPPORT,21/06/2021,14000,L,None,Grants
"Ministry of Housing, Communities and Local Government",Homes England,CAPITAL GRANTS TO RPs,Investment,TRANSFORM HOUSING & SUPPORT,22/06/2021,10000,L,None,Grants
"Ministry of Housing, Communities and Local Government",Homes England,CAPITAL GRANTS TO RPs,Investment,TRANSFORM HOUSING & SUPPORT,29/06/2021,6400,L,None,Grants
"Ministry of Housing, Communities and Local Government",Homes England,CAPITAL GRANTS TO RPs,Investment,TRANSFORM HOUSING & SUPPORT,29/06/2021,6400,L,None,Grants
"Ministry of Housing, Communities and Local Government",Homes England,ST FUND LOANS ADDITIONS,Investment,HEYWOOD DEVELOPMENTS (MELTHAM) LTD,02/06/2021,286798,S,None,Loans
"Ministry of Housing, Communities and Local Government",Homes England,LEGAL FEES (PROGRAMME - RDEL),Development,HCR HEWITSONS,21/06/2021,4392,M,80121600,Business law services
"Ministry of Housing, Communities and Local Government",Homes England,LEGAL FEES (PROGRAMME - RDEL),MPP,HCR HEWITSONS,16/06/2021,4248,M,80121600,Business law services
"Ministry of Housing, Communities and Local Government",Homes England,LEGAL FEES (PROGRAMME - RDEL),MPP,HCR HEWITSONS,25/06/2021,2432.4,M,80121600,Business law services
"Ministry of Housing, Communities and Local Government",Homes England,LEGAL FEES (PROGRAMME - RDEL),Development,HCR HEWITSONS,16/06/2021,1828.02,M,80121600,Business law services
"Ministry of Housing, Communities and Local Government",Homes England,DISPOSAL FEES - LEGAL,MPP,HCR HEWITSONS,02/06/2021,1806,M,80121600,Business law services
"Ministry of Housing, Communities and Local Government",Homes England,DISPOSAL FEES - LEGAL,MPP,HCR HEWITSONS,09/06/2021,1482,M,80121600,Business law services
"Ministry of Housing, Communities and Local Government",Homes England,DISPOSAL FEES - LEGAL,MPP,HCR HEWITSONS,04/06/2021,1368,M,80121600,Business law services
"Ministry of Housing, Communities and Local Government",Homes England,DISPOSAL FEES - LEGAL,MPP,HCR HEWITSONS,04/06/2021,1254,M,80121600,Business law services
"Ministry of Housing, Communities and Local Government",Homes England,DISPOSAL FEES - LEGAL,MPP,HCR HEWITSONS,02/06/2021,1140,M,80121600,Business law services
"Ministry of Housing, Communities and Local Government",Homes England,DISPOSAL FEES - LEGAL,MPP,HCR HEWITSONS,07/06/2021,1140,M,80121600,Business law services
"Ministry of Housing, Communities and Local Government",Homes England,DISPOSAL FEES - LEGAL,MPP,HCR HEWITSONS,04/06/2021,1026,M,80121600,Business law services
"Ministry of Housing, Communities and Local Government",Homes England,DISPOSAL FEES - LEGAL,MPP,HCR HEWITSONS,02/06/2021,912,M,80121600,Business law services
"Ministry of Housing, Communities and Local Government",Homes England,DISPOSAL FEES - LEGAL,MPP,HCR HEWITSONS,17/06/2021,900,M,80121600,Business law services
"Ministry of Housing, Communities and Local Government",Homes England,DISPOSAL FEES - LEGAL,Development,HCR HEWITSONS,04/06/2021,720,M,80121600,Business law services
"Ministry of Housing, Communities and Local Government",Homes England,LEGAL FEES (PROGRAMME - RDEL),MPP,HCR HEWITSONS,03/06/2021,702,M,80121600,Business law services
"Ministry of Housing, Communities and Local Government",Homes England,DISPOSAL FEES - LEGAL,Development,HCR HEWITSONS,03/06/2021,684,M,80121600,Business law services
"Ministry of Housing, Communities and Local Government",Homes England,DISPOSAL FEES - LEGAL,MPP,HCR HEWITSONS,07/06/2021,684,M,80121600,Business law services
"Ministry of Housing, Communities and Local Government",Homes England,DISPOSAL FEES - LEGAL,MPP,HCR HEWITSONS,08/06/2021,684,M,80121600,Business law services
"Ministry of Housing, Communities and Local Government",Homes England,DISPOSAL FEES - LEGAL,MPP,HCR HEWITSONS,07/06/2021,636,M,80121600,Business law services
"Ministry of Housing, Communities and Local Government",Homes England,DISPOSAL FEES - LEGAL,MPP,HCR HEWITSONS,02/06/2021,570,M,80121600,Business law services
"Ministry of Housing, Communities and Local Government",Homes England,DISPOSAL FEES - LEGAL,MPP,HCR HEWITSONS,04/06/2021,522,M,80121600,Business law services
"Ministry of Housing, Communities and Local Government",Homes England,DISPOSAL FEES - LEGAL,MPP,HCR HEWITSONS,08/06/2021,456,M,80121600,Business law services
"Ministry of Housing, Communities and Local Government",Homes England,LEGAL FEES (PROGRAMME - RDEL),Development,HCR HEWITSONS,09/06/2021,426,M,80121600,Business law services
"Ministry of Housing, Communities and Local Government",Homes England,LEGAL FEES (PROGRAMME - RDEL),MPP,HCR HEWITSONS,07/06/2021,408,M,80121600,Business law services
"Ministry of Housing, Communities and Local Government",Homes England,DISPOSAL FEES - LEGAL,MPP,HCR HEWITSONS,03/06/2021,360,M,80121600,Business law services
"Ministry of Housing, Communities and Local Government",Homes England,LEGAL FEES (PROGRAMME - CDEL),Development,HCR HEWITSONS,03/06/2021,360,M,80121600,Business law services
"Ministry of Housing, Communities and Local Government",Homes England,LEGAL FEES (PROGRAMME - RDEL),MPP,HCR HEWITSONS,01/06/2021,342,M,80121600,Business law services
"Ministry of Housing, Communities and Local Government",Homes England,DISPOSAL FEES - LEGAL,MPP,HCR HEWITSONS,02/06/2021,342,M,80121600,Business law services
"Ministry of Housing, Communities and Local Government",Homes England,LEGAL FEES (PROGRAMME - RDEL),MPP,HCR HEWITSONS,07/06/2021,342,M,80121600,Business law services
"Ministry of Housing, Communities and Local Government",Homes England,DISPOSAL FEES - LEGAL,MPP,HCR HEWITSONS,08/06/2021,342,M,80121600,Business law services
"Ministry of Housing, Communities and Local Government",Homes England,DISPOSAL FEES - LEGAL,MPP,HCR HEWITSONS,07/06/2021,336,M,80121600,Business law services
"Ministry of Housing, Communities and Local Government",Homes England,DISPOSAL FEES - LEGAL,MPP,HCR HEWITSONS,07/06/2021,300,M,80121600,Business law services
"Ministry of Housing, Communities and Local Government",Homes England,VALUATION FEES,Development,GL HEARN LIMITED,08/06/2021,1440,L,80131800,Real estate management services
"Ministry of Housing, Communities and Local Government",Homes England,VALUATION FEES,Development,GL HEARN LIMITED,08/06/2021,1440,L,80131800,Real estate management services
"Ministry of Housing, Communities and Local Government",Homes England,VALUATION FEES,Development,GL HEARN LIMITED,08/06/2021,360,L,80131800,Real estate management services
"Ministry of Housing, Communities and Local Government",Homes England,LANDSCAPING & PLANTS,Development,INDUSTRIAL LANDSCAPES LIMITED,03/06/2021,546.31,S,10161600,Floral plants
"Ministry of Housing, Communities and Local Government",Homes England,CLEANING,Development,INDEPTH MANAGED SERVICES,07/06/2021,553.48,L,76111500,General building and office cleaining and maintenance services
"Ministry of Housing, Communities and Local Government",Homes England,AGENCY STAFF,Service Design And Transformation,INVESTIGO LIMITED,08/06/2021,7182,L,80111600,Temporary personnel services
"Ministry of Housing, Communities and Local Government",Homes England,AGENCY STAFF,Service Design And Transformation,INVESTIGO LIMITED,08/06/2021,7147.8,L,80111600,Temporary personnel services
"Ministry of Housing, Communities and Local Government",Homes England,AGENCY STAFF,Service Design And Transformation,INVESTIGO LIMITED,02/06/2021,6463.8,L,80111600,Temporary personnel services
"Ministry of Housing, Communities and Local Government",Homes England,AGENCY STAFF,Service Design And Transformation,INVESTIGO LIMITED,11/06/2021,3591.54,L,80111600,Temporary personnel services
"Ministry of Housing, Communities and Local Government",Homes England,AGENCY STAFF,Service Design And Transformation,INVESTIGO LIMITED,11/06/2021,3591.54,L,80111600,Temporary personnel services
"Ministry of Housing, Communities and Local Government",Homes England,AGENCY STAFF,Service Design And Transformation,INVESTIGO LIMITED,28/06/2021,3591.54,L,80111600,Temporary personnel services
"Ministry of Housing, Communities and Local Government",Homes England,AGENCY STAFF,Service Design And Transformation,INVESTIGO LIMITED,08/06/2021,3591,L,80111600,Temporary personnel services
"Ministry of Housing, Communities and Local Government",Homes England,AGENCY STAFF,Service Design And Transformation,INVESTIGO LIMITED,14/06/2021,3591,L,80111600,Temporary personnel services
"Ministry of Housing, Communities and Local Government",Homes England,AGENCY STAFF,Service Design And Transformation,INVESTIGO LIMITED,08/06/2021,3299.94,L,80111600,Temporary personnel services
"Ministry of Housing, Communities and Local Government",Homes England,AGENCY STAFF,Service Design And Transformation,INVESTIGO LIMITED,14/06/2021,3299.94,L,80111600,Temporary personnel services
"Ministry of Housing, Communities and Local Government",Homes England,AGENCY STAFF,Service Design And Transformation,INVESTIGO LIMITED,02/06/2021,2872.8,L,80111600,Temporary personnel services
"Ministry of Housing, Communities and Local Government",Homes England,AGENCY STAFF,Service Design And Transformation,INVESTIGO LIMITED,07/06/2021,2872.8,L,80111600,Temporary personnel services
"Ministry of Housing, Communities and Local Government",Homes England,AGENCY STAFF,Service Design And Transformation,INVESTIGO LIMITED,14/06/2021,2872.8,L,80111600,Temporary personnel services
"Ministry of Housing, Communities and Local Government",Homes England,AGENCY STAFF,Service Design And Transformation,INVESTIGO LIMITED,14/06/2021,2872.8,L,80111600,Temporary personnel services
"Ministry of Housing, Communities and Local Government",Homes England,AGENCY STAFF,Service Design And Transformation,INVESTIGO LIMITED,14/06/2021,2872.8,L,80111600,Temporary personnel services
"Ministry of Housing, Communities and Local Government",Homes England,AGENCY STAFF,Service Design And Transformation,INVESTIGO LIMITED,21/06/2021,2872.8,L,80111600,Temporary personnel services
"Ministry of Housing, Communities and Local Government",Homes England,AGENCY STAFF,Service Design And Transformation,INVESTIGO LIMITED,14/06/2021,2639.95,L,80111600,Temporary personnel services
"Ministry of Housing, Communities and Local Government",Homes England,AGENCY STAFF,Service Design And Transformation,INVESTIGO LIMITED,17/06/2021,2154.92,L,80111600,Temporary personnel services
"Ministry of Housing, Communities and Local Government",Homes England,ST FUND LOANS ADDITIONS,Investment,IPCJC LIMITED,09/06/2021,56027,L,None,Loans
"Ministry of Housing, Communities and Local Government",Homes England,BUILDINGS-ELECTRICITY,Development,INTEGRATED UTILITY SERVICES,07/06/2021,1795.2,M,83101800,Electric utilities
"Ministry of Housing, Communities and Local Government",Homes England,DRAINS & SEWERS,Development,HYDRO DESCALING LTD T/A INSEWER SURVEYS,14/06/2021,3204,S,72101500,Building maintenance and repair services
"Ministry of Housing, Communities and Local Government",Homes England,AGENCY STAFF,Service Design And Transformation,INTERQUEST GROUP UK LIMITED,04/06/2021,15960,M,80111600,Temporary personnel services
"Ministry of Housing, Communities and Local Government",Homes England,AGENCY STAFF,Service Design And Transformation,INTERQUEST GROUP UK LIMITED,04/06/2021,14820,M,80111600,Temporary personnel services
"Ministry of Housing, Communities and Local Government",Homes England,AGENCY STAFF,Service Design And Transformation,INTERQUEST GROUP UK LIMITED,11/06/2021,14400,M,80111600,Temporary personnel services
"Ministry of Housing, Communities and Local Government",Homes England,BESPOKE DEVELOPMENT SUPPORT,Corporate Resources,INTERQUEST GROUP UK LIMITED,04/06/2021,14040,M,80111600,Temporary personnel services
"Ministry of Housing, Communities and Local Government",Homes England,AGENCY STAFF,Service Design And Transformation,INTERQUEST GROUP UK LIMITED,04/06/2021,13680,M,80111600,Temporary personnel services
"Ministry of Housing, Communities and Local Government",Homes England,AGENCY STAFF,Service Design And Transformation,INTERQUEST GROUP UK LIMITED,04/06/2021,13680,M,80111600,Temporary personnel services
"Ministry of Housing, Communities and Local Government",Homes England,AGENCY STAFF,Service Design And Transformation,INTERQUEST GROUP UK LIMITED,11/06/2021,13680,M,80111600,Temporary personnel services
"Ministry of Housing, Communities and Local Government",Homes England,AGENCY STAFF,Service Design And Transformation,INTERQUEST GROUP UK LIMITED,11/06/2021,13680,M,80111600,Temporary personnel services
"Ministry of Housing, Communities and Local Government",Homes England,AGENCY STAFF,Service Design And Transformation,INTERQUEST GROUP UK LIMITED,11/06/2021,13680,M,80111600,Temporary personnel services
"Ministry of Housing, Communities and Local Government",Homes England,AGENCY STAFF,Service Design And Transformation,INTERQUEST GROUP UK LIMITED,11/06/2021,13566,M,80111600,Temporary personnel services
"Ministry of Housing, Communities and Local Government",Homes England,AGENCY STAFF,Corporate Resources,INTERQUEST GROUP UK LIMITED,14/06/2021,12257.28,M,80111600,Temporary personnel services
"Ministry of Housing, Communities and Local Government",Homes England,AGENCY STAFF,Service Design And Transformation,INTERQUEST GROUP UK LIMITED,11/06/2021,9048,M,80111600,Temporary personnel services
"Ministry of Housing, Communities and Local Government",Homes England,AGENCY STAFF,Corporate Resources,INTERQUEST GROUP UK LIMITED,04/06/2021,8863.61,M,80111600,Temporary personnel services
"Ministry of Housing, Communities and Local Government",Homes England,AGENCY STAFF,Service Design And Transformation,INTERQUEST GROUP UK LIMITED,16/06/2021,3600,M,80111600,Temporary personnel services
"Ministry of Housing, Communities and Local Government",Homes England,AGENCY STAFF,Service Design And Transformation,INTERQUEST GROUP UK LIMITED,11/06/2021,2880,M,80111600,Temporary personnel services
"Ministry of Housing, Communities and Local Government",Homes England,AGENCY STAFF,Service Design And Transformation,INTERQUEST GROUP UK LIMITED,24/06/2021,2880,M,80111600,Temporary personnel services
"Ministry of Housing, Communities and Local Government",Homes England,AGENCY STAFF,Service Design And Transformation,INTERQUEST GROUP UK LIMITED,11/06/2021,2784,M,80111600,Temporary personnel services
"Ministry of Housing, Communities and Local Government",Homes England,AGENCY STAFF,Service Design And Transformation,INTERQUEST GROUP UK LIMITED,17/06/2021,2160,M,80111600,Temporary personnel services
"Ministry of Housing, Communities and Local Government",Homes England,ST FUND LOANS ADDITIONS,Investment,JPI HOLDINGS LTD,25/06/2021,225920.73,S,None,Loans
